Workbook

Sheet Formato 7A (hidden)
B3: FORMATO N° 07-A:
B4: REGISTRO DE PROYECTO DE INVERSIÓN
B6: (La información registrada en este formato tiene carácter de Declaración Jurada - D.S. N° 284-2018-EF)
C9: Nombre del proyecto de inversión (generada en función al servicio y a los datos registrados en los numerales 1.2, 1.3 y 1.4)
C11: =+FICHA!C10 -> 
C13: CÓDIGO DEL PROYECTO DE INVERSIÓN (Asignado por el Aplicativo Informático).
C15: ¿El proyecto pertenece a un programa de inversión?
C17: No | E17: =+FICHA!M15 -> 0
C18: Sí | E18: =+FICHA!K15 -> 0
C20: Indique el código del Programa de Inversión | E20: =+FICHA!J17 -> 0
B23: A. Alineamiento a una brecha prioritaria
C25: FUNCIÓN | E25: =+FICHA!G24 -> 22- Educación
C27: DIVISIÓN FUNCIONAL | E27: =+FICHA!G26 -> 047- Educación Básica
C29: GRUPO FUNCIONAL | E29: =IF(FICHA!G28="X",FICHA!H28,"") -> 
E30: =IF(FICHA!#REF!="X",FICHA!#REF!,"") -> 
E31: =IF(FICHA!#REF!="X",FICHA!#REF!,"") -> 
E32: =IF(FICHA!#REF!="X",FICHA!#REF!,"") -> 
C34: SECTOR RESPONSABLE | E34: Educación
F37: =IF(FICHA!J38="X",FICHA!D38,"") -> 
C38: SERVICIOS PÚBLICOS CON BRECHA IDENTIFICADA Y PRIORIZADA: | F38: =IF(FICHA!J39="X",FICHA!D39,"") -> 
F39: =IF(FICHA!J40="X",FICHA!D40,"") -> 
F40: =IF(FICHA!J41="X",FICHA!D41,"") -> 
C42: INDICADOR DE BRECHA DE ACCESO A SERVICIOS: | F42: Nombre: | G42: =+FICHA!D49 -> 0
F43: Nombre: | G43: =+FICHA!D50 -> 0
C45: Nota: Se puede incluir más de un servicio público con brecha y más de un indicador | F45: Unidad de medida: | G45: =+FICHA!O49 ->  | H45: Espacio geográfico de la UP | I45: =+FICHA!I49 -> 0 | J45: Año: | K45: =+FICHA!K49 -> 0 | L45: Valor: | M45: =+FICHA!L49 -> 0
F46: Unidad de medida: | G46: =+FICHA!O50 ->  | H46: Espacio geográfico de la UP | I46: =+FICHA!I50 -> 0 | J46: Año: | K46: =+FICHA!K50 -> 0 | L46: Valor: | M46: =+FICHA!L50 -> 0
C48: CONTRIBUCIÓN AL CIERRE DE BRECHA: | F48: Valor: | G48: =+FICHA!N49 -> 0
C49: Nota: Se refiere a la capacidad de producción que aporta el proyecto (incremental)
C51: TIPOLOGIA DE PROYECTO | F51: =+FICHA!E68 -> Educación Primaria
F52: =+FICHA!E69 -> Educación Secundaria
C54: Nota: Se puede incluir más de un servicio público con brecha y más de un indicador
B56: B. Institucionalidad
B58: 1 | C58: OFICINA DE PROGRAMACIÓN MULTIANUAL DE INVERSIONES (OPMI)
C59: Nivel de gobierno : | G59: =+FICHA!I77 -> 0
C60: Entidad : | G60: =+FICHA!I78 -> 0
C61: Nombre de la OPMI: (Nombre de la Unidad Orgánica a la que pertenece la OPMI) | G61: =+FICHA!I79 -> 0
C62: Responsable de la OPMI: | G62: =+FICHA!I80 -> 0
B65: 2 | C65: UNIDAD FORMULADORA DEL PROYECTO DE INVERSIÓN (UF)
C66: Nivel de gobierno | G66: =+FICHA!I85 -> 0
C67: Entidad | G67: =+FICHA!I86 -> 0
C68: Nombre de la UF: (Nombre de la Unidad Orgánica a la que pertenece la UF) | G68: =+FICHA!I87 -> 0
C69: Responsable de la UF: | G69: =+FICHA!I88 -> 0
B72: 3 | C72: UNIDAD EJECUTORA DE INVERSIONES (UEI)
C73: Nivel de gobierno : | G73: =+FICHA!I93 -> 0
C74: Entidad : | G74: =+FICHA!I94 -> 0
C75: Nombre de la UEI: (Nombre de la Unidad Orgánica a la que pertenece la UEI) | G75: =+FICHA!I95 -> 0
C76: Responsable de la UEI: | G76: =+FICHA!I96 -> 0
B79: 4 | C79: UNIDAD EJECUTORA PRESUPUESTAL (UEP)
C80: Nombre de la UEP: | G80: =+FICHA!I101 -> 0
B82: C. Formulación y Evaluación
B84: 1. IDENTIFICACIÓN
I85: =+FICHA!G109 -> 0
B86: 1.1 | C86: Código de la unidad productora (en caso el sector lo haya definido)* | I86: =+FICHA!G110 -> 0
C87: *Son obligatorios en caso de: colegios (código modular), instituciones prestadores de servicios de salud (código de establecimiento)
C88: Nota: Se puede agregar más de un código de identificación cuando el proyecto comprenda más de una Unidad Productora
B90: 1.2 | C90: Nombre de la unidad productora | I90: =+FICHA!M109 -> 0
B93: 1.3 | C93: Naturaleza de intervención: | D93: Mejoramiento
B95: 1.4 | C95: Servicio a intervenir: | D95: =+FICHA!I118 -> Servicio de Educación Primaria
D96: =+FICHA!I119 -> Servicio de Educación Secundaria
B98: 1.5 | C98: Localización geográfica de la unidad productora (no lineal)
C100: Departamento | D100: =+FICHA!D126 -> 0
C101: Provincia | D101: =+FICHA!D128 -> 0
C102: Distrito | D102: =+FICHA!D130 -> 0
C103: Localidad | D103: =+FICHA!D132 -> 0
C104: Coordenada geográfica UTM | D104: =+FICHA!L128 -> 0
D105: =+FICHA!N128 -> 0
C106: Nota: Si la Unidad Productora del proyecto abarca más de una localización o si el proyecto presenta más de una Unidad Productora, se podrán añadir más localizaciones
C108: Unidades productoras lineales
C110: Adjuntar un archivo KML
C112: Nota: adjuntar un archivo KML con las coordenadas UTM y el número de orden secuencial
B114: 1.6 | C114: Localización del ámbito de influencia del proyecto
C116: Ambito nacional
C118: Otros ámbitos:
C119: Departamento | D119: =+FICHA!G160 -> 0
C120: Provincia | D120: =+FICHA!I160 -> 0
C121: Distrito | D121: =+FICHA!K160 -> 0
C122: Localidad | D122: =+FICHA!M160 -> 0
C124: Nota: Si el ámbito de influencia del proyecto abarca más de una localización, se podrán añadir más localizaciones
C126: Ambitos de influencia múltiples
C128: Adjuntar un archivo KML
C130: Nota: adjuntar un archivo KML con las coordenadas UTM y el número de orden secuencial
B132: 2. JUSTIFICACIÓN DEL PROYECTO DE INVERSIÓN:
B134: 2.1. | C134: Objetivo del proyecto de inversión
C136: Descripción del objetivo central del proyecto
C137: =+FICHA!C371 -> 
C140: Nombre del Indicador para medición del objetivo central: | E140: =+FICHA!C378 -> 
C142: Unidad de medida del indicador: | E142: =+FICHA!M378 -> 
C143: Meta: | E143: =+FICHA!M379 -> 1
C144: Fuente de información: | E144: =+FICHA!M380 -> Censo Educativo
B146: 2.2. | C146: Beneficiarios directos
C148: Denominación de los beneficiarios directos: | F148: Alumnos(as) de la I.E. N° 1268 Gustavo Mohme Llona del nivel primaria y secundaria en las edades de 06 a 16 años
C149: Unidad de medidad de los beneficiarios directos: | F149: Personas
C150: Beneficiarios en el último año del horizonte de evaluación: | F150: 1199 | G150: (Valor)
C151: Sumatoria de beneficiarios de todo el horizonte de evaluación: | F151: 10617 | G151: (Valor)
C152: Ultimo año de horizonte de evaluación | F152: 2031
B153: 3. ALTERNATIVAS DEL PROYECTO DE INVERSIÓN:
C155: Descripción de alternativas
C156: Alternativa 1 (Recomendada) | E156: =+FICHA!F386 -> 
C157: Alternativa 2
C158: Alternativa 3
B161: 4. BALANCE OFERTA DEMANDA (CONTRIBUCION DEL PROYECTO DE INVERSION AL CIERRE DE BRECHAS O DEFICIT DE LA OFERTA DE SERVICIOS PUBLICOS):
C163: Capacidad de producción
C165: Servicios | D165: Unidad de medida | E165: Capacidad actual | F165: Capacidad optimizada | G165: Capacidad con proyecto
C166: =+$D$95 -> Servicio de Educación Primaria | D166: Alumno/Año | E166: 529 | F166: 0 | G166: 666
C167: Educación Secundaria | D167: Alumno/Año | E167: 412 | F167: 0 | G167: 533
C168: Nota: Los servicios corresponden a los servicios públicos con indicadores de cobertura
C169: Nota: La unidad de medida de la capacidad de producción es la misma que la del balance oferta demanda
C170: Nota: la capacidad con proyecto debe ser mayor a la capacidad actual para las naturalezas de intervención: creación, ampliación, recuperación, y "mejoramiento y ampliación"
C171: Nota: este cuadro se repite por cada unidad productora intervenida por el proyecto de inversión
C173: Balance oferta demanda
C175: Horizonte de evaluación en años | D175: 10
C177: Servicios con brecha | D177: Unidad de medida | E177: Año 1 | F177: Año 2 | G177: Año 3 | H177: Año 4 | I177: Año 5 | J177: Año 6 | K177: Año 7 | L177: Año 8 | M177: Año 9 | N177: Año 10
C178: =+C166 -> Servicio de Educación Primaria | D178: =+D166 -> Alumno/Año | E178: 527 | F178: 541 | G178: 567 | H178: 589 | I178: 606 | J178: 618 | K178: 630 | L178: 642 | M178: 654 | N178: 666
C179: Educación Secundaria | D179: Alumno/Año | E179: 403 | F179: 419 | G179: 420 | H179: 428 | I179: 436 | J179: 457 | K179: 469 | L179: 495 | M179: 517 | N179: 533
C180: Nota: Los servicios con brecha corresponden a los servicios públicos con indicadores de cobertura
C181: Nota: este cuadro se repite por cada unidad productora intervenida por el proyecto de inversión
B183: 5. UNIDAD PRODUCTORA, ACCIONES, COSTOS DE INVERSIÓN y CRONOGRAMA DE INVERSIÓN:
C184: (En la alternativa recomendada)
B186: 5.1 | C186: Metas físicas, costos y plazos
B188: Producto /Componente | C188: Acción sobre los activos | E188: Acción sobre el activo | F188: Tipo de Factor Productivo | G188: Unidad Física | I188: Dimensión Física | K188: Costo a precio de mercado | L188: Expediente técnico o documento equivalente | N188: Ejecución física
C189: Acción | D189: Activo | G189: Unidad de medida | H189: Cantidad | I189: Unidad de medida | J189: Cantidad | L189: Fecha inicio | M189: Fecha término | N189: Fecha inicio | O189: Fecha término
B190: INFRAESTRUCTURA | C190: Construcción | D190: Aula | E190: Aulas pedagogicas en Bloques I(8) III(12) para nivel primaria y Bloques V (6) y VI(6) | F190: Infraestructura | G190: Aulas | H190: 32 | I190: m2 | J190: 1987.52 | K190: 3639261.12 | L190: 2020-01-01 | M190: 2020-05-30 | N190: 2020-08-01 | O190: 2021-07-31
C191: Construcción | D191: Aula de innovación pedagógica | E191: AIP en bloque II(2) para nivel primaria y AIP en bloque VII(2) | F191: Infraestructura | G191: Ambientes | H191: 4 | I191: m2 | J191: 374.8 | K191: 769865.32 | L191: 2020-01-01 | M191: 2020-05-30 | N191: 2020-08-01 | O191: 2021-07-31
C192: Construcción | D192: Ambiente de acompañamiento y/o consejería | E192: 1 topico en bloque I y 1 tópico en bloque IV | F192: Infraestructura | G192: Ambientes | H192: 2 | I192: m2 | J192: 33.66 | K192: 98771.41 | L192: 2020-01-01 | M192: 2020-05-30 | N192: 2020-08-01 | O192: 2021-07-31
C193: Construcción | D193: Ambientes de Gestión Administrativa y Pedagógica | E193: Administración y oficinas de bienestar(1), sala de espera(01), sala de reuniones(01), módulo de docente primaria(01) y módulo de docente secundaria(01) en Bloque II | F193: Infraestructura | G193: Ambientes | H193: 5 | I193: m2 | J193: 141.82 | K193: 291308.23 | L193: 2020-01-01 | M193: 2020-05-30 | N193: 2020-08-01 | O193: 2021-07-31
C194: Construcción | D194: Ambiente de Servicios Generales | E194: Vigilancia(2) en Bloque I y IV y Cuarto de limpieza(4) en Bloque III, IV, VI. Botaderos (11), despensa (01), almacenes(4), cuarto electrico(1), almacén de residuos solidos(01), cuarto de bombas(01), maestranza(01), almacén de implementos deportivos(02), modulo de conectividad(02), deposito de combustibles(01) | F194: Infraestructura | G194: Ambientes | H194: 32 | I194: m2 | J194: 364.72 | K194: 706682.25 | L194: 2020-01-01 | M194: 2020-05-30 | N194: 2020-08-01 | O194: 2021-07-31
C195: Construcción | D195: Biblioteca escolar | E195: Biblioteca de primaria (1) Bloque II y Bibilioteca de Secundaria (1) Bloque IV | F195: Infraestructura | G195: Ambientes | H195: 2 | I195: m2 | J195: 177.23 | K195: 364042.77 | L195: 2020-01-01 | M195: 2020-05-30 | N195: 2020-08-01 | O195: 2021-07-31
C196: Construcción | D196: SS.HH y/o Vestidores | E196: SSHH Alumnos(10) y SSHH Alumnas (10) en bloques I, II, III, V y VIII. SH Publico mujeres (01) y SH Publico varones (01) en Bloque I. Vestuarios (2) | F196: Infraestructura | G196: Ambientes | H196: 29 | I196: m2 | J196: 408.11 | K196: 1586567.32 | L196: 2020-01-01 | M196: 2020-05-30 | N196: 2020-08-01 | O196: 2021-07-31
C197: Construcción | D197: Ambiente de preparación y expendio de alimentos | E197: Kiosco(2) en Bloques I y IV. Cocina Qaliwarma (1) en Bloque II | F197: Infraestructura | G197: Ambientes | H197: 3 | I197: m2 | J197: 89.52 | K197: 198584.29 | L197: 2020-01-01 | M197: 2020-05-30 | N197: 2020-08-01 | O197: 2021-07-31
C198: Construcción | D198: Depósitos y/o archivo general | E198: Deposito SUM (01), Archivo (01) y deposito de materiales de oficina (01) en Bloque II, | F198: Infraestructura | G198: Ambientes | H198: 3 | I198: m2 | J198: 26.65 | K198: 52158.48 | L198: 2020-01-01 | M198: 2020-05-30 | N198: 2020-08-01 | O198: 2021-07-31
C199: Construcción | D199: Cercos y/o portadas | E199: Cerco de malla de protección, cerco perimetrico y cerco opaco. Portadas de Primaria, Secundaria, Auxiliar y Servicio. | F199: Infraestructura | G199: Ambientes | H199: 7 | I199: m2 | J199: 453.08 | K199: 783268.71 | L199: 2020-01-01 | M199: 2020-05-30 | N199: 2020-08-01 | O199: 2021-07-31
C200: Construcción | D200: Espacios deportivos - abiertos | E200: Losa deportiva tipo I y graderías en el nivel 01 y nivel 02. | F200: Infraestructura | G200: Espacios Fisicos | H200: 3 | I200: m2 | J200: 1203.55 | K200: 317277.5 | L200: 2020-01-01 | M200: 2020-05-30 | N200: 2020-08-01 | O200: 2021-07-31
C201: Construcción | D201: Espacios deportivos - cerrados | E201: Losa deportiva tipo II | F201: Infraestructura | G201: Espacios Fisicos | H201: 1 | I201: m2 | J201: 1119 | K201: 312721.65 | L201: 2020-01-01 | M201: 2020-05-30 | N201: 2020-08-01 | O201: 2021-07-31
C202: Construcción | D202: Laboratorio/ taller creativo | E202: Taller creativo (01) en Bloque IV. Laboratorio de CTA(01) en Bloque VII | F202: Infraestructura | G202: Ambientes | H202: 2 | I202: m2 | J202: 185.04 | K202: 385584.11 | L202: 2020-01-01 | M202: 2020-05-30 | N202: 2020-08-01 | O202: 2021-07-31
C203: Construcción | D203: Sala de usos múltiples | E203: Sala de usos multiples(01) en Bloque I | F203: Infraestructura | G203: Ambientes | H203: 1 | I203: m2 | J203: 122 | K203: 250596.51 | L203: 2020-01-01 | M203: 2020-05-30 | N203: 2020-08-01 | O203: 2021-07-31
C204: Construcción | D204: Taller de Arte | E204: Taller de Arte (01) en Bloque VIII | F204: Infraestructura | G204: Ambientes | H204: 1 | I204: m2 | J204: 91.34 | K204: 176897.67 | L204: 2020-01-01 | M204: 2020-05-30 | N204: 2020-08-01 | O204: 2021-07-31
C205: Construcción | D205: Taller de Educación para el trabajo | E205: Taller de EPT (01) en Bloque VII | F205: Infraestructura | G205: Ambientes | H205: 1 | I205: m2 | J205: 125.28 | K205: 272038.64 | L205: 2020-01-01 | M205: 2020-05-30 | N205: 2020-08-01 | O205: 2021-07-31
C206: Construcción | D206: Espacios de recreación pasiva | E206: Expansión de aula 13, terraza techada en Bloque III. Ingreso, areas verdes, andenerias, jardineras circulares | F206: Infraestructura | G206: Espacios Fisicos | H206: 9 | I206: m2 | J206: 1409.07 | K206: 287878.3 | L206: 2020-01-01 | M206: 2020-05-30 | N206: 2020-08-01 | O206: 2021-07-31
C207: Construcción | D207: Espacios de Circulación horizontal y vertical | E207: Escalera, veredas, rampa, conectores y circulación | F207: Infraestructura | G207: Espacios Fisicos | H207: 60 | I207: ml | J207: 9017.3121 | K207: 10120506.14 | L207: 2020-01-01 | M207: 2020-05-30 | N207: 2020-08-01 | O207: 2021-07-31
C208: Construcción | D208: Espacios de formación productiva | E208: Huertos primaria y Huertos secundaria | F208: Infraestructura | G208: Espacios Fisicos | H208: 2 | I208: ml | J208: 159 | K208: 7109.59 | L208: 2020-01-01 | M208: 2020-05-30 | N208: 2020-08-01 | O208: 2021-07-31
C209: Construcción | D209: Instalaciones exteriores de Servicios Básicos | E209: Cisterna de 28 m3 con sistema hidroneumático (emplazada en un área de 40.0 m2), Instalaciones Sanitarias Exteriores Inc. Drenajes. Instalaciones Eléctricas Exteriores, Inc. Red data Instalaciones de sistema de seguridad con video vigilancia (CCTV) y perifoneo | F209: Infraestructura | G209: Numero de Estructuras Fisicas | H209: 4 | I209: m2 | J209: 40 | K209: 2143234.991 | L209: 2020-01-01 | M209: 2020-05-30 | N209: 2020-08-01 | O209: 2021-07-31
C210: Construcción | D210: Muro de contención | E210: Muro de contención H=1.90 m., Muros de contención h=1.00, Muros de contención h=3.00, Muros de contención h=3.75, Muros de contención h=4.25 | F210: Infraestructura | G210: Numero de Estructuras Fisicas | H210: 5 | I210: m2 | J210: 664.36 | K210: 2722687.97 | L210: 2020-01-01 | M210: 2020-05-30 | N210: 2020-08-01 | O210: 2021-07-31
C211: Construcción | D211: Otras acciones de infraestructura | E211: Cobertura losa deportiva tipo 02, Asta de bandera | F211: Infraestructura | G211: Numero de Estructuras Fisicas | H211: 3 | I211: m2 | J211: 1121 | K211: 629244.01 | L211: 2020-01-01 | M211: 2020-05-30 | N211: 2020-08-01 | O211: 2021-07-31
B212: Equipamiento y mobiliario | C212: Adquisición | D212: Mobiliario de ambientes de bienestar y servicios general | E212: Mesas, sillas, escritorios, camilla, biombo, coche, tachos de basura, banca de varones y mujeres, estantes, anaqueles, contenedor. | F212: Mobiliario | G212: N° de Mobiliario | H212: 1876 | K212: 49687.63 | L212: 2020-11-01 | M212: 2020-12-31 | N212: 2021-05-01 | O212: 2021-07-30
C213: Adquisición | D213: Mobiliario de ambientes de gestión administrativa y pedagógica. | E213: Mesas, sillas, credenzas, archivadores, anaqueles metálicos, mesa de trabajo, mueble bajo para docente, lockers, sillas de espera, mesa modular, muebles bajo para docentes. | F213: Mobiliario | G213: N° de Mobiliario | H213: 147 | K213: 59580.42 | L213: 2020-11-01 | M213: 2020-12-31 | N213: 2021-05-01 | O213: 2021-07-30
C214: Adquisición | D214: Mobiliario de Aula | E214: Mesas estudiantes, Sillas estudiantes, Pizarras acero vetrificado, Mesas Docentes, Sillas Docentes, Armarios Docentes, Muebles para Material Didáctico, Mueble para guardado de mochilas. | F214: Mobiliario | G214: N° de Mobiliario | H214: 124 | K214: 801957.41 | L214: 2020-11-01 | M214: 2020-12-31 | N214: 2021-05-01 | O214: 2021-07-30
C215: Adquisición | D215: Mobiliario de Aula de Innovacion Pedagogica | E215: Mesa estudiantes, silla estudiantes, armario, mesa docente, sillas docentes, pizarra acero vitrificado, soporte de techo para proyectores | F215: Mobiliario | G215: N° de Mobiliario | H215: 218 | K215: 84538.7 | L215: 2020-11-01 | M215: 2020-12-31 | N215: 2021-05-01 | O215: 2021-07-30
C216: Adquisición | D216: Mobiliario de Espacios Complementarios | E216: Mesas para consulta, sillas, estantes de módulos, sillón modular, mesa de auxiliar, pedestal mesa de trabajo, estantería, pizarras de acero vetrificado, armarios, estantes de módulos, racks para laptop. | F216: Mobiliario | G216: N° de Mobiliario | H216: 287 | K216: 92273.98 | L216: 2020-11-01 | M216: 2020-12-31 | N216: 2021-05-01 | O216: 2021-07-30
C217: Adquisición | D217: Mobiliario de Laboratorio y talleres | E217: Mesas de Trabajo de Laboratorio, sillas alta, mesas docente, sillas docente, pizarras de acero vitrificado, estantes | F217: Mobiliario | G217: N° de Mobiliario | H217: 107 | K217: 72346.21661 | L217: 2020-11-01 | M217: 2020-12-31 | N217: 2021-05-01 | O217: 2021-07-30
C218: Adquisición | D218: Equipamiento de ambientes de bienestar y servicios general | E218: Computadoras, impresoras, Botiquines y kit de seguridad, kit de implementos deportivos, Tablero de Basquet móvil y autoestable (IPD) | F218: Equipamiento | G218: N° de Equipamiento | H218: 19 | K218: 14477.4 | L218: 2020-11-01 | M218: 2020-12-31 | N218: 2021-05-01 | O218: 2021-07-30
C219: Adquisición | D219: Equipamiento de ambientes de gestión administrativa y pedagógica. | E219: Equipamiento de ambientes de gestión administrativa y pedagógica | F219: Equipamiento | G219: N° de Equipamiento | H219: 31 | K219: 69020.37 | L219: 2020-11-01 | M219: 2020-12-31 | N219: 2021-05-01 | O219: 2021-07-30
C220: Adquisición | D220: Equipamiento de Aula | E220: Proyectores, ecram, laptop, Televisiores, blu -ray, equipo de sonido, rack y parlantes | F220: Equipamiento | G220: N° de Equipamiento | H220: 128 | K220: 202532.4 | L220: 2020-11-01 | M220: 2020-12-31 | N220: 2021-05-01 | O220: 2021-07-30
C221: Adquisición | D221: Equipamiento de Aula de Innovacion Pedagogica | E221: Computadora, Televisor, proyector multimedia, laptop y ecran | F221: Equipamiento | G221: N° de Equipamiento | H221: 136 | K221: 432975.48 | L221: 2020-11-01 | M221: 2020-12-31 | N221: 2021-05-01 | O221: 2021-07-30
C222: Adquisición | D222: Equipamiento de Espacios Complementarios | E222: Computadora, ecran, proyector, servidor, router, estabilizador de voltaje, carrito de carga, televisor, blu -ray | F222: Equipamiento | G222: N° de Equipamiento | H222: 17 | K222: 32700.53 | L222: 2020-11-01 | M222: 2020-12-31 | N222: 2021-05-01 | O222: 2021-07-30
C223: Adquisición | D223: Equipamiento de Laboratorio y talleres | E223: Proyectores multimedia, Kits de Especialidad de ciencias Naturales, ecran, blue- ray, laptop | F223: Equipamiento | G223: N° de Equipamiento | H223: 34 | K223: 186557.51 | L223: 2020-11-01 | M223: 2020-12-31 | N223: 2021-05-01 | O223: 2021-07-30
C224: SUBTOTAL (INFRAESTRUCTURA + MOBILIARIO + EQUIPAMIENTO) | K224: =ROUND((SUM(K190:K223)),2) -> 28214935.03
C225: Nota: este cuadro se repite por cada unidad productora o componente intervenido por el proyecto de inversión
B227: 5.2 | C227: Otros costos de inversión
C229: Otros costos | D229: Costos a precios de mercado
C230: Gestión del proyecto | D230: 3316344.289
C231: Expedientes técnicos | D231: 785342.5
C232: Supervisión | D232: 1653335.76
C233: Liquidación | D233: 83072
C234: TOTAL | D234: =ROUND((SUM(D230:D233)),2) -> 5838094.55
C236: MONTO TOTAL DE INVERSIÓN | D236: =ROUND((D234+K224),2) -> 34053029.58
B238: 5.3 | C238: Cronograma de inversión según componentes
C240: Fecha prevista de inicio de ejecución: | E240: =N190 -> 2020-08-01 | F240: (mes y año)
C241: Tipo de periodo | E241: Trimestre
C242: Número de periodos | E242: 9 | F242: (valor)
C244: Tipo de Factor Productivo | E244: Cronograma de inversión | N244: Costo estimado de inversión a precios de mercado (Soles)
E245: I TRIMESTRE | F245: II TRIMESTRE | G245: III TRIMESTRE | H245: IV TRIMESTRE | I245: V TRIMESTRE | J245: VI TRIMESTRE | K245: VII TRIMESTRE | L245: VIII TRIMESTRE | M245: IX TRIMESTRE
C246: Infraestructura | H246: 4241900.04 | I246: 5238858.44 | J246: 7390623.44 | K246: 6933678.78 | L246: 2311226.28 | M246: 0 | N246: =SUM(E246:M246) -> 26116286.98
C247: Equipo | I247: 0 | J247: 0 | K247: 625509.12 | L247: 312754.57 | M247: 0 | N247: =SUM(E247:M247) -> 938263.69
C248: Mobiliario | I248: 0 | J248: 0 | K248: 773589.57 | L248: 386794.79 | M248: 0 | N248: =SUM(E248:M248) -> 1160384.36
C249: Sub total : | E249: =SUM(E246:E248) -> 0 | F249: =SUM(F246:F248) -> 0 | G249: 0 | H249: 4241900.04 | I249: =SUM(I246:I248) -> 5238858.44 | J249: 7390623.44 | K249: 8332777.47 | L249: 3010775.64 | M249: 0 | N249: =SUM(N246:N248) -> 28214935.03
C250: Otros costos | E250: I TRIMESTRE | F250: II TRIMESTRE | G250: III TRIMESTRE | H250: IV TRIMESTRE | I250: V TRIMESTRE | J250: VI TRIMESTRE | K250: VII TRIMESTRE | L250: VIII TRIMESTRE | M250: IX TRIMESTRE
C251: Gestión del proyecto | E251: 0 | G251: 1349348.24 | H251: 1349348.24 | I251: 477760.26 | J251: 41966.27 | K251: 41966.27 | L251: 41966.27 | M251: 13988.74 | N251: =SUM(G251:M251) -> 3316344.29
C252: Expediente técnico | E252: 0 | G252: 471205.5 | H252: 314137 | N252: =SUM(E252:M252) -> 785342.5
C253: Supervisión | E253: 0 | G253: 168893.4 | H253: 196290.64 | I253: 270230.62 | J253: 279803.37 | K253: 279803.37 | L253: 336632.17 | M253: 121682.19 | N253: =SUM(E253:M253) -> 1653335.76
C254: Liquidación | E254: 0 | M254: 83072 | N254: =SUM(E254:M254) -> 83072
C255: Sub total : | E255: =SUM(E251:E254) -> 0 | F255: =SUM(F251:F254) -> 0 | G255: 1989447.14 | H255: 1859775.88 | I255: 747990.88 | J255: 321769.64 | K255: 321769.64 | L255: 378598.44 | M255: 218742.93 | N255: =SUM(N251:N254) -> 5838094.55
C256: Costo total de la Inversión : | E256: =E249+E255 -> 0 | F256: =F249+F255 -> 0 | G256: =G249+G255 -> 1989447.14 | H256: 6101675.92 | I256: 5986849.32 | J256: 7712393.08 | K256: 8654547.11 | L256: 3389374.08 | M256: 218742.93 | N256: =N249+N255 -> 34053029.58
C257: Nota: La gestión del proyecto, el expediente técnico o documento equivalente, la supervisión y la liquidación no son items. Los gastos generales, la utilidad y el IGV forman parte de los item.
C258: La inclusión de la Gestión del Proyecto depende de la complejidad del proyecto
B261: 5.4 | C261: Monto de inversión financiados con recursos públicos
C262: ¿El proyecto tiene aporte de los beneficiarios?
C264: SI | F264: Aporte de los beneficiarios (S/):
C266: NO | D266: X | F266: Financiado con recursos públicos (S/):
B268: 5.5 | C268: Cronograma de metas físicas
E270: Periodo | N270: Total meta física
C271: Tipo de Factor Productivo | D271: Unidad de medida representativa | E271: I TRIMESTRE | F271: II TRIMESTRE | G271: III TRIMESTRE | H271: IV TRIMESTRE | I271: V TRIMESTRE | J271: VI TRIMESTRE | K271: VII TRIMESTRE | L271: VIII TRIMESTRE | M271: IX TRIMESTRE
E272: Meta física | F272: Meta física | G272: Meta física | H272: Meta física | I272: Meta física | J272: Meta física | K272: Meta física | L272: Meta física | M272: Meta física
C273: Infraestructura | D273: M2 | I273: 3137.08 | J273: 3874.35 | K273: 5465.65 | L273: 5127.75 | M273: 1709.25 | N273: =SUM(E273:M273) -> 19314.08
C274: Mobiliario | D274: N° Mobiliario | I274: 0 | J274: 0 | K274: 2394.01 | L274: 1196.99 | M274: 0 | N274: =SUM(E274:M274) -> 3591
C275: Equipamiento | D275: N° de Equipamiento | I275: 0 | J275: 0 | K275: 243.34 | L275: 121.66 | M275: 0 | N275: =SUM(E275:M275) -> 365
C276: Nota: La unidad de medida representativa proviene de las unidades físicas, a excepción del Item de Infraestructura que proviene de las unidades de medida de tamaño
B278: 5.6 | C278: Costo de inversión a precios sociales
E280: Alternativa 1 (Recomendada) | F280: Alternativa 2 | G280: Alternativa 3
C281: Costo de inversión a precios de mercado | E281: =+N256 -> 34053029.58
C282: Costo de inversión a precios sociales | E282: 28945075.16
... 82 more rows

Sheet FICHA
B2: FICHA TÉCNICA ESTÁNDAR PARA EL MEJORAMIENTO, AMPLIACIÓN Y/O RECUPERACIÓN DE LOS SERVICIOS DE EDUCACIÓN INICIAL, PRIMARIA Y SECUNDARIA DEL SECTOR EDUCACIÓN ( Es válido también como Ficha Técnica Simplificada.)
B4: Aplica a montos menor o igual a 15,000 UIT - La información registrada en esta ficha tiene carácter de Declaración Jurada - DS. N° 284-2018-EF
B6: DATOS GENERALES
C8: Nombre del proyecto de inversión (generada en función al servicio y a los datos registrados en los numerales C1.2, C1.3 y C1.4) | BB8: =29/2 -> 14.5
C10: =IF(OR(U118="",U109="",D128=""),"",U118&" del Servicio educativo del nivel "&U109&" de la I.E. "&M109&" en el distrito de "&D130&", "&"Provincia de "&D128&" y Departamento de "&D126) -> 
C11: Nota: El nombre está dado por NATURALEZA DE INTERVENCIÓN + SERVICIO EDUCATIVO CON BRECHA IDENTIFICADA + NOMBRE DE I.E. + LOCALIZACIÓN
C13: CÓDIGO DEL PROYECTO DE INVERSIÓN (Asignado por el Aplicativo Informático).
C15: ¿El proyecto pertenece a un Programa de Inversión? | J15: Sí | L15: No
C17: Indique el código del Programa de Inversión
B20: A. ALINEAMIENTO A UNA BRECHA PRIORITARIA
B22: A1. RESPONSABILIDAD FUNCIONAL
D24: FUNCIÓN | G24: 22- Educación
D26: DIVISIÓN FUNCIONAL | G26: 047- Educación Básica
D28: GRUPO FUNCIONAL
D30: SECTOR RESPONSABLE | G30: Educación
B33: A2. ARTICULACIÓN CON LA PROGRAMACIÓN MULTIANUAL DE INVERSIONES
C35: A2.1 SERVICIOS PÚBLICOS CON BRECHA IDENTIFICADA Y PRIORIZADA:
D37: Tipo de Servicio | J37: Marcar con (X) | L37: Tipos de Brecha | O37: Marcar con (X)
D38: Servicio de Educación Inicial | L38: Brecha de Calidad
D39: Servicio de Educación Primaria
D40: Servicio de Educación Secundaria | L40: Brecha de Cobertura
D41: Servicio de Educación Básica Alternativa
D42: Nota: Marcar con (X) los servicios públicos que se intervienen (Se puede incluir más de uno) | L42: Nota: Marcar con (X) las brechas que se interviene (Se puede incluir más de uno)
C44: A2.2 INDICADOR DE BRECHA DE ACCESO A SERVICIOS: | M44: A2.3 CONTRIBUCIÓN AL CIERRE DE BRECHA:
D46: Indicadores de brecha de Calidad | N46: VALOR | O46: U.M.
D47: Nombre del indicador | H47: U.M. | I47: Espacio Geográfico | K47: Año Base | L47: Valor
D48: =IF(AND(J38="X",O38="X"),"Porcentaje de unidades productoras con el servicio de educación inicial con capacidad instalada inadecuada",0) -> 0 | H48: =IF(D48=0,0,"%") -> 0 | O48: =IF(N48=0,"","Unidad Productora") -> 
D49: =IF(AND(J39="X",O38="X"),"Porcentaje de unidades productoras con el servicio de educación primaria con capacidad instalada inadecuada",0) -> 0 | H49: =IF(D49=0,0,"%") -> 0 | O49: =IF(N49=0,"","Unidad Productora") -> 
D50: =IF(AND(J40="X",O38="X"),"Porcentaje de unidades productoras con el servicio de educación secundaria con capacidad instalada inadecuada",0) -> 0 | H50: =IF(D50=0,0,"%") -> 0 | O50: =IF(N50=0,"","Unidad Productora") -> 
D51: =IF(AND(J41="X",O38="X"),"Porcentaje de unidades productoras con el servicio de educación basica alternativa con capacidad instalada inadecuada",0) -> 0 | H51: =IF(D51=0,0,"%") -> 0 | O51: =IF(N51=0,"","Unidad Productora") -> 
D52: Nota: • Espacio geográfico: Indicar si la medición de la brecha de calidad corresponde a nivel distrital, provincial, departamental o a nivel nacional, teniendo en cuenta el origen de los recursos financieros de acuerdo a su nivel de gobierno • Año: Indicar el año al cual pertenece la medición del valor numérico de los indicadores de brecha de calidad. • Valor: Indicar el valor porcentual que corresponde al indicador de brecha de calidad del servicio asociado, según el diagnóstico de brechas publicado por el sector, que puede ser descargado en el link http://www.minedu.gob.pe/programacion-multianual-inversiones/, ingresando en el ítem 4 de la pestaña de Fase de Programación Multianual de Inversiones, de acuerdo a su espacio geográfico (nivel distrital, provincial, regional o nacional) y a un periodo determinado (Año). | N52: Nota: Indicar el número de Unidades Productoras que se intervienen con el proyecto de acuerdo a su nivel educativo
D54: Indicadores de brecha de Cobertura | N54: VALOR | O54: U.M
D55: Nombre del indicador | H55: U.M. | I55: Espacio Geográfico | K55: Año Base | L55: Valor
D56: =IF(AND(J38="X",O40="X"),"Porcentaje de personas no matriculadas en el nivel inicial respecto a la demanda potencial ",0) -> 0 | H56: =IF(D56=0,0,"%") -> 0 | O56: =IF(N56=0,"","Persona") -> 
D57: =IF(AND(J39="X",O40="X"),"Porcentaje de personas no matriculadas en el nivel primaria respecto a la demanda potencial",0) -> 0 | H57: =IF(D57=0,0,"%") -> 0 | O57: =IF(N57=0,"","Persona") -> 
D58: =IF(AND(J40="X",O40="X"),"Porcentaje de personas no matriculadas en el nivel secundaria respecto a la demanda potencial",0) -> 0 | H58: =IF(D58=0,0,"%") -> 0 | O58: =IF(N58=0,"","Persona") -> 
D59: =IF(AND(J41="X",O40="X"),"Porcentaje de personas no matriculadas en educación basica alternativa respecto a la demanda potencial",0) -> 0 | H59: =IF(D59=0,0,"%") -> 0 | O59: =IF(N59=0,"","Persona") -> 
D60: Nota: • Espacio geográfico: Indicar si la medición de la brecha de cobertura corresponde a nivel distrital, provincial, departamental o nacional, teniendo en cuenta el origen de los recursos financieros de acuerdo a su nivel de gobierno y la disponibilidad de la información, en caso de no tener información se deber considerar el espacio geográfico superior • Año: Indicar el año al cual pertenece e periodo de la medición del valor numérico de los indicadores de brecha de cobertura. • Valor: Indicar el valor porcentual que corresponde al indicador de brecha de cobertura del servicio asociado, según el diagnóstico de brechas publicado por el sector, que puede ser descargado en el link http://www.minedu.gob.pe/programacion-multianual-inversiones/, ingresando en el ítem 4 de la pestaña de Fase de Programación Multianual de Inversiones, de acuerdo a su espacio geográfico (nivel distrital, provincial, regional o nacional) y a un periodo determinado (Año). | N60: Nota: Indicar el número de personas según el nivel educativo que no acceden al servicio educativo y con el proyecto van a ser atendidos.
C64: A2.4 TIPOLOGÍA DE PROYECTO
E66: Tipo | K66: Marcar con (X)
E67: Educación Inicial | K67: =J38 -> 0
E68: Educación Primaria | K68: =J39 -> 0
E69: Educación Secundaria | K69: =J40 -> 0
E70: Educación Básica Alternativa | K70: =J41 -> 0
E71: Nota: Se puede indicar más de un servicio público con brecha y más de un indicador
B73: B. INSTITUCIONALIDAD
C75: B1. OFICINA DE PROGRAMACIÓN MULTIANUAL DE INVERSIONES (OPMI)
D77: Nivel de gobierno :
D78: Entidad :
D79: Nombre de la OPMI (*):
D80: Responsable de la OPMI:
D81: (*) Nombre de la Unidad Orgánica a la que pertenece la OPMI
C83: B2. UNIDAD FORMULADORA DEL PROYECTO DE INVERSIÓN (UF)
D85: Nivel de gobierno
D86: Entidad
D87: Nombre de la UF (*):
D88: Responsable de la UF:
D89: (*) Nombre de la Unidad Orgánica a la que pertenece la UF
C91: B3. UNIDAD EJECUTORA DE INVERSIONES (UEI)
D93: Nivel de gobierno :
D94: Entidad :
D95: Nombre de la UEI (*):
D96: Responsable de la UEI:
D97: (*) Nombre de la Unidad Orgánica a la que pertenece la UEI
C99: B4. UNIDAD EJECUTORA PRESUPUESTAL (UEP)
D101: Nombre de la UEP:
B103: C. FORMULACIÓN Y EVALUACIÓN
C105: C1. IDENTIFICACIÓN
C107: C1.1 Datos de Unidades Productoras
D108: ÍTEM | E108: Código Local | F108: Nivel | G108: Código Modular | I108: Nombre (*) | M108: Nombre de la Institución Educativa (**)
D109: 1 | U109: =IF(COUNTA(F109:F112)=0,"",IF(COUNTA(F109:F112)=1,F109,IF(COUNTA(F109:F112)=2,F109&" y "&F110,IF(COUNTA(F109:F112)=3,F109&", "&F110&" y "&F111,IF(COUNTA(F109:F112)=4,F109&", "&F110&", "&F111&" y "&F112))))) -> 
D110: 2
D111: 3
D112: 4
D113: Nota: Se deberá indicar de forma ordenada según los niveles educativos en los que se intervenga. (*) Indicar el nombre del nivel educativo correspondiente, según lo indicado en el ESCALE por código modular. (**) Indicar el Nro. y/o nombre representativo que identifique a toda la Institución Educativa a intervenir. (ejemplo: Nº xxxx Santa Rosa de Lima)
C115: C1.2 Naturalezas de intervención en el servicio: | I115: C1.3 Servicios a intervenir:
D116: Tipo de Intervención | G116: Marcar con (X) | I116: Tipo | N116: Marcar con (X)
D117: Ampliación | I117: Servicio de Educación Inicial | N117: =+J38 -> 0
D118: Recuperación | I118: Servicio de Educación Primaria | N118: =+J39 -> 0 | U118: =IF(G117="X",D117,IF(G118="X",D118,IF(G119="X",D119,IF(G120="X",D120)))) -> FALSE
D119: Mejoramiento | I119: Servicio de Educación Secundaria | N119: =+J40 -> 0
D120: Mejoramiento y Ampliación | I120: Servicio de Educación Básica Alternativa | N120: =+J41 -> 0
D121: Nota: Se debe marcar con "X" sólo una de las opciones. | I121: Nota: Se considera los mismo que el ítem A2.1 Servicios Públicos con Brecha identificada y priorizada
C123: C1.4 Localización geográfica de la Unidad Productora UP (Especificar)
D125: Departamento
G126: =+G108 -> Código Modular | H126: Código Local | I126: Nombre de la Localidad / Centro Poblado | K126: Urbana / Rural | L126: Coordenadas geográficas | P126: Altitud (msnm)
D127: Provincia | L127: Latitud | N127: Longitud
G128: =IF(G109="","",G109) ->  | H128: =IF(E109="","",E109) -> 
D129: Distrito | G129: =IF(G110="","",G110) ->  | H129: =IF(E110="","",E110) -> 
G130: =IF(G111="","",G111) ->  | H130: =IF(E111="","",E111) -> 
G131: =IF(G112="","",G112) ->  | H131: =IF(E112="","",E112) -> 
G132: Nota: Si la U.P. del proyecto abarca más de una localización o si el proyecto presenta más de una U.P., se podrán añadir más localizaciones Las coordenadas geográficas deberán ser expresadas en grados con signo negativo por tratarse de la Latitud SUR y la Longitud OESTE
C135: C1.5 Área de estudio y área de influencia.
C137: C1.5.1 | D137: Descripción del área de estudio y/o área de Influencia
D144: Nota: Describir y analizar el área de estudio y/o área de influencia, explicando los criterios para su delimitación según nivel de servicio, el ámbito territorial donde se identificó el problema y a las II.EE alternativas, la procedencia de los alumnos, radio normativo, accesibilidad, información demográfica, etc.
C147: C1.5.2 | D147: Descripción de la población afectada del área de influencia
D153: Nota: Describir y analizar a la población afectada (alumnos matriculados y los niños del área de influencia que no vienen siendo atendidos por otra IE alterna)
C156: C1.5.3 | D156: Localización del ámbito de influencia del proyecto
D158: Ítem | G158: Departamento | I158: Provincia | K158: Distrito | M158: Localidad / Centro Poblado
D169: Nota: Identificar la localización del espacio geográfico de donde proceden los alumnos, se podrá considerar a nivel de distritos o a nivel de localidades o centro poblados. Si el ámbito de influencia del proyecto abarca más de una localización, se podrán añadir más localizaciones.
B171: 1.7 | C171: C1.6 Descripción del Saneamiento Físico Legal
C173: C1.6.1. Información General del Terreno | I173: C1.6.2. | K173: Verificación de antecedentes registrales
C175: Descripción | G175: Terreno 01 | H175: Terreno 02 | J175: ¿Se adjuntan los siguientes documentos? | O175: Terreno 01 | P175: Terreno 02
O176: (Sí/No) | P176: (Sí/No)
C177: Información de la Partida Registral | J177: a). Certificado de Búsqueda Catastral (*)
C178: N° Partida Registral (Ficha/Partida Electrónica/Código de Predio) | J178: b). Copia del título archivado en SUNARP (**)
C179: Oficina Registral | J179: c). Informe de la situación actual del Saneamiento Físico Legal (***)
C180: Área Registrada (m2) | J180: Nota: (*) Para su obtención se debe presentar en la SUNARP el área (polígono geo referenciada en coordenadas UTM) y el plano perimétrico (en AutoCAD). (**) Correspondiente al área inscrita con los asiento de inscripción de dominio de los titulares registrales. (***) La UF emitirá adjuntará un informe de la situación actual del Saneamiento Físico legal del terreno de acuerdo al análisis de documentación revisada por parte algún especialista de DISAFIL u otro que especialista designado por la Entidad, en donde se evidencie que sólo se requiere realizar rectificaciones registrales que se pueden realizar a corto o mediano plazo.
C181: Verificación de Áreas del Levantamiento Topográfico (*)
C182: Área de terreno según Levantamiento Topográfico (m2)
C183: Variación entre el área registrada y el área de Lev. topográfico (m2) | G183: =IF((OR(G182=0,G180=0)),"",G182-G180) ->  | H183: =IF((OR(H182=0,H180=0)),"",H182-H180) -> 
C184: % Variación | G184: =IFERROR(G183/G180,"") ->  | H184: =IFERROR(H183/H180,"") ->  | J184: Análisis de los antecedentes registrales y levantamiento topográfico | O184: (Sí/No)
C185: Información del Registro del Margesí de bienes | J185: ¿MINEDU es el titular registral de todos los predios?
C186: ¿Se encuentra registrado en el Margesí de Bienes Inmuebles del MINEDU? | J186: ¿Las áreas registradas, áreas de levantamiento topográfico y sus linderos de todos los predios son compatibles y/o se encuentran en las tolerancias permisibles?
C187: N° de código de inmueble
C188: Nota: (*) El levantamiento topográfico deberá ser Georreferenciado en coordenadas UTM | J188: Recomendaciones | O188: (Sí/No)
C189: En caso que la IE este constituida por más de 02 terrenos, la UF debe detallarlos en el informe respectivo asociado. | J189: ¿Se requiere realizar rectificaciones registrales y/o arreglos institucionales? | O189: =IF(OR(181="",O186=""),"",IF(AND(O185="Sí",O186="Sí"),"No","Sí")) -> 
J190: ¿Qué Caso de Arreglo Institucional se requiere realizar? | O190: =IF(OR(181="",O186=""),"",IF(O189="No","",IF(O185="Sí","CASO A","CASO B"))) -> 
C192: C1.6.3. Arreglos Institucionales:
C194: Para los predios que sólo requieren rectificaciones registrales de titularidad y/o áreas y linderos, se debe elegir los siguientes casos:
C196: - CASO A: Si se verifica que el(los) predio(s) se encuentra(n) inscrito en Registros Públicos a favor de MINEDU, sin embargo presenta(n) variaciones entre el área registrada y el área de terreno por encima de las tolerancias permisibles, por lo que se requiere realizar rectificación de áreas y linderos, se deberá presentar la siguiente documentación, siempre y cuando la propuesta técnica de arquitectura no se encuentra en parte del terreno que se encuentra en conflicto o pendiente de regularizar:
D198: Predios inscritos o afectados en uso a favor de MINEDU | L198: Terreno 01 (Marcar "X" si corresponde) | N198: Terreno 02 (Marcar "X" si corresponde)
D199: Acta de compromiso de la UEI de gestionar el Saneamiento Físico Legal del Terreno y rectificaciones registrales antes del inicio de la elaboración del Expediente Técnico.
D200: Nota: La UEI se compromete a gestionar ante DISAFIL MINEDU y/o UGEL/DRE la regularización de los documentos del Saneamiento Físico Legal del predio.
C201: - CASO B: Si se verifica que el(los) predio(s) se encuentra(n) inscrito en Registros Públicos a favor de alguna entidad pública, comunidad, etc., diferente al Ministerio de Educación, se deberá acreditar la voluntad del titular registral y/o factibilidad técnica para que dicho predio pueda ser inscrito a favor de MINEDU, para lo cual se deberá presentar la documentación como arreglo institucional general y el arreglo institucional especifico según sea el caso de titular registral.
D204: Predios que no se encuentran inscritos a favor de MINEDU | L204: Terreno 01 (Marcar "X" si corresponde) | N204: Terreno 02 (Marcar "X" si corresponde)
D205: a) Arreglo institucional general (todos los casos)
D206: Acta de compromiso de la UEI de gestionar el Saneamiento Físico Legal del Terreno antes del inicio de la elaboración del Expediente Técnico. (*)
D207: b) Arreglo institucional especifico que se adjunta ( Según el titular registral)
D208: (1) Gobierno Regional: Resolución y/o acuerdo de consejo que aprueba la afectación a favor o transferencia a favor del MINEDU
D209: (2) DRE / UGEL : Acto resolutivo de la entidad que aprueba la afectación o transferencia a favor del MINEDU
D210: (3) Municipalidad: Resolución de alcaldía y/o acuerdo de consejo que aprueba la transferencia o afectación en uso
D211: (4) COFOPRI: Título de propiedad o título de afectación en uso a nombre de MINEDU
D212: (5) Comunidad (**): Acta de trasferencia o cesión en uso a favor del MINEDU, o a favor de una municipalidad, o Gobierno Regional que posteriormente se comprometan a transferirlo a favor de MINEDU.
D213: (6) Áreas de Aportes Normativos: Informe de DISAFIL o DRE (***), en el que se haya verificado que la ocupación de la Institución Educativa se encuentra en un área destinada a un uso distinto a Educación (Por ejemplo aportes obligatorios de habilitaciones urbanas para recreación pública como parques, servicios públicos complementarios como salud, y/o usos comunales, vías, otros fines, etc.) y es factible realizar el proceso de regularización del saneamiento físico legal del terreno a favor de MINEDU
D214: Notas: (*) La UEI se compromete a gestionar ante DISAFIL MINEDU y/o UGEL/DRE la regularización de los documentos del Saneamiento Físico Legal del predio.
D215: (*) La UEI se compromete a gestionar ante DISAFIL MINEDU y/o UGEL/DRE la regularización de los documentos del Saneamiento Físico Legal del predio.
D216: (**) La comunidad está referida a comunidades campesinas o comunidades nativas, por lo que sedeberá cumplir con los requisitos exigidos por la normatividad vigente para este tipo de comunidades
D217: (***) El informe de DISAFIL o DRE, deberá ser tramitado por la entidad que ejecutara el proyecto.
B220: 1.8 | C220: C1.7 Descripción de la Situación Actual de los Servicios Básicos
BM221: En el Local Educativo se cuenta con los servicios
D222: Servicio | E222: "Se cuenta con el servicio en la Localidad / Centro poblado" | G222: "Se cuenta con el servicio en el Local Educativo" | J222: Indicar el Tipo de provisión | N222: Tipo de provisión del Servicio | BN222: En el Local Educativo | BQ222: Marcar con (X) | BR222: "Es tratada"
E223: Marcar con (X) | F223: ¿Es red pública? (Sí o No) | G223: Marcar con (X) | H223: ¿Es red pública? (Sí o No) | J223: (En caso no se cuenta con red pública) | N223: Agua | BO223: Agua | BR223: X | BS223: SI | BU223: Red Publica | BV223: Red Publica
N224: (1) Pozo Propio
D225: Agua | N225: (2) Río, acequia, manantial, etc. | BO225: Alcantarillado
D226: Alcantarillado | N226: (3) Camión Cisterna | BO226: Electricidad
D227: Electricidad | N227: (4) Pilón de uso público (agua potable) | BO227: Telefonía
D228: Telefonía | N228: Alcantarillado | BO228: Internet
D229: Internet | N229: (1) Tanque Séptico/Tanque Imhoff | BO229: Gas Natural
D230: Gas Natural | N230: (2) Pozo Percolador
N231: (3) Zanja de Filtración
N232: (4) Pozo con tratamiento
N233: (5) Pozo sin tratamiento
N234: (6) Río, acequia
B235: 1.8 | C235: C1.8 Descripción de las Características Físicas del Terreno
BL236: En el Local Educativo se cuenta con los servicios
C237: C1.8.1 Información del terreno según Estudio Topográfico o Similar
D239: a) ¿Se adjunta Estudio Topográfico u otro similar? (Si/No) | H239: d) ¿Cuál es la Forma del Terreno? | M239: f) ¿Cuál es el Tipo de Topografía del Terreno? (Marcar con "X" según pendiente en %)
H240: Regular | M240: Llano (pendiente menor a 8%)
H241: Irregular | M241: Inclinado (pendiente mayor al 8% a 25%)
D242: b) ¿El terreno tiene Límites Definidos? (Si/No) | M242: Muy Inclinado (pendiente mayor 25% a 50%)
M243: Accidentado (pendiente mayor a 50%)
H244: e) Indicar las Medidas del Terreno
H245: Área Terreno | M245: g) Indicar las Coordenadas UTM
D246: c) ¿El terreno tiene Cerco Perimétrico? (Si/No) | H246: Área Terreno Útil (*) | M246: X
H247: Perímetro de Terreno | M247: Y
H248: (*) Se considera como la diferencia entre el área del terreno total menos el área de terreno que no se puede utilizar como infraestructura educativa (por ejemplo en pendientes muy inclinadas o accidentadas, terrenos inadecuados, etc.)
H250: En caso la IE este conformada por más de un terreno, el área de terreno útil debe ser la suma del área disponible para la ejecución de edificaciones o espacios en conjunto.
C251: C1.8.2 Información del terreno según Informe Técnico Preliminar de Mecánicas de Suelos o Similar:
D253: a) ¿Se Adjunta el Informe Técnico Preliminar de Mecánicas de Suelos o Similar? | H253: d) ¿Cuál es el Tipo de Suelo? | M253: e) Indicar el Nombre del profesional responsable | P253: Nro. CIP
H254: Grava y suelos gravosos
H255: Arena y suelos arenosos
D256: b) Indicar la Capacidad portante del terreno (kg/cm2) | H256: Limos y Arcilla (baja plasticidad)
H257: Limos y Arcilla (alta plasticidad)
D258: c) Indicar la Profundidad del Nivel Freático (m) | H258: Suelos Altamente Orgánicos
B261: 1.8 | C261: C1.9 Situación Actual del Local Educativo:
C264: C1.9.1 Descripción de las Condiciones de la Infraestructura Existente
D266: ARQUITECTURA
D269: ESTRUCTURAS
D270: INSTALACIONES ELÉCTRICAS
D271: INSTALACIONES SANITARIAS
D272: Nota: Describir de forma resumida las condiciones de cada una de las especialidades de la Infraestructura de la Institución educativa a nivel general, según el informe de diagnóstico adjunto, en la que se debe explicar y justificar las intervenciones en los Edificaciones y obras exteriores, y los tipos de intervenciones y los análisis correspondientes de estructuras, arquitectura (confort, tamaño, ventilación, zonificación, etc.), sanitarias y eléctricas.
C274: C1.9.2 Diagnóstico de los Activos Estratégicos Existentes de Infraestructura en Edificaciones
D276: Activos (Edificaciones) | G276: Total de activos existentes | I276: Nro. Activos que NO requieren Intervención (i) | J276: Nro. Activos que requieren Intervención (ii) | M276: Nro. Activos que se requieren Demoler (iii) | N276: Comentario
J277: Reforzar | K277: Remodelar | L277: Rehabilitar
D278: AMBIENTES BÁSICOS DEL NIVEL INICIAL
D279: Aula de Educación Inicial | S279: =IF(G279=SUM(I279:M279),"","Verificar (no coincide con el total)") -> 
D280: Sala de Psicomotricidad | S280: =IF(G280=SUM(I280:M280),"","Verificar (no coincide con el total)") -> 
D281: Sala de Usos Múltiples
D282: AMBIENTES BÁSICOS DEL NIVEL PRIMARIA
D283: Aula de Educación Primaria
D284: Aula de Innovación Pedagógica
D285: Laboratorios y/o Talleres
D286: Biblioteca Escolar
D287: Auditorio
D288: Sala de Usos Múltiples
D289: AMBIENTES BÁSICOS DEL NIVEL SECUNDARIO
D290: Aula de Educación Secundaria
D291: Aula de Innovación Pedagógica
D292: Laboratorios y/o Talleres
D293: Biblioteca Escolar
... 502 more rows

Sheet Anexo 1. Registro de C.U
A1: =+FICHA!B2 -> FICHA TÉCNICA ESTÁNDAR PARA EL MEJORAMIENTO, AMPLIACIÓN Y/O RECUPERACIÓN DE LOS SERVICIOS DE EDUCACIÓN INICIAL, PRIMARIA Y SECUNDARIA DEL SECTOR EDUCACIÓN ( Es válido también como Ficha Técnica Simplificada.)
A3: =+FICHA!B4 -> Aplica a montos menor o igual a 15,000 UIT - La información registrada en esta ficha tiene carácter de Declaración Jurada - DS. N° 284-2018-EF
B5: ANEXO 01: COSTOS REFERENCIALES | H5: VALIDACIÓN | I5: =IF(AND(D18="",I15="",I17="",E54="",G54=""),"OK","FALTA CORREGIR") -> OK
B7: COSTOS UNITARIOS DE ACTIVOS ESTRATÉGICOS DE EBR
B8: 1 | C8: =+B8+1 -> 2 | D8: =+C8+1 -> 3 | E8: 4 | F8: 5 | G8: 6 | H8: 7 | I8: 8 | J8: 9 | K8: 10 | L8: 11 | M8: 12 | N8: 13 | O8: 14 | P8: 15 | Q8: 16 | R8: 17 | S8: 18 | T8: 19 | U8: 20 | V8: 21 | W8: 22 | X8: 23 | Y8: 24 | Z8: 25
H10: Fecha de actualización de los costos unitarios referenciales
B11: INDICAR LA FUENTE DE LOS COSTOS ASUMIDOS POR LA UNIDAD FORMULADORA (Marcar con "X")
B13: CASO 1: COSTOS REFERENCIALES PRONIED (Sin corrección) | D13: X
B15: CASO 2: COSTOS REFERENCIALES PRONIED (Corregidos) | F15: %CORRECCIÓN | I15: =IF(AND(D15="",G15=0),"",(IF(AND(D15="X",G15>0),"","error: modificar %corrección"))) -> 
G16: (Ejemplo: Incremento de costos debido a la ubicación del proyecto, distancia a la obra, caracteristicas del suelo, condiciones climáticas, condiciones topográficas, etc.)
B17: CASO 3: OTROS COSTOS REFERENCIALES (sólo costo directo) | F17: FUENTE | I17: =IF(D17="X",IF(G17="","error: Falta Indicar Fuente",""),"") -> 
D18: =IF(COUNTIF(D13:D17,"X")=0,"Elegir una opción",IF(COUNTIF(D13:D17,"X")>1,"Corregir: considerar solo una X","")) ->  | G18: (Ejemplo: Ratios de la entidad, ratios del presupuesto de obra, etc)
B20: ACTIVOS ESTRATÉGICOS DE INFRAESTRUCTURA | C20: UNIDAD FÍSICA | D20: UM | E20: PARTE A: COSTOS REFERENCIALES | H20: PARTE B: COSTOS ASUMIDOS POR LA UF | I20: JUSTIFICACIÓN VARIACIONES (Según consideraciones de distancia, características de suelo, condiciones climáticas y/o topográficas, etc.) | L20: Activos Estratégicos de Mobiliario | N20: und | P20: Activos Estratégicos de Equipamiento | R20: und | S20: Esencial
E21: Costo Referenciales PRONIED Caso 1 o Caso 2 | G21: Otros Costos Referenciales Caso 3
E22: =IF(AND($D$13="",$D$15=""),"No considerar","INGRESAR: Costos Unitarios Total (CD+GGyU+IGV)") -> INGRESAR: Costos Unitarios Total (CD+GGyU+IGV) | F22: =IF(E22="No considerar","","Costo Unitario Directo (Corregido)") -> Costo Unitario Directo (Corregido) | G22: =IF(D17="X","INGRESAR: Otro Costo Directo (no incluir GG,U,IGV)","No considerar") -> No considerar | H22: Costo Unitario Directo Asumido
A23: 1 | B23: Aula de Educación Inicial | C23: aulas | D23: m2 | F23: =IF(E23="",0,IF($D$15="X",(E23/1.2/1.18)*(1+$G$15),(E23/1.2/1.18))) -> 0 | H23: =IFERROR(ROUND(IF($D$18="",IF(OR($D$13="X",$D$15="X"),F23,IF($D$17="","",G23)),"error"),2),"") -> 0 | L23: ="Mobiliario de "&B23 -> Mobiliario de Aula de Educación Inicial | N23: und | P23: ="Equipo de "&B23 -> Equipo de Aula de Educación Inicial | R23: und | S23: und | T23: 01 | V23: =L23 -> Mobiliario de Aula de Educación Inicial | X23: m1 | Z23: Aula de Inicial
A24: 2 | B24: Aula de Educación Primaria | C24: aulas | D24: m2 | F24: =IF(E24="",0,IF($D$15="X",(E24/1.2/1.18)*(1+$G$15),(E24/1.2/1.18))) -> 0 | H24: 0 | L24: ="Mobiliario de "&B24 -> Mobiliario de Aula de Educación Primaria | N24: und | P24: ="Equipo de "&B24 -> Equipo de Aula de Educación Primaria | R24: und | S24: und | T24: 02 | V24: Mobiliario de Aula de Educación Primaria | X24: m2 | Z24: Aula de Primaria
A25: 3 | B25: Aula de Educación Secundaria | C25: aulas | D25: m2 | F25: 0 | H25: 0 | L25: ="Mobiliario de "&B25 -> Mobiliario de Aula de Educación Secundaria | N25: und | P25: ="Equipo de "&B25 -> Equipo de Aula de Educación Secundaria | R25: und | S25: und | T25: 03 | V25: Mobiliario de Aula de Educación Secundaria | X25: m3 | Z25: Aula de Secundaria
A26: 4 | B26: Sala de Psicomotricidad | C26: ambientes | D26: m2 | F26: 0 | H26: 0 | L26: ="Mobiliario de "&B26 -> Mobiliario de Sala de Psicomotricidad | N26: und | P26: ="Equipo de "&B26 -> Equipo de Sala de Psicomotricidad | R26: und | S26: und | T26: 04 | V26: Mobiliario de Sala de Psicomotricidad | X26: m4 | Z26: Psicomotricidad
A27: 5 | B27: Aula de Innovación Pedagógica | C27: ambientes | D27: m2 | F27: 0 | H27: 0 | L27: ="Mobiliario de "&B27 -> Mobiliario de Aula de Innovación Pedagógica | N27: und | P27: ="Equipo de "&B27 -> Equipo de Aula de Innovación Pedagógica | R27: und | S27: und | T27: 05 | V27: Mobiliario de Aula de Innovación Pedagógica | X27: m5 | Z27: AIP
A28: 6 | B28: Laboratorios y/o Talleres (Taller liviano) | C28: ambientes | D28: m2 | F28: 0 | H28: 0 | L28: Mobiliario de Laboratorios y/o Talleres | N28: und | P28: Equipo de Laboratorios y/o Talleres | R28: und | S28: und | T28: 06 | V28: Mobiliario de Laboratorios y/o Talleres | X28: m6 | Z28: Laboratorios y/o Talleres
A29: 6 | B29: Laboratorios y/o Talleres (Laboratorio y/o taller pesado) | C29: ambientes | D29: m2 | F29: 0 | H29: 0 | L29: Mobiliario de Laboratorios y/o Talleres | N29: und | P29: Equipo de Laboratorios y/o Talleres | R29: und | S29: und | T29: 06 | V29: =L29 -> Mobiliario de Laboratorios y/o Talleres | X29: m6 | Z29: Laboratorios y/o Talleres
A30: 6 | B30: Laboratorios y/o Talleres | C30: ambientes | D30: m2 | F30: =IF(E30="",0,IF($D$15="X",(E30/1.2/1.18)*(1+$G$15),(E30/1.2/1.18))) -> 0 | H30: 0 | L30: Mobiliario de Laboratorios y/o Talleres | N30: und | P30: Equipamiento de Laboratorios y/o Talleres | R30: und | S30: und | T30: 06 | V30: =L30 -> Mobiliario de Laboratorios y/o Talleres | X30: m6 | Z30: Laboratorios y/o Talleres
A31: 7 | B31: Biblioteca Escolar | C31: ambientes | D31: m2 | F31: 0 | H31: 0 | L31: Mobiliario de Ambientes Complementarios | N31: und | P31: Equipo de Ambientes Complementarios | R31: und | S31: und | T31: 07 | V31: Mobiliario de Ambientes Complementarios | X31: m7 | Z31: Amb. Complementarios
A32: 8 | B32: Auditorio | C32: ambientes | D32: m2 | F32: 0 | H32: 0 | L32: Mobiliario de Ambientes Complementarios | N32: und | P32: Equipo de Ambientes Complementarios | R32: und | S32: und | T32: 08
A33: 9 | B33: Sala de Usos Múltiples | C33: ambientes | D33: m2 | F33: 0 | H33: 0 | L33: Mobiliario de Ambientes Complementarios | N33: und | P33: Equipo de Ambientes Complementarios | R33: und | S33: und | T33: 09 | V33: =P23 -> Equipo de Aula de Educación Inicial | X33: n1
A34: 10 | B34: Espacios de circulación interior | C34: espacios fisicos | D34: m2 | F34: 0 | H34: 0 | L34: Mobiliario de Ambientes Complementarios | N34: und | P34: Equipo de Ambientes Complementarios | R34: und | S34: und | T34: 10 | V34: =P24 -> Equipo de Aula de Educación Primaria | X34: n2
A35: 10 | B35: Espacios de circulación interior (escalera) | C35: espacios fisicos | D35: m2 | F35: 0 | H35: 0 | L35: Mobiliario de Ambientes Complementarios | N35: und | P35: Equipo de Ambientes Complementarios | R35: und | S35: und | T35: 10 | V35: =P25 -> Equipo de Aula de Educación Secundaria | X35: n3
A36: 10 | B36: Espacios de circulación interior (rampa) | C36: espacios fisicos | D36: m2 | F36: 0 | H36: 0 | L36: Mobiliario de Ambientes Complementarios | N36: und | P36: Equipo de Ambientes Complementarios | R36: und | S36: und | T36: 10 | V36: =P26 -> Equipo de Sala de Psicomotricidad | X36: n4
A37: 13 | B37: Ambiente de Administración y/o Gestión Pedagógica | C37: ambientes | D37: m2 | F37: 0 | H37: 0 | L37: Mobiliario de Ambientes Complementarios | N37: und | P37: Equipo de Ambientes Complementarios | R37: und | S37: und | T37: 11 | V37: =+P27 -> Equipo de Aula de Innovación Pedagógica | X37: n5
A38: 14 | B38: Ambiente de preparación y expendio de alimentos | C38: ambientes | D38: m2 | F38: 0 | H38: 0 | L38: Mobiliario de Ambientes Complementarios | N38: und | P38: Equipo de Ambientes Complementarios | R38: und | S38: und | T38: 12 | V38: =+P28 -> Equipo de Laboratorios y/o Talleres | X38: n6
A39: 15 | B39: Ambientes de Servicios Generales | C39: ambientes | D39: m2 | F39: 0 | H39: 0 | L39: Mobiliario de Ambientes Complementarios | N39: und | P39: Equipo de Ambientes Complementarios | R39: und | S39: und | T39: 13 | V39: =+P31 -> Equipo de Ambientes Complementarios | X39: n7
A40: 16 | B40: Depósito | C40: ambientes | D40: m2 | F40: 0 | H40: 0 | L40: Mobiliario de Ambientes Complementarios | N40: und | P40: Equipo de Ambientes Complementarios | R40: und | S40: und | T40: 14
A41: 17 | B41: Ambiente de Residencia | C41: ambientes | D41: m2 | F41: 0 | H41: 0 | L41: Mobiliario de Ambientes Complementarios | N41: und | P41: Equipo de Ambientes Complementarios | R41: und | S41: und | T41: 15
A42: 18 | B42: SS.HH. y/o Vestidores (SS.HH.) | C42: ambientes | D42: m2 | F42: 0 | H42: =IFERROR(ROUND(IF($D$18="",IF(OR($D$13="X",$D$15="X"),F42,IF($D$17="","",G42)),"error"),4),"") -> 0 | L42: Mobiliario de Ambientes Complementarios | N42: und | P42: Equipo de Ambientes Complementarios | R42: und | S42: und | T42: 16
A43: 18 | B43: SS.HH. y/o Vestidores (vestidores) | C43: ambientes | D43: m2 | F43: 0 | H43: =IFERROR(ROUND(IF($D$18="",IF(OR($D$13="X",$D$15="X"),F43,IF($D$17="","",G43)),"error"),4),"") -> 0 | L43: Mobiliario de Ambientes Complementarios | N43: und | P43: Equipo de Ambientes Complementarios | R43: und | S43: und | T43: 16
A44: 18 | B44: SS.HH. y/o Vestidores | C44: ambientes | D44: m2 | H44: =IF(F44="","",F44*(1+$I$21)) ->  | L44: Mobiliario de Ambientes Complementarios | N44: und | P44: Equipamiento de Ambientes Complementarios | R44: und | S44: und | T44: 16
A45: 21 | B45: Cercos y/o Portadas | C45: estructuras físicas | D45: ml | E45: Los costos son variados - se analizarán para cada caso | L45: Mobiliario de Ambientes Complementarios | N45: und | P45: Equipamiento de Ambientes Complementarios | R45: und | S45: und | T45: 17
A46: 22 | B46: Muro de contención | C46: estructuras físicas | D46: ml | E46: Los costos son variados - se analizarán para cada caso | L46: Mobiliario de Ambientes Complementarios | N46: und | P46: Equipamiento de Ambientes Complementarios | R46: und | S46: und | T46: 18
A47: 22 | B47: Espacios Deportivos - sin cobertura | C47: espacios físicos | D47: m2 | E47: Los costos son variados - se analizarán para cada caso | L47: Mobiliario de Ambientes Complementarios | N47: und | P47: Equipamiento de Ambientes Complementarios | R47: und | S47: und | T47: 19
A48: 22 | B48: Espacios Deportivos - con cobertura | C48: espacios físicos | D48: m2 | E48: Los costos son variados - se analizarán para cada caso | L48: Mobiliario de Ambientes Complementarios | N48: und | P48: Equipamiento de Ambientes Complementarios | R48: und | S48: und | T48: 20
A49: 22 | B49: Espacios Exteriores | C49: espacios físicos | D49: m2 | E49: Los costos son variados - se analizarán para cada caso | L49: Mobiliario de Ambientes Complementarios | N49: und | P49: Equipamiento de Ambientes Complementarios | R49: und | S49: und | T49: 21
A50: 22 | B50: Instalaciones exteriores de Servicios Básicos | C50: estructuras físicas | D50: m2 | E50: Los costos son variados - se analizarán para cada caso | L50: Mobiliario de Ambientes Complementarios | N50: und | P50: Equipamiento de Ambientes Complementarios | R50: und | S50: und | T50: 22
A51: 28 | B51: Otras acciones de infraestructura | C51: espacios | D51: m2 | L51: Mobiliario de Ambientes Complementarios | N51: und | P51: Equipamiento de Ambientes Complementarios | R51: und | S51: und | T51: 23
A52: 29 | B52: Otras acciones de mobiliario | T52: 24
A53: 30 | B53: Otras acciones de equipamiento | T53: 25
B54: * Los Costos Unitarios (PU) incluyen costos directo e indirectos (incluye %GG, %U y % IGV) | E54: =IF(E22="No considerar",IF(SUM(E23:E53)>0,"Error:borrar costos",""),"") ->  | G54: =IF(G22="No considerar",IF(SUM(G23:G53)>0,"Error:borrar costos",""),IF(SUM(G23:G53)=0,"Error: Falta Ingresar Costos","")) -> 
B56: Caso 1: Costo Referencial PRONIED (Sin corrección): Se recomienda utilizar los precios unitarios considerados por la Unidad Gerencial de Estudios y Obras de PRONIED para la formulación de proyectos de inversión, actualizados a una fecha determinada, en el enlace https://www.pronied.gob.pe/servicios/estudios-y-obras/modelo-de-expediente-tecnico/ , en este link se encuentran los precios unitarios referenciales que corresponden a los Módulos de Costa e incluyen los costos directos y los costos indirectos como gastos generales (10%), utilidad (10%) e IGV (18%). En éste caso se considera que no se tiene variacion con respecto al costo referencial por lo que el % corrección debe ser igual a cero. Caso 2: Costo Referencial PRONIED (Corregido): Se considera los costos referenciales en caso con las consideraciones de los costos de PRONIED, caso contrario, en caso la UF considere que se tiene otras condiciones, se podrá asumir costos unitarios diferentes a los referenciales. Para lo cual se deberá indicar la Justificación al porcentaje de variación del precio por m2, por ejemplo según las siguientes consideraciones: • Distancia a la Obra: En localidades alejadas y/o sin vías de comunicación, se puede tener variaciones de costos por la incorporación del costos de flete (aéreo, terrestre, fluvial, acémilas, etc). • Características del suelo: En terrenos que tengan baja capacidad portante del terreno que implica una variación en el dimensionamiento y profundidad de las cimentaciones de la estructura, etc. • Condiciones climáticas: Incremento de acondicionamiento térmico o acabados especiales en los ambientes, etc. • Condiciones topográficas: En terrenos que tengan una pendiente significativa, se puede requerir que en las edificaciones se consideren sobrecimientos armados de mayor altura, muros de contención, mayor movimiento masivo de tierras, mayor eliminación de material excedente, etc. • Modalidad de Ejecución: En obras por administración directa (no se considera utilidad), y en caso se trate de obras por contrata en donde los costos indirectos sean diferentes a los establecidos en los precios unitarios referenciales, deberá presentarse el sustento correspondiente de manera desagregada. Caso 3: Otros Costos Referenciales: En caso se asuma costos unitarios diferentes a los referenciales, se deberá anexar en el informe de propuesta técnico, una descripción de los costos asumidos, con las justificaciones, cotizaciones de los principales insumos de construcción considerados (cemento, ladrillo, fierro, agregados, etc.) y presentar dos o tres proformas de estos precios de la zona urbana donde de comprarán dichos materiales, debiendo determinarse las diferencias con los precios de los costos referenciales, describir la ruta por donde van a ser trasladados estos materiales, determinando si son tramos de carretera, trocha o herradura, y, a partir de estos datos se estimarían de manera aproximada los costos correspondientes a flete, Identificar las posibles canteras para la obtención de agregados (arena, piedra) y los costos de traslado por m3 (en caso no se compre material agregado en alguna distribuidora), etc. En caso que para el análisis del presupuesto de obra se ha usado un software de presupuestos (hoja presupuestal donde se hallan considerado costos unitarios a nivel de partidas especificas), es necesario que se especifique el procedimiento utilizado para pasar de la estimación de costos unitarios por partidas específicadas en el proyecto a la estimación de los precios unitarios por activos estratégicos. El tema de costos se debe coordinar con la UE de tu entidad para tomar en cuenta las experiencias con proyectos similares ejecutados anteriormente.

Sheet Anexo 2. Presup. Infraestruct.
A1: =+FICHA!B2 -> FICHA TÉCNICA ESTÁNDAR PARA EL MEJORAMIENTO, AMPLIACIÓN Y/O RECUPERACIÓN DE LOS SERVICIOS DE EDUCACIÓN INICIAL, PRIMARIA Y SECUNDARIA DEL SECTOR EDUCACIÓN ( Es válido también como Ficha Técnica Simplificada.)
A2: =+FICHA!B3 -> 0
A3: =+FICHA!B4 -> Aplica a montos menor o igual a 15,000 UIT - La información registrada en esta ficha tiene carácter de Declaración Jurada - DS. N° 284-2018-EF
A5: ANEXO 02: PRESUPUESTO DE INFRAESTRUCTURA
B7: Para los proyectos de Educación Básica Regular, el presupuesto de infraestructura se estima de acuerdo a la propuesta técnica y planteamiento arquitectónico, en donde se propone la infraestructura para atender la demanda total de cada uno de los niveles educativos requeridos en función a la cantidad de aulas requeridas de acuerdo al análisis realizado en el ítem c4.5 Análisis Técnico del Tamaño del Proyecto (Estimación de Aulas) de la FTE y al cumplimiento del requerimiento de ambientes básicos y complementarios según Normas Técnicas vigentes del Sector . En el presente anexo, se estima el presupuesto requerido para lo cual se debe cumplir con los siguientes pasos: • Paso 1: Plano de planta de propuesta general de arquitectura: • Paso 2: Información del terreno y las edificaciones: • Paso 3: Propuesta técnica de edificaciones. • Paso 4: Verificación de Cantidad de Aulas de la Propuesta Técnica de Edificación • Paso 5: Propuesta Técnica de Obras Exteriores • Paso 6: Estimación de Otros Costos • Paso 7: Estimación de Costos de Obras de Contingencia • Paso 8: Información de los Costos Indirectos • Paso 9: Resumen General del Presupuesto de Infraestructura + Mobiliario y Equipamiento • Paso 10: Verificación Final y Actualización de Información • Paso 11: Estimación de ratios de edificaciones
A10: A) Descripción General de Características de las Edificaciones y obras exteriores
A12: PASO 1: PLANO DE PLANTA DE PROPUESTA GENERAL DE ARQUITECTURA | L12: PASO 2. INFORMACIÓN DEL TERRENO Y LAS EDIFICACIONES
L13: TERRENO
L15: a). Área de Terreno Útil (m2): | O15: =+FICHA!J246 -> 0
L16: Nota: Se considera lo mismo que lo indicado en el Ítem C1.8.1 de la Ficha
L17: EDIFICACIONES
L19: b). Indicar el Nro. de Edificaciones:
L21: c). Indicar el detalle de cada una de las edificaciones:
L22: N° de edificación | M22: N° de pisos | N22: Niveles Educativos | O22: Nombre de Edificación (Especificar)
L23: 1
L24: =IF(L23>=$O$19,"",L23+1) -> 
A43: Nota: Indicar en el plano la ubicación y la numeración de cada una de las edificaciones en forma ordenada en sentido anti horario desde la puerta de ingreso | L43: OBRAS EXTERIORES | M43: OTROS
L44: OE | M44: Obras Exteriores (Cerco perimétrico y Muros de contención, Espacios Deportivos con/sin cobertura, Espacios Exteriores y Instalaciones Exteriores de Servicios Básicos)
L45: Nota: Registrar los datos de las Edificaciones identificadas en el plano.
A47: B) Lista de Activos Estratégicos de Infraestructura
B49: =+'Anexo 1. Registro de C.U'!B20 -> ACTIVOS ESTRATÉGICOS DE INFRAESTRUCTURA | H49: =+B49 -> ACTIVOS ESTRATÉGICOS DE INFRAESTRUCTURA | N49: =+H49 -> ACTIVOS ESTRATÉGICOS DE INFRAESTRUCTURA
B50: Edificaciones | H50: Edificaciones | N50: Obras exteriores
B51: =+'Anexo 1. Registro de C.U'!B23 -> Aula de Educación Inicial | F51: =+'Anexo 1. Registro de C.U'!C23 -> aulas | H51: =+'Anexo 1. Registro de C.U'!B33 -> Sala de Usos Múltiples | K51: =+'Anexo 1. Registro de C.U'!C33 -> ambientes
B52: =+'Anexo 1. Registro de C.U'!B24 -> Aula de Educación Primaria | F52: =+'Anexo 1. Registro de C.U'!C24 -> aulas | H52: =+'Anexo 1. Registro de C.U'!B34 -> Espacios de circulación interior | K52: espacios físicos | N52: Cercos y/o Portadas | Q52: estructuras físicas
B53: =+'Anexo 1. Registro de C.U'!B25 -> Aula de Educación Secundaria | F53: =+'Anexo 1. Registro de C.U'!C25 -> aulas | H53: =+'Anexo 1. Registro de C.U'!B37 -> Ambiente de Administración y/o Gestión Pedagógica | K53: =+'Anexo 1. Registro de C.U'!C37 -> ambientes | N53: Muro de contención | Q53: estructuras físicas
B54: =+'Anexo 1. Registro de C.U'!B26 -> Sala de Psicomotricidad | F54: =+'Anexo 1. Registro de C.U'!C26 -> ambientes | H54: =+'Anexo 1. Registro de C.U'!B38 -> Ambiente de preparación y expendio de alimentos | K54: =+'Anexo 1. Registro de C.U'!C38 -> ambientes | N54: Espacios Deportivos - sin cobertura | Q54: espacios físicos
B55: =+'Anexo 1. Registro de C.U'!B27 -> Aula de Innovación Pedagógica | F55: =+'Anexo 1. Registro de C.U'!C27 -> ambientes | H55: =+'Anexo 1. Registro de C.U'!B39 -> Ambientes de Servicios Generales | K55: =+'Anexo 1. Registro de C.U'!C39 -> ambientes | N55: Espacios Deportivos - con cobertura | Q55: espacios físicos
B56: Laboratorios y/o Talleres | F56: =+'Anexo 1. Registro de C.U'!C28 -> ambientes | H56: =+'Anexo 1. Registro de C.U'!B40 -> Depósito | K56: =+'Anexo 1. Registro de C.U'!C40 -> ambientes | N56: Espacios Exteriores | Q56: espacios físicos
B57: =+'Anexo 1. Registro de C.U'!B31 -> Biblioteca Escolar | F57: =+'Anexo 1. Registro de C.U'!C31 -> ambientes | H57: =+'Anexo 1. Registro de C.U'!B41 -> Ambiente de Residencia | K57: =+'Anexo 1. Registro de C.U'!C41 -> ambientes | N57: Instalaciones exteriores de Servicios Básicos | Q57: estructuras físicas
B58: =+'Anexo 1. Registro de C.U'!B32 -> Auditorio | F58: =+'Anexo 1. Registro de C.U'!C32 -> ambientes | H58: =+'Anexo 1. Registro de C.U'!B44 -> SS.HH. y/o Vestidores | K58: =+'Anexo 1. Registro de C.U'!C44 -> ambientes
A60: C) Programa Arquitectónico y estimación de costos del Proyecto de Inversión
B62: PASO 3: PROPUESTA TÉCNICA DE EDIFICACIONES
B66: PARTE A: Información del Programa Arquitectónico y los Activos Estratégicos de Infraestructura | M66: PARTE B: Estimación de Presupuesto de Edificaciones Resultados de costos parciales y acumulados
B67: ÍTEM (ambiente) | C67: N° de edificación | D67: Nº de piso | E67: Naturaleza de Acción (1) construcción (2) reforzamiento (3) remodelación (4) rehabilitación integral (5) rehabilitación parcial | F67: Nombre de ambiente (especificar por cada uno ) | H67: Metrado | I67: Und. | J67: Activo Estratégico | L67: Niveles Educativos (I) Inicial (P) Primaria (S) Secundaria | M67: =+'Anexo 1. Registro de C.U'!H22 -> Costo Unitario Directo Asumido | N67: INCIDENCIA POR NATURALEZA DE ACCIÓN | O67: COSTO PARCIAL | P67: % INCIDENCIA DEL ÁREA | Q67: COSTO DIRECTO ACUMULADO DE EDIFICACIONES | T67: NATURALEZA + ACTIVOS ESTRATÉGICOS | V67: DIFERENCIA DE COSTO ACUMULADO (COL Q) Y COSTO PARCIAL (COL O) | X67: Cantidad | Y67: Costo a precio de mercado
M68: (Verificar en Anexo 01) | N68: (%) | O68: (Intervención en el AE) | P68: (Según metrados) | Q68: (Intervención en el AE + Otros Costos)
T69: ACTIVOS
B70: =IFERROR(IF(SUM(C70:L70)=0," ",1),"") ->  | I70: =IF(J70="","",VLOOKUP(J70,'Anexo 1. Registro de C.U'!$B$23:$D$46,3,FALSE)) ->  | M70: =IFERROR(IF(J70="","",(VLOOKUP(J70,'Anexo 1. Registro de C.U'!$B$23:$P$51,7,FALSE))),"") ->  | N70: =IFERROR(IF(M70="","",1/E70),"") ->  | O70: =IFERROR(IF(J70="","",ROUND(H70*M70*N70,2)),"") ->  | P70: =IF(H70="","",H70/SUM($H$70:$H$572)) ->  | Q70: =IFERROR(ROUND($O70+($P70*$H$737),2),0) -> 0 | T70: =IF(J70="","",IF(OR((J70="Espacios de circulación interior (escalera)"),(J70="Espacios de circulación interior (rampa)")),E70&"Espacios de circulación interior",IF(OR((J70="SS.HH. y/o Vestidores (SS.HH.)"),(J70="SS.HH. y/o Vestidores (vestidores)")),E70&"SS.HH. y/o Vestidores",IF(OR((J70="Laboratorios y/o Talleres (Taller liviano)"),(J70="Laboratorios y/o Talleres (Laboratorio y/o taller pesado)")),E70&"Laboratorios y/o Talleres",E70&J70)))) ->  | V70: =IFERROR(Q70-O70,"") ->  | X70: =+H70 -> 0 | Y70: =+Q70 -> 0
B71: =IFERROR(IF(SUM(C71:L71)=0," ",COUNT($B$70:B70)+1),"") ->  | I71: =IF(J71="","",VLOOKUP(J71,'Anexo 1. Registro de C.U'!$B$23:$D$46,3,FALSE)) ->  | M71: =IFERROR(IF(J71="","",(VLOOKUP(J71,'Anexo 1. Registro de C.U'!$B$23:$P$51,7,FALSE))),"") ->  | N71: =IFERROR(IF(M71="","",1/E71),"") ->  | Q71: 0 | X71: 0 | Y71: 0
B72: =IFERROR(IF(SUM(C72:L72)=0," ",COUNT($B$70:B71)+1),"") ->  | I72: =IF(J72="","",VLOOKUP(J72,'Anexo 1. Registro de C.U'!$B$23:$D$46,3,FALSE)) ->  | M72: =IFERROR(IF(J72="","",(VLOOKUP(J72,'Anexo 1. Registro de C.U'!$B$23:$P$51,7,FALSE))),"") ->  | Q72: 0 | X72: 0 | Y72: 0
B73: =IFERROR(IF(SUM(C73:L73)=0," ",COUNT($B$70:B72)+1),"") ->  | I73: =IF(J73="","",VLOOKUP(J73,'Anexo 1. Registro de C.U'!$B$23:$D$46,3,FALSE)) ->  | M73: =IFERROR(IF(J73="","",(VLOOKUP(J73,'Anexo 1. Registro de C.U'!$B$23:$P$51,7,FALSE))),"") ->  | Q73: 0 | X73: 0 | Y73: 0
B74: =IFERROR(IF(SUM(C74:L74)=0," ",COUNT($B$70:B73)+1),"") ->  | I74: =IF(J74="","",VLOOKUP(J74,'Anexo 1. Registro de C.U'!$B$23:$D$46,3,FALSE)) ->  | M74: =IFERROR(IF(J74="","",(VLOOKUP(J74,'Anexo 1. Registro de C.U'!$B$23:$P$51,7,FALSE))),"") ->  | Q74: 0 | X74: 0 | Y74: 0
B75: =IFERROR(IF(SUM(C75:L75)=0," ",COUNT($B$70:B74)+1),"") ->  | I75: =IF(J75="","",VLOOKUP(J75,'Anexo 1. Registro de C.U'!$B$23:$D$46,3,FALSE)) ->  | M75: =IFERROR(IF(J75="","",(VLOOKUP(J75,'Anexo 1. Registro de C.U'!$B$23:$P$51,7,FALSE))),"") ->  | Q75: 0 | X75: 0 | Y75: 0
B76: =IFERROR(IF(SUM(C76:L76)=0," ",COUNT($B$70:B75)+1),"") ->  | I76: =IF(J76="","",VLOOKUP(J76,'Anexo 1. Registro de C.U'!$B$23:$D$46,3,FALSE)) ->  | M76: =IFERROR(IF(J76="","",(VLOOKUP(J76,'Anexo 1. Registro de C.U'!$B$23:$P$51,7,FALSE))),"") ->  | Q76: 0 | X76: 0 | Y76: 0
B77: =IFERROR(IF(SUM(C77:L77)=0," ",COUNT($B$70:B76)+1),"") ->  | I77: =IF(J77="","",VLOOKUP(J77,'Anexo 1. Registro de C.U'!$B$23:$D$46,3,FALSE)) ->  | M77: =IFERROR(IF(J77="","",(VLOOKUP(J77,'Anexo 1. Registro de C.U'!$B$23:$P$51,7,FALSE))),"") ->  | Q77: 0 | X77: 0 | Y77: 0
B78: =IFERROR(IF(SUM(C78:L78)=0," ",COUNT($B$70:B77)+1),"") ->  | I78: =IF(J78="","",VLOOKUP(J78,'Anexo 1. Registro de C.U'!$B$23:$D$46,3,FALSE)) ->  | M78: =IFERROR(IF(J78="","",(VLOOKUP(J78,'Anexo 1. Registro de C.U'!$B$23:$P$51,7,FALSE))),"") ->  | Q78: 0 | X78: 0 | Y78: 0
B79: =IFERROR(IF(SUM(C79:L79)=0," ",COUNT($B$70:B78)+1),"") ->  | I79: =IF(J79="","",VLOOKUP(J79,'Anexo 1. Registro de C.U'!$B$23:$D$46,3,FALSE)) ->  | M79: =IFERROR(IF(J79="","",(VLOOKUP(J79,'Anexo 1. Registro de C.U'!$B$23:$P$51,7,FALSE))),"") ->  | Q79: 0 | X79: 0 | Y79: 0
B80: =IFERROR(IF(SUM(C80:L80)=0," ",COUNT($B$70:B79)+1),"") ->  | I80: =IF(J80="","",VLOOKUP(J80,'Anexo 1. Registro de C.U'!$B$23:$D$46,3,FALSE)) ->  | M80: =IFERROR(IF(J80="","",(VLOOKUP(J80,'Anexo 1. Registro de C.U'!$B$23:$P$51,7,FALSE))),"") ->  | Q80: 0 | X80: 0 | Y80: 0
B81: =IFERROR(IF(SUM(C81:L81)=0," ",COUNT($B$70:B80)+1),"") ->  | I81: =IF(J81="","",VLOOKUP(J81,'Anexo 1. Registro de C.U'!$B$23:$D$46,3,FALSE)) ->  | M81: =IFERROR(IF(J81="","",(VLOOKUP(J81,'Anexo 1. Registro de C.U'!$B$23:$P$51,7,FALSE))),"") ->  | O81: =IFERROR(IF(J81="","",ROUND(H81*M81*N81,2)),"") ->  | Q81: 0 | T81: =IF(J81="","",IF(OR((J81="Espacios de circulación interior (escalera)"),(J81="Espacios de circulación interior (rampa)")),E81&"Espacios de circulación interior",IF(OR((J81="SS.HH. y/o Vestidores (SS.HH.)"),(J81="SS.HH. y/o Vestidores (vestidores)")),E81&"SS.HH. y/o Vestidores",IF(OR((J81="Laboratorios y/o Talleres (Taller liviano)"),(J81="Laboratorios y/o Talleres (Laboratorio y/o taller pesado)")),E81&"Laboratorios y/o Talleres",E81&J81)))) ->  | V81: =IFERROR(Q81-O81,"") ->  | X81: =+H81 -> 0 | Y81: =+Q81 -> 0
B82: =IFERROR(IF(SUM(C82:L82)=0," ",COUNT($B$70:B81)+1),"") ->  | I82: =IF(J82="","",VLOOKUP(J82,'Anexo 1. Registro de C.U'!$B$23:$D$46,3,FALSE)) ->  | M82: =IFERROR(IF(J82="","",(VLOOKUP(J82,'Anexo 1. Registro de C.U'!$B$23:$P$51,7,FALSE))),"") ->  | Q82: 0 | X82: 0 | Y82: 0
B83: =IFERROR(IF(SUM(C83:L83)=0," ",COUNT($B$70:B82)+1),"") ->  | I83: =IF(J83="","",VLOOKUP(J83,'Anexo 1. Registro de C.U'!$B$23:$D$46,3,FALSE)) ->  | M83: =IFERROR(IF(J83="","",(VLOOKUP(J83,'Anexo 1. Registro de C.U'!$B$23:$P$51,7,FALSE))),"") ->  | Q83: 0 | X83: 0 | Y83: 0
B84: =IFERROR(IF(SUM(C84:L84)=0," ",COUNT($B$70:B83)+1),"") ->  | I84: =IF(J84="","",VLOOKUP(J84,'Anexo 1. Registro de C.U'!$B$23:$D$46,3,FALSE)) ->  | M84: =IFERROR(IF(J84="","",(VLOOKUP(J84,'Anexo 1. Registro de C.U'!$B$23:$P$51,7,FALSE))),"") ->  | Q84: 0 | X84: 0 | Y84: 0
B85: =IFERROR(IF(SUM(C85:L85)=0," ",COUNT($B$70:B84)+1),"") ->  | I85: =IF(J85="","",VLOOKUP(J85,'Anexo 1. Registro de C.U'!$B$23:$D$46,3,FALSE)) ->  | M85: =IFERROR(IF(J85="","",(VLOOKUP(J85,'Anexo 1. Registro de C.U'!$B$23:$P$51,7,FALSE))),"") ->  | Q85: 0 | X85: 0 | Y85: 0
B86: =IFERROR(IF(SUM(C86:L86)=0," ",COUNT($B$70:B85)+1),"") ->  | I86: =IF(J86="","",VLOOKUP(J86,'Anexo 1. Registro de C.U'!$B$23:$D$46,3,FALSE)) ->  | M86: =IFERROR(IF(J86="","",(VLOOKUP(J86,'Anexo 1. Registro de C.U'!$B$23:$P$51,7,FALSE))),"") ->  | Q86: 0 | X86: 0 | Y86: 0
B87: =IFERROR(IF(SUM(C87:L87)=0," ",COUNT($B$70:B86)+1),"") ->  | I87: =IF(J87="","",VLOOKUP(J87,'Anexo 1. Registro de C.U'!$B$23:$D$46,3,FALSE)) ->  | M87: =IFERROR(IF(J87="","",(VLOOKUP(J87,'Anexo 1. Registro de C.U'!$B$23:$P$51,7,FALSE))),"") ->  | Q87: 0 | X87: 0 | Y87: 0
B88: =IFERROR(IF(SUM(C88:L88)=0," ",COUNT($B$70:B87)+1),"") ->  | I88: =IF(J88="","",VLOOKUP(J88,'Anexo 1. Registro de C.U'!$B$23:$D$46,3,FALSE)) ->  | M88: =IFERROR(IF(J88="","",(VLOOKUP(J88,'Anexo 1. Registro de C.U'!$B$23:$P$51,7,FALSE))),"") ->  | Q88: 0 | X88: 0 | Y88: 0
B89: =IFERROR(IF(SUM(C89:L89)=0," ",COUNT($B$70:B88)+1),"") ->  | I89: =IF(J89="","",VLOOKUP(J89,'Anexo 1. Registro de C.U'!$B$23:$D$46,3,FALSE)) ->  | M89: =IFERROR(IF(J89="","",(VLOOKUP(J89,'Anexo 1. Registro de C.U'!$B$23:$P$51,7,FALSE))),"") ->  | Q89: 0 | X89: 0 | Y89: 0
B90: =IFERROR(IF(SUM(C90:L90)=0," ",COUNT($B$70:B89)+1),"") ->  | I90: =IF(J90="","",VLOOKUP(J90,'Anexo 1. Registro de C.U'!$B$23:$D$46,3,FALSE)) ->  | M90: =IFERROR(IF(J90="","",(VLOOKUP(J90,'Anexo 1. Registro de C.U'!$B$23:$P$51,7,FALSE))),"") ->  | Q90: 0 | X90: 0 | Y90: 0
B91: =IFERROR(IF(SUM(C91:L91)=0," ",COUNT($B$70:B90)+1),"") ->  | I91: =IF(J91="","",VLOOKUP(J91,'Anexo 1. Registro de C.U'!$B$23:$D$46,3,FALSE)) ->  | M91: =IFERROR(IF(J91="","",(VLOOKUP(J91,'Anexo 1. Registro de C.U'!$B$23:$P$51,7,FALSE))),"") ->  | Q91: 0 | X91: 0 | Y91: 0
B92: =IFERROR(IF(SUM(C92:L92)=0," ",COUNT($B$70:B91)+1),"") ->  | I92: =IF(J92="","",VLOOKUP(J92,'Anexo 1. Registro de C.U'!$B$23:$D$46,3,FALSE)) ->  | M92: =IFERROR(IF(J92="","",(VLOOKUP(J92,'Anexo 1. Registro de C.U'!$B$23:$P$51,7,FALSE))),"") ->  | Q92: 0 | X92: 0 | Y92: 0
B93: =IFERROR(IF(SUM(C93:L93)=0," ",COUNT($B$70:B92)+1),"") ->  | I93: =IF(J93="","",VLOOKUP(J93,'Anexo 1. Registro de C.U'!$B$23:$D$46,3,FALSE)) ->  | M93: =IFERROR(IF(J93="","",(VLOOKUP(J93,'Anexo 1. Registro de C.U'!$B$23:$P$51,7,FALSE))),"") ->  | Q93: 0 | X93: 0 | Y93: 0
B94: =IFERROR(IF(SUM(C94:L94)=0," ",COUNT($B$70:B93)+1),"") ->  | I94: =IF(J94="","",VLOOKUP(J94,'Anexo 1. Registro de C.U'!$B$23:$D$46,3,FALSE)) ->  | M94: =IFERROR(IF(J94="","",(VLOOKUP(J94,'Anexo 1. Registro de C.U'!$B$23:$P$51,7,FALSE))),"") ->  | Q94: 0 | X94: 0 | Y94: 0
B95: =IFERROR(IF(SUM(C95:L95)=0," ",COUNT($B$70:B94)+1),"") ->  | I95: =IF(J95="","",VLOOKUP(J95,'Anexo 1. Registro de C.U'!$B$23:$D$46,3,FALSE)) ->  | M95: =IFERROR(IF(J95="","",(VLOOKUP(J95,'Anexo 1. Registro de C.U'!$B$23:$P$51,7,FALSE))),"") ->  | Q95: 0 | X95: 0 | Y95: 0
B96: =IFERROR(IF(SUM(C96:L96)=0," ",COUNT($B$70:B95)+1),"") ->  | I96: =IF(J96="","",VLOOKUP(J96,'Anexo 1. Registro de C.U'!$B$23:$D$46,3,FALSE)) ->  | M96: =IFERROR(IF(J96="","",(VLOOKUP(J96,'Anexo 1. Registro de C.U'!$B$23:$P$51,7,FALSE))),"") ->  | Q96: 0 | X96: 0 | Y96: 0
B97: =IFERROR(IF(SUM(C97:L97)=0," ",COUNT($B$70:B96)+1),"") ->  | I97: =IF(J97="","",VLOOKUP(J97,'Anexo 1. Registro de C.U'!$B$23:$D$46,3,FALSE)) ->  | M97: =IFERROR(IF(J97="","",(VLOOKUP(J97,'Anexo 1. Registro de C.U'!$B$23:$P$51,7,FALSE))),"") ->  | Q97: 0 | X97: 0 | Y97: 0
B98: =IFERROR(IF(SUM(C98:L98)=0," ",COUNT($B$70:B97)+1),"") ->  | I98: =IF(J98="","",VLOOKUP(J98,'Anexo 1. Registro de C.U'!$B$23:$D$46,3,FALSE)) ->  | M98: =IFERROR(IF(J98="","",(VLOOKUP(J98,'Anexo 1. Registro de C.U'!$B$23:$P$51,7,FALSE))),"") ->  | Q98: 0 | X98: 0 | Y98: 0
B99: =IFERROR(IF(SUM(C99:L99)=0," ",COUNT($B$70:B98)+1),"") ->  | I99: =IF(J99="","",VLOOKUP(J99,'Anexo 1. Registro de C.U'!$B$23:$D$46,3,FALSE)) ->  | M99: =IFERROR(IF(J99="","",(VLOOKUP(J99,'Anexo 1. Registro de C.U'!$B$23:$P$51,7,FALSE))),"") ->  | Q99: 0 | X99: 0 | Y99: 0
B100: =IFERROR(IF(SUM(C100:L100)=0," ",COUNT($B$70:B99)+1),"") ->  | I100: =IF(J100="","",VLOOKUP(J100,'Anexo 1. Registro de C.U'!$B$23:$D$46,3,FALSE)) ->  | M100: =IFERROR(IF(J100="","",(VLOOKUP(J100,'Anexo 1. Registro de C.U'!$B$23:$P$51,7,FALSE))),"") ->  | Q100: 0 | X100: 0 | Y100: 0
B101: =IFERROR(IF(SUM(C101:L101)=0," ",COUNT($B$70:B100)+1),"") ->  | I101: =IF(J101="","",VLOOKUP(J101,'Anexo 1. Registro de C.U'!$B$23:$D$46,3,FALSE)) ->  | M101: =IFERROR(IF(J101="","",(VLOOKUP(J101,'Anexo 1. Registro de C.U'!$B$23:$P$51,7,FALSE))),"") ->  | Q101: 0 | X101: 0 | Y101: 0
B102: =IFERROR(IF(SUM(C102:L102)=0," ",COUNT($B$70:B101)+1),"") ->  | I102: =IF(J102="","",VLOOKUP(J102,'Anexo 1. Registro de C.U'!$B$23:$D$46,3,FALSE)) ->  | M102: =IFERROR(IF(J102="","",(VLOOKUP(J102,'Anexo 1. Registro de C.U'!$B$23:$P$51,7,FALSE))),"") ->  | Q102: 0 | X102: 0 | Y102: 0
B103: =IFERROR(IF(SUM(C103:L103)=0," ",COUNT($B$70:B102)+1),"") ->  | I103: =IF(J103="","",VLOOKUP(J103,'Anexo 1. Registro de C.U'!$B$23:$D$46,3,FALSE)) ->  | M103: =IFERROR(IF(J103="","",(VLOOKUP(J103,'Anexo 1. Registro de C.U'!$B$23:$P$51,7,FALSE))),"") ->  | Q103: 0 | X103: 0 | Y103: 0
B104: =IFERROR(IF(SUM(C104:L104)=0," ",COUNT($B$70:B103)+1),"") ->  | I104: =IF(J104="","",VLOOKUP(J104,'Anexo 1. Registro de C.U'!$B$23:$D$46,3,FALSE)) ->  | M104: =IFERROR(IF(J104="","",(VLOOKUP(J104,'Anexo 1. Registro de C.U'!$B$23:$P$51,7,FALSE))),"") ->  | Q104: 0 | X104: 0 | Y104: 0
B105: =IFERROR(IF(SUM(C105:L105)=0," ",COUNT($B$70:B104)+1),"") ->  | I105: =IF(J105="","",VLOOKUP(J105,'Anexo 1. Registro de C.U'!$B$23:$D$46,3,FALSE)) ->  | M105: =IFERROR(IF(J105="","",(VLOOKUP(J105,'Anexo 1. Registro de C.U'!$B$23:$P$51,7,FALSE))),"") ->  | Q105: 0 | X105: 0 | Y105: 0
B106: =IFERROR(IF(SUM(C106:L106)=0," ",COUNT($B$70:B105)+1),"") ->  | I106: =IF(J106="","",VLOOKUP(J106,'Anexo 1. Registro de C.U'!$B$23:$D$46,3,FALSE)) ->  | M106: =IFERROR(IF(J106="","",(VLOOKUP(J106,'Anexo 1. Registro de C.U'!$B$23:$P$51,7,FALSE))),"") ->  | Q106: 0 | X106: 0 | Y106: 0
B107: =IFERROR(IF(SUM(C107:L107)=0," ",COUNT($B$70:B106)+1),"") ->  | I107: =IF(J107="","",VLOOKUP(J107,'Anexo 1. Registro de C.U'!$B$23:$D$46,3,FALSE)) ->  | M107: =IFERROR(IF(J107="","",(VLOOKUP(J107,'Anexo 1. Registro de C.U'!$B$23:$P$51,7,FALSE))),"") ->  | Q107: 0 | X107: 0 | Y107: 0
B108: =IFERROR(IF(SUM(C108:L108)=0," ",COUNT($B$70:B107)+1),"") ->  | I108: =IF(J108="","",VLOOKUP(J108,'Anexo 1. Registro de C.U'!$B$23:$D$46,3,FALSE)) ->  | M108: =IFERROR(IF(J108="","",(VLOOKUP(J108,'Anexo 1. Registro de C.U'!$B$23:$P$51,7,FALSE))),"") ->  | Q108: 0 | X108: 0 | Y108: 0
B109: =IFERROR(IF(SUM(C109:L109)=0," ",COUNT($B$70:B108)+1),"") ->  | I109: =IF(J109="","",VLOOKUP(J109,'Anexo 1. Registro de C.U'!$B$23:$D$46,3,FALSE)) ->  | M109: =IFERROR(IF(J109="","",(VLOOKUP(J109,'Anexo 1. Registro de C.U'!$B$23:$P$51,7,FALSE))),"") ->  | Q109: 0 | X109: 0 | Y109: 0
B110: =IFERROR(IF(SUM(C110:L110)=0," ",COUNT($B$70:B109)+1),"") ->  | I110: =IF(J110="","",VLOOKUP(J110,'Anexo 1. Registro de C.U'!$B$23:$D$46,3,FALSE)) ->  | M110: =IFERROR(IF(J110="","",(VLOOKUP(J110,'Anexo 1. Registro de C.U'!$B$23:$P$51,7,FALSE))),"") ->  | Q110: 0 | X110: 0 | Y110: 0
B111: =IFERROR(IF(SUM(C111:L111)=0," ",COUNT($B$70:B110)+1),"") ->  | I111: =IF(J111="","",VLOOKUP(J111,'Anexo 1. Registro de C.U'!$B$23:$D$46,3,FALSE)) ->  | M111: =IFERROR(IF(J111="","",(VLOOKUP(J111,'Anexo 1. Registro de C.U'!$B$23:$P$51,7,FALSE))),"") ->  | Q111: 0 | X111: 0 | Y111: 0
B112: =IFERROR(IF(SUM(C112:L112)=0," ",COUNT($B$70:B111)+1),"") ->  | I112: =IF(J112="","",VLOOKUP(J112,'Anexo 1. Registro de C.U'!$B$23:$D$46,3,FALSE)) ->  | M112: =IFERROR(IF(J112="","",(VLOOKUP(J112,'Anexo 1. Registro de C.U'!$B$23:$P$51,7,FALSE))),"") ->  | Q112: 0 | X112: 0 | Y112: 0
B113: =IFERROR(IF(SUM(C113:L113)=0," ",COUNT($B$70:B112)+1),"") ->  | I113: =IF(J113="","",VLOOKUP(J113,'Anexo 1. Registro de C.U'!$B$23:$D$46,3,FALSE)) ->  | M113: =IFERROR(IF(J113="","",(VLOOKUP(J113,'Anexo 1. Registro de C.U'!$B$23:$P$51,7,FALSE))),"") ->  | Q113: 0 | X113: 0 | Y113: 0
B114: =IFERROR(IF(SUM(C114:L114)=0," ",COUNT($B$70:B113)+1),"") ->  | I114: =IF(J114="","",VLOOKUP(J114,'Anexo 1. Registro de C.U'!$B$23:$D$46,3,FALSE)) ->  | M114: =IFERROR(IF(J114="","",(VLOOKUP(J114,'Anexo 1. Registro de C.U'!$B$23:$P$51,7,FALSE))),"") ->  | Q114: 0 | X114: 0 | Y114: 0
B115: =IFERROR(IF(SUM(C115:L115)=0," ",COUNT($B$70:B114)+1),"") ->  | I115: =IF(J115="","",VLOOKUP(J115,'Anexo 1. Registro de C.U'!$B$23:$D$46,3,FALSE)) ->  | M115: =IFERROR(IF(J115="","",(VLOOKUP(J115,'Anexo 1. Registro de C.U'!$B$23:$P$51,7,FALSE))),"") ->  | Q115: 0 | X115: 0 | Y115: 0
B116: =IFERROR(IF(SUM(C116:L116)=0," ",COUNT($B$70:B115)+1),"") ->  | I116: =IF(J116="","",VLOOKUP(J116,'Anexo 1. Registro de C.U'!$B$23:$D$46,3,FALSE)) ->  | M116: =IFERROR(IF(J116="","",(VLOOKUP(J116,'Anexo 1. Registro de C.U'!$B$23:$P$51,7,FALSE))),"") ->  | Q116: 0 | X116: 0 | Y116: 0
B117: =IFERROR(IF(SUM(C117:L117)=0," ",COUNT($B$70:B116)+1),"") ->  | I117: =IF(J117="","",VLOOKUP(J117,'Anexo 1. Registro de C.U'!$B$23:$D$46,3,FALSE)) ->  | M117: =IFERROR(IF(J117="","",(VLOOKUP(J117,'Anexo 1. Registro de C.U'!$B$23:$P$51,7,FALSE))),"") ->  | Q117: 0 | X117: 0 | Y117: 0
B118: =IFERROR(IF(SUM(C118:L118)=0," ",COUNT($B$70:B117)+1),"") ->  | I118: =IF(J118="","",VLOOKUP(J118,'Anexo 1. Registro de C.U'!$B$23:$D$46,3,FALSE)) ->  | M118: =IFERROR(IF(J118="","",(VLOOKUP(J118,'Anexo 1. Registro de C.U'!$B$23:$P$51,7,FALSE))),"") ->  | Q118: 0 | X118: 0 | Y118: 0
B119: =IFERROR(IF(SUM(C119:L119)=0," ",COUNT($B$70:B118)+1),"") ->  | I119: =IF(J119="","",VLOOKUP(J119,'Anexo 1. Registro de C.U'!$B$23:$D$46,3,FALSE)) ->  | M119: =IFERROR(IF(J119="","",(VLOOKUP(J119,'Anexo 1. Registro de C.U'!$B$23:$P$51,7,FALSE))),"") ->  | Q119: 0 | X119: 0 | Y119: 0
B120: =IFERROR(IF(SUM(C120:L120)=0," ",COUNT($B$70:B119)+1),"") ->  | I120: =IF(J120="","",VLOOKUP(J120,'Anexo 1. Registro de C.U'!$B$23:$D$46,3,FALSE)) ->  | M120: =IFERROR(IF(J120="","",(VLOOKUP(J120,'Anexo 1. Registro de C.U'!$B$23:$P$51,7,FALSE))),"") ->  | Q120: 0 | X120: 0 | Y120: 0
B121: =IFERROR(IF(SUM(C121:L121)=0," ",COUNT($B$70:B120)+1),"") ->  | I121: =IF(J121="","",VLOOKUP(J121,'Anexo 1. Registro de C.U'!$B$23:$D$46,3,FALSE)) ->  | M121: =IFERROR(IF(J121="","",(VLOOKUP(J121,'Anexo 1. Registro de C.U'!$B$23:$P$51,7,FALSE))),"") ->  | Q121: 0 | X121: 0 | Y121: 0
B122: =IFERROR(IF(SUM(C122:L122)=0," ",COUNT($B$70:B121)+1),"") ->  | I122: =IF(J122="","",VLOOKUP(J122,'Anexo 1. Registro de C.U'!$B$23:$D$46,3,FALSE)) ->  | M122: =IFERROR(IF(J122="","",(VLOOKUP(J122,'Anexo 1. Registro de C.U'!$B$23:$P$51,7,FALSE))),"") ->  | Q122: 0 | X122: 0 | Y122: 0
B123: =IFERROR(IF(SUM(C123:L123)=0," ",COUNT($B$70:B122)+1),"") ->  | I123: =IF(J123="","",VLOOKUP(J123,'Anexo 1. Registro de C.U'!$B$23:$D$46,3,FALSE)) ->  | M123: =IFERROR(IF(J123="","",(VLOOKUP(J123,'Anexo 1. Registro de C.U'!$B$23:$P$51,7,FALSE))),"") ->  | Q123: 0 | X123: 0 | Y123: 0
B124: =IFERROR(IF(SUM(C124:L124)=0," ",COUNT($B$70:B123)+1),"") ->  | I124: =IF(J124="","",VLOOKUP(J124,'Anexo 1. Registro de C.U'!$B$23:$D$46,3,FALSE)) ->  | M124: =IFERROR(IF(J124="","",(VLOOKUP(J124,'Anexo 1. Registro de C.U'!$B$23:$P$51,7,FALSE))),"") ->  | Q124: 0 | X124: 0 | Y124: 0
B125: =IFERROR(IF(SUM(C125:L125)=0," ",COUNT($B$70:B124)+1),"") ->  | I125: =IF(J125="","",VLOOKUP(J125,'Anexo 1. Registro de C.U'!$B$23:$D$46,3,FALSE)) ->  | M125: =IFERROR(IF(J125="","",(VLOOKUP(J125,'Anexo 1. Registro de C.U'!$B$23:$P$51,7,FALSE))),"") ->  | Q125: 0 | X125: 0 | Y125: 0
B126: =IFERROR(IF(SUM(C126:L126)=0," ",COUNT($B$70:B125)+1),"") ->  | I126: =IF(J126="","",VLOOKUP(J126,'Anexo 1. Registro de C.U'!$B$23:$D$46,3,FALSE)) ->  | M126: =IFERROR(IF(J126="","",(VLOOKUP(J126,'Anexo 1. Registro de C.U'!$B$23:$P$51,7,FALSE))),"") ->  | Q126: 0 | X126: 0 | Y126: 0
B127: =IFERROR(IF(SUM(C127:L127)=0," ",COUNT($B$70:B126)+1),"") ->  | I127: =IF(J127="","",VLOOKUP(J127,'Anexo 1. Registro de C.U'!$B$23:$D$46,3,FALSE)) ->  | M127: =IFERROR(IF(J127="","",(VLOOKUP(J127,'Anexo 1. Registro de C.U'!$B$23:$P$51,7,FALSE))),"") ->  | Q127: 0 | X127: 0 | Y127: 0
B128: =IFERROR(IF(SUM(C128:L128)=0," ",COUNT($B$70:B127)+1),"") ->  | I128: =IF(J128="","",VLOOKUP(J128,'Anexo 1. Registro de C.U'!$B$23:$D$46,3,FALSE)) ->  | M128: =IFERROR(IF(J128="","",(VLOOKUP(J128,'Anexo 1. Registro de C.U'!$B$23:$P$51,7,FALSE))),"") ->  | Q128: 0 | X128: 0 | Y128: 0
B129: =IFERROR(IF(SUM(C129:L129)=0," ",COUNT($B$70:B128)+1),"") ->  | I129: =IF(J129="","",VLOOKUP(J129,'Anexo 1. Registro de C.U'!$B$23:$D$46,3,FALSE)) ->  | M129: =IFERROR(IF(J129="","",(VLOOKUP(J129,'Anexo 1. Registro de C.U'!$B$23:$P$51,7,FALSE))),"") ->  | Q129: 0 | X129: 0 | Y129: 0
B130: =IFERROR(IF(SUM(C130:L130)=0," ",COUNT($B$70:B129)+1),"") ->  | I130: =IF(J130="","",VLOOKUP(J130,'Anexo 1. Registro de C.U'!$B$23:$D$46,3,FALSE)) ->  | M130: =IFERROR(IF(J130="","",(VLOOKUP(J130,'Anexo 1. Registro de C.U'!$B$23:$P$51,7,FALSE))),"") ->  | Q130: 0 | X130: 0 | Y130: 0
B131: =IFERROR(IF(SUM(C131:L131)=0," ",COUNT($B$70:B130)+1),"") ->  | I131: =IF(J131="","",VLOOKUP(J131,'Anexo 1. Registro de C.U'!$B$23:$D$46,3,FALSE)) ->  | M131: =IFERROR(IF(J131="","",(VLOOKUP(J131,'Anexo 1. Registro de C.U'!$B$23:$P$51,7,FALSE))),"") ->  | Q131: 0 | X131: 0 | Y131: 0
B132: =IFERROR(IF(SUM(C132:L132)=0," ",COUNT($B$70:B131)+1),"") ->  | I132: =IF(J132="","",VLOOKUP(J132,'Anexo 1. Registro de C.U'!$B$23:$D$46,3,FALSE)) ->  | M132: =IFERROR(IF(J132="","",(VLOOKUP(J132,'Anexo 1. Registro de C.U'!$B$23:$P$51,7,FALSE))),"") ->  | Q132: 0 | X132: 0 | Y132: 0
B133: =IFERROR(IF(SUM(C133:L133)=0," ",COUNT($B$70:B132)+1),"") ->  | I133: =IF(J133="","",VLOOKUP(J133,'Anexo 1. Registro de C.U'!$B$23:$D$46,3,FALSE)) ->  | M133: =IFERROR(IF(J133="","",(VLOOKUP(J133,'Anexo 1. Registro de C.U'!$B$23:$P$51,7,FALSE))),"") ->  | Q133: 0 | X133: 0 | Y133: 0
B134: =IFERROR(IF(SUM(C134:L134)=0," ",COUNT($B$70:B133)+1),"") ->  | I134: =IF(J134="","",VLOOKUP(J134,'Anexo 1. Registro de C.U'!$B$23:$D$46,3,FALSE)) ->  | M134: =IFERROR(IF(J134="","",(VLOOKUP(J134,'Anexo 1. Registro de C.U'!$B$23:$P$51,7,FALSE))),"") ->  | P134: =IF(H134="","",H134/SUM($H$70:$H$572)) ->  | Q134: =IFERROR(ROUND($O134+($P134*$H$737),2),0) -> 0 | X134: 0 | Y134: 0
B135: =IFERROR(IF(SUM(C135:L135)=0," ",COUNT($B$70:B134)+1),"") ->  | I135: =IF(J135="","",VLOOKUP(J135,'Anexo 1. Registro de C.U'!$B$23:$D$46,3,FALSE)) ->  | M135: =IFERROR(IF(J135="","",(VLOOKUP(J135,'Anexo 1. Registro de C.U'!$B$23:$P$51,7,FALSE))),"") ->  | N135: =IFERROR(IF(M135="","",1/E135),"") ->  | Q135: 0 | X135: 0 | Y135: 0
B136: =IFERROR(IF(SUM(C136:L136)=0," ",COUNT($B$70:B135)+1),"") ->  | I136: =IF(J136="","",VLOOKUP(J136,'Anexo 1. Registro de C.U'!$B$23:$D$46,3,FALSE)) ->  | M136: =IFERROR(IF(J136="","",(VLOOKUP(J136,'Anexo 1. Registro de C.U'!$B$23:$P$51,7,FALSE))),"") ->  | Q136: 0 | X136: 0 | Y136: 0
B137: =IFERROR(IF(SUM(C137:L137)=0," ",COUNT($B$70:B136)+1),"") ->  | I137: =IF(J137="","",VLOOKUP(J137,'Anexo 1. Registro de C.U'!$B$23:$D$46,3,FALSE)) ->  | M137: =IFERROR(IF(J137="","",(VLOOKUP(J137,'Anexo 1. Registro de C.U'!$B$23:$P$51,7,FALSE))),"") ->  | Q137: 0 | X137: 0 | Y137: 0
B138: =IFERROR(IF(SUM(C138:L138)=0," ",COUNT($B$70:B137)+1),"") ->  | I138: =IF(J138="","",VLOOKUP(J138,'Anexo 1. Registro de C.U'!$B$23:$D$46,3,FALSE)) ->  | M138: =IFERROR(IF(J138="","",(VLOOKUP(J138,'Anexo 1. Registro de C.U'!$B$23:$P$51,7,FALSE))),"") ->  | Q138: 0 | X138: 0 | Y138: 0
B139: =IFERROR(IF(SUM(C139:L139)=0," ",COUNT($B$70:B138)+1),"") ->  | I139: =IF(J139="","",VLOOKUP(J139,'Anexo 1. Registro de C.U'!$B$23:$D$46,3,FALSE)) ->  | M139: =IFERROR(IF(J139="","",(VLOOKUP(J139,'Anexo 1. Registro de C.U'!$B$23:$P$51,7,FALSE))),"") ->  | Q139: 0 | X139: 0 | Y139: 0
B140: =IFERROR(IF(SUM(C140:L140)=0," ",COUNT($B$70:B139)+1),"") ->  | I140: =IF(J140="","",VLOOKUP(J140,'Anexo 1. Registro de C.U'!$B$23:$D$46,3,FALSE)) ->  | M140: =IFERROR(IF(J140="","",(VLOOKUP(J140,'Anexo 1. Registro de C.U'!$B$23:$P$51,7,FALSE))),"") ->  | Q140: 0 | X140: 0 | Y140: 0
B141: =IFERROR(IF(SUM(C141:L141)=0," ",COUNT($B$70:B140)+1),"") ->  | I141: =IF(J141="","",VLOOKUP(J141,'Anexo 1. Registro de C.U'!$B$23:$D$46,3,FALSE)) ->  | M141: =IFERROR(IF(J141="","",(VLOOKUP(J141,'Anexo 1. Registro de C.U'!$B$23:$P$51,7,FALSE))),"") ->  | Q141: 0 | X141: 0 | Y141: 0
B142: =IFERROR(IF(SUM(C142:L142)=0," ",COUNT($B$70:B141)+1),"") ->  | I142: =IF(J142="","",VLOOKUP(J142,'Anexo 1. Registro de C.U'!$B$23:$D$46,3,FALSE)) ->  | M142: =IFERROR(IF(J142="","",(VLOOKUP(J142,'Anexo 1. Registro de C.U'!$B$23:$P$51,7,FALSE))),"") ->  | Q142: 0 | X142: 0 | Y142: 0
B143: =IFERROR(IF(SUM(C143:L143)=0," ",COUNT($B$70:B142)+1),"") ->  | I143: =IF(J143="","",VLOOKUP(J143,'Anexo 1. Registro de C.U'!$B$23:$D$46,3,FALSE)) ->  | M143: =IFERROR(IF(J143="","",(VLOOKUP(J143,'Anexo 1. Registro de C.U'!$B$23:$P$51,7,FALSE))),"") ->  | Q143: 0 | X143: 0 | Y143: 0
B144: =IFERROR(IF(SUM(C144:L144)=0," ",COUNT($B$70:B143)+1),"") ->  | I144: =IF(J144="","",VLOOKUP(J144,'Anexo 1. Registro de C.U'!$B$23:$D$46,3,FALSE)) ->  | M144: =IFERROR(IF(J144="","",(VLOOKUP(J144,'Anexo 1. Registro de C.U'!$B$23:$P$51,7,FALSE))),"") ->  | Q144: 0 | X144: 0 | Y144: 0
B145: =IFERROR(IF(SUM(C145:L145)=0," ",COUNT($B$70:B144)+1),"") ->  | I145: =IF(J145="","",VLOOKUP(J145,'Anexo 1. Registro de C.U'!$B$23:$D$46,3,FALSE)) ->  | M145: =IFERROR(IF(J145="","",(VLOOKUP(J145,'Anexo 1. Registro de C.U'!$B$23:$P$51,7,FALSE))),"") ->  | Q145: 0 | X145: 0 | Y145: 0
B146: =IFERROR(IF(SUM(C146:L146)=0," ",COUNT($B$70:B145)+1),"") ->  | I146: =IF(J146="","",VLOOKUP(J146,'Anexo 1. Registro de C.U'!$B$23:$D$46,3,FALSE)) ->  | M146: =IFERROR(IF(J146="","",(VLOOKUP(J146,'Anexo 1. Registro de C.U'!$B$23:$P$51,7,FALSE))),"") ->  | Q146: 0 | X146: 0 | Y146: 0
B147: =IFERROR(IF(SUM(C147:L147)=0," ",COUNT($B$70:B146)+1),"") ->  | I147: =IF(J147="","",VLOOKUP(J147,'Anexo 1. Registro de C.U'!$B$23:$D$46,3,FALSE)) ->  | M147: =IFERROR(IF(J147="","",(VLOOKUP(J147,'Anexo 1. Registro de C.U'!$B$23:$P$51,7,FALSE))),"") ->  | Q147: 0 | X147: 0 | Y147: 0
B148: =IFERROR(IF(SUM(C148:L148)=0," ",COUNT($B$70:B147)+1),"") ->  | I148: =IF(J148="","",VLOOKUP(J148,'Anexo 1. Registro de C.U'!$B$23:$D$46,3,FALSE)) ->  | M148: =IFERROR(IF(J148="","",(VLOOKUP(J148,'Anexo 1. Registro de C.U'!$B$23:$P$51,7,FALSE))),"") ->  | Q148: 0 | X148: 0 | Y148: 0
B149: =IFERROR(IF(SUM(C149:L149)=0," ",COUNT($B$70:B148)+1),"") ->  | I149: =IF(J149="","",VLOOKUP(J149,'Anexo 1. Registro de C.U'!$B$23:$D$46,3,FALSE)) ->  | M149: =IFERROR(IF(J149="","",(VLOOKUP(J149,'Anexo 1. Registro de C.U'!$B$23:$P$51,7,FALSE))),"") ->  | Q149: 0 | X149: 0 | Y149: 0
B150: =IFERROR(IF(SUM(C150:L150)=0," ",COUNT($B$70:B149)+1),"") ->  | I150: =IF(J150="","",VLOOKUP(J150,'Anexo 1. Registro de C.U'!$B$23:$D$46,3,FALSE)) ->  | M150: =IFERROR(IF(J150="","",(VLOOKUP(J150,'Anexo 1. Registro de C.U'!$B$23:$P$51,7,FALSE))),"") ->  | Q150: 0 | X150: 0 | Y150: 0
B151: =IFERROR(IF(SUM(C151:L151)=0," ",COUNT($B$70:B150)+1),"") ->  | I151: =IF(J151="","",VLOOKUP(J151,'Anexo 1. Registro de C.U'!$B$23:$D$46,3,FALSE)) ->  | M151: =IFERROR(IF(J151="","",(VLOOKUP(J151,'Anexo 1. Registro de C.U'!$B$23:$P$51,7,FALSE))),"") ->  | Q151: 0 | X151: 0 | Y151: 0
B152: =IFERROR(IF(SUM(C152:L152)=0," ",COUNT($B$70:B151)+1),"") ->  | I152: =IF(J152="","",VLOOKUP(J152,'Anexo 1. Registro de C.U'!$B$23:$D$46,3,FALSE)) ->  | M152: =IFERROR(IF(J152="","",(VLOOKUP(J152,'Anexo 1. Registro de C.U'!$B$23:$P$51,7,FALSE))),"") ->  | Q152: 0 | X152: 0 | Y152: 0
B153: =IFERROR(IF(SUM(C153:L153)=0," ",COUNT($B$70:B152)+1),"") ->  | I153: =IF(J153="","",VLOOKUP(J153,'Anexo 1. Registro de C.U'!$B$23:$D$46,3,FALSE)) ->  | M153: =IFERROR(IF(J153="","",(VLOOKUP(J153,'Anexo 1. Registro de C.U'!$B$23:$P$51,7,FALSE))),"") ->  | Q153: 0 | X153: 0 | Y153: 0
B154: =IFERROR(IF(SUM(C154:L154)=0," ",COUNT($B$70:B153)+1),"") ->  | I154: =IF(J154="","",VLOOKUP(J154,'Anexo 1. Registro de C.U'!$B$23:$D$46,3,FALSE)) ->  | M154: =IFERROR(IF(J154="","",(VLOOKUP(J154,'Anexo 1. Registro de C.U'!$B$23:$P$51,7,FALSE))),"") ->  | Q154: 0 | X154: 0 | Y154: 0
B155: =IFERROR(IF(SUM(C155:L155)=0," ",COUNT($B$70:B154)+1),"") ->  | I155: =IF(J155="","",VLOOKUP(J155,'Anexo 1. Registro de C.U'!$B$23:$D$46,3,FALSE)) ->  | M155: =IFERROR(IF(J155="","",(VLOOKUP(J155,'Anexo 1. Registro de C.U'!$B$23:$P$51,7,FALSE))),"") ->  | Q155: 0 | X155: 0 | Y155: 0
B156: =IFERROR(IF(SUM(C156:L156)=0," ",COUNT($B$70:B155)+1),"") ->  | I156: =IF(J156="","",VLOOKUP(J156,'Anexo 1. Registro de C.U'!$B$23:$D$46,3,FALSE)) ->  | M156: =IFERROR(IF(J156="","",(VLOOKUP(J156,'Anexo 1. Registro de C.U'!$B$23:$P$51,7,FALSE))),"") ->  | Q156: 0 | X156: 0 | Y156: 0
B157: =IFERROR(IF(SUM(C157:L157)=0," ",COUNT($B$70:B156)+1),"") ->  | I157: =IF(J157="","",VLOOKUP(J157,'Anexo 1. Registro de C.U'!$B$23:$D$46,3,FALSE)) ->  | M157: =IFERROR(IF(J157="","",(VLOOKUP(J157,'Anexo 1. Registro de C.U'!$B$23:$P$51,7,FALSE))),"") ->  | Q157: 0 | X157: 0 | Y157: 0
B158: =IFERROR(IF(SUM(C158:L158)=0," ",COUNT($B$70:B157)+1),"") ->  | I158: =IF(J158="","",VLOOKUP(J158,'Anexo 1. Registro de C.U'!$B$23:$D$46,3,FALSE)) ->  | M158: =IFERROR(IF(J158="","",(VLOOKUP(J158,'Anexo 1. Registro de C.U'!$B$23:$P$51,7,FALSE))),"") ->  | Q158: 0 | X158: 0 | Y158: 0
B159: =IFERROR(IF(SUM(C159:L159)=0," ",COUNT($B$70:B158)+1),"") ->  | I159: =IF(J159="","",VLOOKUP(J159,'Anexo 1. Registro de C.U'!$B$23:$D$46,3,FALSE)) ->  | M159: =IFERROR(IF(J159="","",(VLOOKUP(J159,'Anexo 1. Registro de C.U'!$B$23:$P$51,7,FALSE))),"") ->  | Q159: 0 | X159: 0 | Y159: 0
B160: =IFERROR(IF(SUM(C160:L160)=0," ",COUNT($B$70:B159)+1),"") ->  | I160: =IF(J160="","",VLOOKUP(J160,'Anexo 1. Registro de C.U'!$B$23:$D$46,3,FALSE)) ->  | M160: =IFERROR(IF(J160="","",(VLOOKUP(J160,'Anexo 1. Registro de C.U'!$B$23:$P$51,7,FALSE))),"") ->  | Q160: 0 | X160: 0 | Y160: 0
B161: =IFERROR(IF(SUM(C161:L161)=0," ",COUNT($B$70:B160)+1),"") ->  | I161: =IF(J161="","",VLOOKUP(J161,'Anexo 1. Registro de C.U'!$B$23:$D$46,3,FALSE)) ->  | M161: =IFERROR(IF(J161="","",(VLOOKUP(J161,'Anexo 1. Registro de C.U'!$B$23:$P$51,7,FALSE))),"") ->  | Q161: 0 | X161: 0 | Y161: 0
B162: =IFERROR(IF(SUM(C162:L162)=0," ",COUNT($B$70:B161)+1),"") ->  | I162: =IF(J162="","",VLOOKUP(J162,'Anexo 1. Registro de C.U'!$B$23:$D$46,3,FALSE)) ->  | M162: =IFERROR(IF(J162="","",(VLOOKUP(J162,'Anexo 1. Registro de C.U'!$B$23:$P$51,7,FALSE))),"") ->  | Q162: 0 | X162: 0 | Y162: 0
B163: =IFERROR(IF(SUM(C163:L163)=0," ",COUNT($B$70:B162)+1),"") ->  | I163: =IF(J163="","",VLOOKUP(J163,'Anexo 1. Registro de C.U'!$B$23:$D$46,3,FALSE)) ->  | M163: =IFERROR(IF(J163="","",(VLOOKUP(J163,'Anexo 1. Registro de C.U'!$B$23:$P$51,7,FALSE))),"") ->  | Q163: 0 | X163: 0 | Y163: 0
B164: =IFERROR(IF(SUM(C164:L164)=0," ",COUNT($B$70:B163)+1),"") ->  | I164: =IF(J164="","",VLOOKUP(J164,'Anexo 1. Registro de C.U'!$B$23:$D$46,3,FALSE)) ->  | M164: =IFERROR(IF(J164="","",(VLOOKUP(J164,'Anexo 1. Registro de C.U'!$B$23:$P$51,7,FALSE))),"") ->  | Q164: 0 | X164: 0 | Y164: 0
B165: =IFERROR(IF(SUM(C165:L165)=0," ",COUNT($B$70:B164)+1),"") ->  | I165: =IF(J165="","",VLOOKUP(J165,'Anexo 1. Registro de C.U'!$B$23:$D$46,3,FALSE)) ->  | M165: =IFERROR(IF(J165="","",(VLOOKUP(J165,'Anexo 1. Registro de C.U'!$B$23:$P$51,7,FALSE))),"") ->  | Q165: 0 | X165: 0 | Y165: 0
B166: =IFERROR(IF(SUM(C166:L166)=0," ",COUNT($B$70:B165)+1),"") ->  | I166: =IF(J166="","",VLOOKUP(J166,'Anexo 1. Registro de C.U'!$B$23:$D$46,3,FALSE)) ->  | M166: =IFERROR(IF(J166="","",(VLOOKUP(J166,'Anexo 1. Registro de C.U'!$B$23:$P$51,7,FALSE))),"") ->  | Q166: 0 | X166: 0 | Y166: 0
B167: =IFERROR(IF(SUM(C167:L167)=0," ",COUNT($B$70:B166)+1),"") ->  | I167: =IF(J167="","",VLOOKUP(J167,'Anexo 1. Registro de C.U'!$B$23:$D$46,3,FALSE)) ->  | M167: =IFERROR(IF(J167="","",(VLOOKUP(J167,'Anexo 1. Registro de C.U'!$B$23:$P$51,7,FALSE))),"") ->  | Q167: 0 | X167: 0 | Y167: 0
B168: =IFERROR(IF(SUM(C168:L168)=0," ",COUNT($B$70:B167)+1),"") ->  | I168: =IF(J168="","",VLOOKUP(J168,'Anexo 1. Registro de C.U'!$B$23:$D$46,3,FALSE)) ->  | M168: =IFERROR(IF(J168="","",(VLOOKUP(J168,'Anexo 1. Registro de C.U'!$B$23:$P$51,7,FALSE))),"") ->  | Q168: 0 | X168: 0 | Y168: 0
B169: =IFERROR(IF(SUM(C169:L169)=0," ",COUNT($B$70:B168)+1),"") ->  | I169: =IF(J169="","",VLOOKUP(J169,'Anexo 1. Registro de C.U'!$B$23:$D$46,3,FALSE)) ->  | M169: =IFERROR(IF(J169="","",(VLOOKUP(J169,'Anexo 1. Registro de C.U'!$B$23:$P$51,7,FALSE))),"") ->  | Q169: 0 | X169: 0 | Y169: 0
B170: =IFERROR(IF(SUM(C170:L170)=0," ",COUNT($B$70:B169)+1),"") ->  | I170: =IF(J170="","",VLOOKUP(J170,'Anexo 1. Registro de C.U'!$B$23:$D$46,3,FALSE)) ->  | M170: =IFERROR(IF(J170="","",(VLOOKUP(J170,'Anexo 1. Registro de C.U'!$B$23:$P$51,7,FALSE))),"") ->  | Q170: 0 | X170: 0 | Y170: 0
B171: =IFERROR(IF(SUM(C171:L171)=0," ",COUNT($B$70:B170)+1),"") ->  | I171: =IF(J171="","",VLOOKUP(J171,'Anexo 1. Registro de C.U'!$B$23:$D$46,3,FALSE)) ->  | M171: =IFERROR(IF(J171="","",(VLOOKUP(J171,'Anexo 1. Registro de C.U'!$B$23:$P$51,7,FALSE))),"") ->  | Q171: 0 | X171: 0 | Y171: 0
B172: =IFERROR(IF(SUM(C172:L172)=0," ",COUNT($B$70:B171)+1),"") ->  | I172: =IF(J172="","",VLOOKUP(J172,'Anexo 1. Registro de C.U'!$B$23:$D$46,3,FALSE)) ->  | M172: =IFERROR(IF(J172="","",(VLOOKUP(J172,'Anexo 1. Registro de C.U'!$B$23:$P$51,7,FALSE))),"") ->  | Q172: 0 | X172: 0 | Y172: 0
B173: =IFERROR(IF(SUM(C173:L173)=0," ",COUNT($B$70:B172)+1),"") ->  | I173: =IF(J173="","",VLOOKUP(J173,'Anexo 1. Registro de C.U'!$B$23:$D$46,3,FALSE)) ->  | M173: =IFERROR(IF(J173="","",(VLOOKUP(J173,'Anexo 1. Registro de C.U'!$B$23:$P$51,7,FALSE))),"") ->  | Q173: 0 | X173: 0 | Y173: 0
B174: =IFERROR(IF(SUM(C174:L174)=0," ",COUNT($B$70:B173)+1),"") ->  | I174: =IF(J174="","",VLOOKUP(J174,'Anexo 1. Registro de C.U'!$B$23:$D$46,3,FALSE)) ->  | M174: =IFERROR(IF(J174="","",(VLOOKUP(J174,'Anexo 1. Registro de C.U'!$B$23:$P$51,7,FALSE))),"") ->  | Q174: 0 | X174: 0 | Y174: 0
B175: =IFERROR(IF(SUM(C175:L175)=0," ",COUNT($B$70:B174)+1),"") ->  | I175: =IF(J175="","",VLOOKUP(J175,'Anexo 1. Registro de C.U'!$B$23:$D$46,3,FALSE)) ->  | M175: =IFERROR(IF(J175="","",(VLOOKUP(J175,'Anexo 1. Registro de C.U'!$B$23:$P$51,7,FALSE))),"") ->  | Q175: 0 | X175: 0 | Y175: 0
B176: =IFERROR(IF(SUM(C176:L176)=0," ",COUNT($B$70:B175)+1),"") ->  | I176: =IF(J176="","",VLOOKUP(J176,'Anexo 1. Registro de C.U'!$B$23:$D$46,3,FALSE)) ->  | M176: =IFERROR(IF(J176="","",(VLOOKUP(J176,'Anexo 1. Registro de C.U'!$B$23:$P$51,7,FALSE))),"") ->  | Q176: 0 | X176: 0 | Y176: 0
B177: =IFERROR(IF(SUM(C177:L177)=0," ",COUNT($B$70:B176)+1),"") ->  | I177: =IF(J177="","",VLOOKUP(J177,'Anexo 1. Registro de C.U'!$B$23:$D$46,3,FALSE)) ->  | M177: =IFERROR(IF(J177="","",(VLOOKUP(J177,'Anexo 1. Registro de C.U'!$B$23:$P$51,7,FALSE))),"") ->  | Q177: 0 | X177: 0 | Y177: 0
B178: =IFERROR(IF(SUM(C178:L178)=0," ",COUNT($B$70:B177)+1),"") ->  | I178: =IF(J178="","",VLOOKUP(J178,'Anexo 1. Registro de C.U'!$B$23:$D$46,3,FALSE)) ->  | M178: =IFERROR(IF(J178="","",(VLOOKUP(J178,'Anexo 1. Registro de C.U'!$B$23:$P$51,7,FALSE))),"") ->  | Q178: 0 | X178: 0 | Y178: 0
B179: =IFERROR(IF(SUM(C179:L179)=0," ",COUNT($B$70:B178)+1),"") ->  | I179: =IF(J179="","",VLOOKUP(J179,'Anexo 1. Registro de C.U'!$B$23:$D$46,3,FALSE)) ->  | M179: =IFERROR(IF(J179="","",(VLOOKUP(J179,'Anexo 1. Registro de C.U'!$B$23:$P$51,7,FALSE))),"") ->  | Q179: 0 | X179: 0 | Y179: 0
B180: =IFERROR(IF(SUM(C180:L180)=0," ",COUNT($B$70:B179)+1),"") ->  | I180: =IF(J180="","",VLOOKUP(J180,'Anexo 1. Registro de C.U'!$B$23:$D$46,3,FALSE)) ->  | M180: =IFERROR(IF(J180="","",(VLOOKUP(J180,'Anexo 1. Registro de C.U'!$B$23:$P$51,7,FALSE))),"") ->  | Q180: 0 | X180: 0 | Y180: 0
B181: =IFERROR(IF(SUM(C181:L181)=0," ",COUNT($B$70:B180)+1),"") ->  | I181: =IF(J181="","",VLOOKUP(J181,'Anexo 1. Registro de C.U'!$B$23:$D$46,3,FALSE)) ->  | M181: =IFERROR(IF(J181="","",(VLOOKUP(J181,'Anexo 1. Registro de C.U'!$B$23:$P$51,7,FALSE))),"") ->  | Q181: 0 | X181: 0 | Y181: 0
B182: =IFERROR(IF(SUM(C182:L182)=0," ",COUNT($B$70:B181)+1),"") ->  | I182: =IF(J182="","",VLOOKUP(J182,'Anexo 1. Registro de C.U'!$B$23:$D$46,3,FALSE)) ->  | M182: =IFERROR(IF(J182="","",(VLOOKUP(J182,'Anexo 1. Registro de C.U'!$B$23:$P$51,7,FALSE))),"") ->  | O182: =IFERROR(IF(J182="","",ROUND(H182*M182*N182,2)),"") ->  | Q182: 0 | T182: =IF(J182="","",IF(OR((J182="Espacios de circulación interior (escalera)"),(J182="Espacios de circulación interior (rampa)")),E182&"Espacios de circulación interior",IF(OR((J182="SS.HH. y/o Vestidores (SS.HH.)"),(J182="SS.HH. y/o Vestidores (vestidores)")),E182&"SS.HH. y/o Vestidores",IF(OR((J182="Laboratorios y/o Talleres (Taller liviano)"),(J182="Laboratorios y/o Talleres (Laboratorio y/o taller pesado)")),E182&"Laboratorios y/o Talleres",E182&J182)))) ->  | V182: =IFERROR(Q182-O182,"") ->  | X182: =+H182 -> 0 | Y182: =+Q182 -> 0
B183: =IFERROR(IF(SUM(C183:L183)=0," ",COUNT($B$70:B182)+1),"") ->  | I183: =IF(J183="","",VLOOKUP(J183,'Anexo 1. Registro de C.U'!$B$23:$D$46,3,FALSE)) ->  | M183: =IFERROR(IF(J183="","",(VLOOKUP(J183,'Anexo 1. Registro de C.U'!$B$23:$P$51,7,FALSE))),"") ->  | Q183: 0 | X183: 0 | Y183: 0
B184: =IFERROR(IF(SUM(C184:L184)=0," ",COUNT($B$70:B183)+1),"") ->  | I184: =IF(J184="","",VLOOKUP(J184,'Anexo 1. Registro de C.U'!$B$23:$D$46,3,FALSE)) ->  | M184: =IFERROR(IF(J184="","",(VLOOKUP(J184,'Anexo 1. Registro de C.U'!$B$23:$P$51,7,FALSE))),"") ->  | Q184: 0 | X184: 0 | Y184: 0
B185: =IFERROR(IF(SUM(C185:L185)=0," ",COUNT($B$70:B184)+1),"") ->  | I185: =IF(J185="","",VLOOKUP(J185,'Anexo 1. Registro de C.U'!$B$23:$D$46,3,FALSE)) ->  | M185: =IFERROR(IF(J185="","",(VLOOKUP(J185,'Anexo 1. Registro de C.U'!$B$23:$P$51,7,FALSE))),"") ->  | Q185: 0 | X185: 0 | Y185: 0
B186: =IFERROR(IF(SUM(C186:L186)=0," ",COUNT($B$70:B185)+1),"") ->  | I186: =IF(J186="","",VLOOKUP(J186,'Anexo 1. Registro de C.U'!$B$23:$D$46,3,FALSE)) ->  | M186: =IFERROR(IF(J186="","",(VLOOKUP(J186,'Anexo 1. Registro de C.U'!$B$23:$P$51,7,FALSE))),"") ->  | Q186: 0 | X186: 0 | Y186: 0
B187: =IFERROR(IF(SUM(C187:L187)=0," ",COUNT($B$70:B186)+1),"") ->  | I187: =IF(J187="","",VLOOKUP(J187,'Anexo 1. Registro de C.U'!$B$23:$D$46,3,FALSE)) ->  | M187: =IFERROR(IF(J187="","",(VLOOKUP(J187,'Anexo 1. Registro de C.U'!$B$23:$P$51,7,FALSE))),"") ->  | Q187: 0 | X187: 0 | Y187: 0
B188: =IFERROR(IF(SUM(C188:L188)=0," ",COUNT($B$70:B187)+1),"") ->  | I188: =IF(J188="","",VLOOKUP(J188,'Anexo 1. Registro de C.U'!$B$23:$D$46,3,FALSE)) ->  | M188: =IFERROR(IF(J188="","",(VLOOKUP(J188,'Anexo 1. Registro de C.U'!$B$23:$P$51,7,FALSE))),"") ->  | Q188: 0 | X188: 0 | Y188: 0
B189: =IFERROR(IF(SUM(C189:L189)=0," ",COUNT($B$70:B188)+1),"") ->  | I189: =IF(J189="","",VLOOKUP(J189,'Anexo 1. Registro de C.U'!$B$23:$D$46,3,FALSE)) ->  | M189: =IFERROR(IF(J189="","",(VLOOKUP(J189,'Anexo 1. Registro de C.U'!$B$23:$P$51,7,FALSE))),"") ->  | Q189: 0 | X189: 0 | Y189: 0
B190: =IFERROR(IF(SUM(C190:L190)=0," ",COUNT($B$70:B189)+1),"") ->  | I190: =IF(J190="","",VLOOKUP(J190,'Anexo 1. Registro de C.U'!$B$23:$D$46,3,FALSE)) ->  | M190: =IFERROR(IF(J190="","",(VLOOKUP(J190,'Anexo 1. Registro de C.U'!$B$23:$P$51,7,FALSE))),"") ->  | Q190: 0 | X190: 0 | Y190: 0
B191: =IFERROR(IF(SUM(C191:L191)=0," ",COUNT($B$70:B190)+1),"") ->  | I191: =IF(J191="","",VLOOKUP(J191,'Anexo 1. Registro de C.U'!$B$23:$D$46,3,FALSE)) ->  | M191: =IFERROR(IF(J191="","",(VLOOKUP(J191,'Anexo 1. Registro de C.U'!$B$23:$P$51,7,FALSE))),"") ->  | Q191: 0 | X191: 0 | Y191: 0
B192: =IFERROR(IF(SUM(C192:L192)=0," ",COUNT($B$70:B191)+1),"") ->  | I192: =IF(J192="","",VLOOKUP(J192,'Anexo 1. Registro de C.U'!$B$23:$D$46,3,FALSE)) ->  | M192: =IFERROR(IF(J192="","",(VLOOKUP(J192,'Anexo 1. Registro de C.U'!$B$23:$P$51,7,FALSE))),"") ->  | Q192: 0 | X192: 0 | Y192: 0
B193: =IFERROR(IF(SUM(C193:L193)=0," ",COUNT($B$70:B192)+1),"") ->  | I193: =IF(J193="","",VLOOKUP(J193,'Anexo 1. Registro de C.U'!$B$23:$D$46,3,FALSE)) ->  | M193: =IFERROR(IF(J193="","",(VLOOKUP(J193,'Anexo 1. Registro de C.U'!$B$23:$P$51,7,FALSE))),"") ->  | Q193: 0 | X193: 0 | Y193: 0
B194: =IFERROR(IF(SUM(C194:L194)=0," ",COUNT($B$70:B193)+1),"") ->  | I194: =IF(J194="","",VLOOKUP(J194,'Anexo 1. Registro de C.U'!$B$23:$D$46,3,FALSE)) ->  | M194: =IFERROR(IF(J194="","",(VLOOKUP(J194,'Anexo 1. Registro de C.U'!$B$23:$P$51,7,FALSE))),"") ->  | Q194: 0 | X194: 0 | Y194: 0
B195: =IFERROR(IF(SUM(C195:L195)=0," ",COUNT($B$70:B194)+1),"") ->  | I195: =IF(J195="","",VLOOKUP(J195,'Anexo 1. Registro de C.U'!$B$23:$D$46,3,FALSE)) ->  | M195: =IFERROR(IF(J195="","",(VLOOKUP(J195,'Anexo 1. Registro de C.U'!$B$23:$P$51,7,FALSE))),"") ->  | Q195: 0 | X195: 0 | Y195: 0
B196: =IFERROR(IF(SUM(C196:L196)=0," ",COUNT($B$70:B195)+1),"") ->  | I196: =IF(J196="","",VLOOKUP(J196,'Anexo 1. Registro de C.U'!$B$23:$D$46,3,FALSE)) ->  | M196: =IFERROR(IF(J196="","",(VLOOKUP(J196,'Anexo 1. Registro de C.U'!$B$23:$P$51,7,FALSE))),"") ->  | Q196: 0 | X196: 0 | Y196: 0
B197: =IFERROR(IF(SUM(C197:L197)=0," ",COUNT($B$70:B196)+1),"") ->  | I197: =IF(J197="","",VLOOKUP(J197,'Anexo 1. Registro de C.U'!$B$23:$D$46,3,FALSE)) ->  | M197: =IFERROR(IF(J197="","",(VLOOKUP(J197,'Anexo 1. Registro de C.U'!$B$23:$P$51,7,FALSE))),"") ->  | Q197: 0 | X197: 0 | Y197: 0
B198: =IFERROR(IF(SUM(C198:L198)=0," ",COUNT($B$70:B197)+1),"") ->  | I198: =IF(J198="","",VLOOKUP(J198,'Anexo 1. Registro de C.U'!$B$23:$D$46,3,FALSE)) ->  | M198: =IFERROR(IF(J198="","",(VLOOKUP(J198,'Anexo 1. Registro de C.U'!$B$23:$P$51,7,FALSE))),"") ->  | P198: =IF(H198="","",H198/SUM($H$70:$H$572)) ->  | Q198: =IFERROR(ROUND($O198+($P198*$H$737),2),0) -> 0 | X198: 0 | Y198: 0
B199: =IFERROR(IF(SUM(C199:L199)=0," ",COUNT($B$70:B198)+1),"") ->  | I199: =IF(J199="","",VLOOKUP(J199,'Anexo 1. Registro de C.U'!$B$23:$D$46,3,FALSE)) ->  | M199: =IFERROR(IF(J199="","",(VLOOKUP(J199,'Anexo 1. Registro de C.U'!$B$23:$P$51,7,FALSE))),"") ->  | N199: =IFERROR(IF(M199="","",1/E199),"") ->  | Q199: 0 | X199: 0 | Y199: 0
B200: =IFERROR(IF(SUM(C200:L200)=0," ",COUNT($B$70:B199)+1),"") ->  | I200: =IF(J200="","",VLOOKUP(J200,'Anexo 1. Registro de C.U'!$B$23:$D$46,3,FALSE)) ->  | M200: =IFERROR(IF(J200="","",(VLOOKUP(J200,'Anexo 1. Registro de C.U'!$B$23:$P$51,7,FALSE))),"") ->  | Q200: 0 | X200: 0 | Y200: 0
B201: =IFERROR(IF(SUM(C201:L201)=0," ",COUNT($B$70:B200)+1),"") ->  | I201: =IF(J201="","",VLOOKUP(J201,'Anexo 1. Registro de C.U'!$B$23:$D$46,3,FALSE)) ->  | M201: =IFERROR(IF(J201="","",(VLOOKUP(J201,'Anexo 1. Registro de C.U'!$B$23:$P$51,7,FALSE))),"") ->  | Q201: 0 | X201: 0 | Y201: 0
B202: =IFERROR(IF(SUM(C202:L202)=0," ",COUNT($B$70:B201)+1),"") ->  | I202: =IF(J202="","",VLOOKUP(J202,'Anexo 1. Registro de C.U'!$B$23:$D$46,3,FALSE)) ->  | M202: =IFERROR(IF(J202="","",(VLOOKUP(J202,'Anexo 1. Registro de C.U'!$B$23:$P$51,7,FALSE))),"") ->  | Q202: 0 | X202: 0 | Y202: 0
B203: =IFERROR(IF(SUM(C203:L203)=0," ",COUNT($B$70:B202)+1),"") ->  | I203: =IF(J203="","",VLOOKUP(J203,'Anexo 1. Registro de C.U'!$B$23:$D$46,3,FALSE)) ->  | M203: =IFERROR(IF(J203="","",(VLOOKUP(J203,'Anexo 1. Registro de C.U'!$B$23:$P$51,7,FALSE))),"") ->  | Q203: 0 | X203: 0 | Y203: 0
B204: =IFERROR(IF(SUM(C204:L204)=0," ",COUNT($B$70:B203)+1),"") ->  | I204: =IF(J204="","",VLOOKUP(J204,'Anexo 1. Registro de C.U'!$B$23:$D$46,3,FALSE)) ->  | M204: =IFERROR(IF(J204="","",(VLOOKUP(J204,'Anexo 1. Registro de C.U'!$B$23:$P$51,7,FALSE))),"") ->  | Q204: 0 | X204: 0 | Y204: 0
B205: =IFERROR(IF(SUM(C205:L205)=0," ",COUNT($B$70:B204)+1),"") ->  | I205: =IF(J205="","",VLOOKUP(J205,'Anexo 1. Registro de C.U'!$B$23:$D$46,3,FALSE)) ->  | M205: =IFERROR(IF(J205="","",(VLOOKUP(J205,'Anexo 1. Registro de C.U'!$B$23:$P$51,7,FALSE))),"") ->  | Q205: 0 | X205: 0 | Y205: 0
B206: =IFERROR(IF(SUM(C206:L206)=0," ",COUNT($B$70:B205)+1),"") ->  | I206: =IF(J206="","",VLOOKUP(J206,'Anexo 1. Registro de C.U'!$B$23:$D$46,3,FALSE)) ->  | M206: =IFERROR(IF(J206="","",(VLOOKUP(J206,'Anexo 1. Registro de C.U'!$B$23:$P$51,7,FALSE))),"") ->  | Q206: 0 | X206: 0 | Y206: 0
B207: =IFERROR(IF(SUM(C207:L207)=0," ",COUNT($B$70:B206)+1),"") ->  | I207: =IF(J207="","",VLOOKUP(J207,'Anexo 1. Registro de C.U'!$B$23:$D$46,3,FALSE)) ->  | M207: =IFERROR(IF(J207="","",(VLOOKUP(J207,'Anexo 1. Registro de C.U'!$B$23:$P$51,7,FALSE))),"") ->  | Q207: 0 | X207: 0 | Y207: 0
B208: =IFERROR(IF(SUM(C208:L208)=0," ",COUNT($B$70:B207)+1),"") ->  | I208: =IF(J208="","",VLOOKUP(J208,'Anexo 1. Registro de C.U'!$B$23:$D$46,3,FALSE)) ->  | M208: =IFERROR(IF(J208="","",(VLOOKUP(J208,'Anexo 1. Registro de C.U'!$B$23:$P$51,7,FALSE))),"") ->  | Q208: 0 | X208: 0 | Y208: 0
B209: =IFERROR(IF(SUM(C209:L209)=0," ",COUNT($B$70:B208)+1),"") ->  | I209: =IF(J209="","",VLOOKUP(J209,'Anexo 1. Registro de C.U'!$B$23:$D$46,3,FALSE)) ->  | M209: =IFERROR(IF(J209="","",(VLOOKUP(J209,'Anexo 1. Registro de C.U'!$B$23:$P$51,7,FALSE))),"") ->  | Q209: 0 | X209: 0 | Y209: 0
B210: =IFERROR(IF(SUM(C210:L210)=0," ",COUNT($B$70:B209)+1),"") ->  | I210: =IF(J210="","",VLOOKUP(J210,'Anexo 1. Registro de C.U'!$B$23:$D$46,3,FALSE)) ->  | M210: =IFERROR(IF(J210="","",(VLOOKUP(J210,'Anexo 1. Registro de C.U'!$B$23:$P$51,7,FALSE))),"") ->  | Q210: 0 | X210: 0 | Y210: 0
B211: =IFERROR(IF(SUM(C211:L211)=0," ",COUNT($B$70:B210)+1),"") ->  | I211: =IF(J211="","",VLOOKUP(J211,'Anexo 1. Registro de C.U'!$B$23:$D$46,3,FALSE)) ->  | M211: =IFERROR(IF(J211="","",(VLOOKUP(J211,'Anexo 1. Registro de C.U'!$B$23:$P$51,7,FALSE))),"") ->  | Q211: 0 | X211: 0 | Y211: 0
B212: =IFERROR(IF(SUM(C212:L212)=0," ",COUNT($B$70:B211)+1),"") ->  | I212: =IF(J212="","",VLOOKUP(J212,'Anexo 1. Registro de C.U'!$B$23:$D$46,3,FALSE)) ->  | M212: =IFERROR(IF(J212="","",(VLOOKUP(J212,'Anexo 1. Registro de C.U'!$B$23:$P$51,7,FALSE))),"") ->  | Q212: 0 | X212: 0 | Y212: 0
B213: =IFERROR(IF(SUM(C213:L213)=0," ",COUNT($B$70:B212)+1),"") ->  | I213: =IF(J213="","",VLOOKUP(J213,'Anexo 1. Registro de C.U'!$B$23:$D$46,3,FALSE)) ->  | M213: =IFERROR(IF(J213="","",(VLOOKUP(J213,'Anexo 1. Registro de C.U'!$B$23:$P$51,7,FALSE))),"") ->  | Q213: 0 | X213: 0 | Y213: 0
B214: =IFERROR(IF(SUM(C214:L214)=0," ",COUNT($B$70:B213)+1),"") ->  | I214: =IF(J214="","",VLOOKUP(J214,'Anexo 1. Registro de C.U'!$B$23:$D$46,3,FALSE)) ->  | M214: =IFERROR(IF(J214="","",(VLOOKUP(J214,'Anexo 1. Registro de C.U'!$B$23:$P$51,7,FALSE))),"") ->  | Q214: 0 | X214: =+H214 -> 0 | Y214: 0
B215: =IFERROR(IF(SUM(C215:L215)=0," ",COUNT($B$70:B214)+1),"") ->  | I215: =IF(J215="","",VLOOKUP(J215,'Anexo 1. Registro de C.U'!$B$23:$D$46,3,FALSE)) ->  | M215: =IFERROR(IF(J215="","",(VLOOKUP(J215,'Anexo 1. Registro de C.U'!$B$23:$P$51,7,FALSE))),"") ->  | Q215: 0 | X215: 0 | Y215: 0
B216: =IFERROR(IF(SUM(C216:L216)=0," ",COUNT($B$70:B215)+1),"") ->  | I216: =IF(J216="","",VLOOKUP(J216,'Anexo 1. Registro de C.U'!$B$23:$D$46,3,FALSE)) ->  | M216: =IFERROR(IF(J216="","",(VLOOKUP(J216,'Anexo 1. Registro de C.U'!$B$23:$P$51,7,FALSE))),"") ->  | Q216: 0 | X216: 0 | Y216: 0
B217: =IFERROR(IF(SUM(C217:L217)=0," ",COUNT($B$70:B216)+1),"") ->  | I217: =IF(J217="","",VLOOKUP(J217,'Anexo 1. Registro de C.U'!$B$23:$D$46,3,FALSE)) ->  | M217: =IFERROR(IF(J217="","",(VLOOKUP(J217,'Anexo 1. Registro de C.U'!$B$23:$P$51,7,FALSE))),"") ->  | Q217: 0 | X217: 0 | Y217: 0
B218: =IFERROR(IF(SUM(C218:L218)=0," ",COUNT($B$70:B217)+1),"") ->  | I218: =IF(J218="","",VLOOKUP(J218,'Anexo 1. Registro de C.U'!$B$23:$D$46,3,FALSE)) ->  | M218: =IFERROR(IF(J218="","",(VLOOKUP(J218,'Anexo 1. Registro de C.U'!$B$23:$P$51,7,FALSE))),"") ->  | Q218: 0 | X218: 0 | Y218: 0
B219: =IFERROR(IF(SUM(C219:L219)=0," ",COUNT($B$70:B218)+1),"") ->  | I219: =IF(J219="","",VLOOKUP(J219,'Anexo 1. Registro de C.U'!$B$23:$D$46,3,FALSE)) ->  | M219: =IFERROR(IF(J219="","",(VLOOKUP(J219,'Anexo 1. Registro de C.U'!$B$23:$P$51,7,FALSE))),"") ->  | Q219: 0 | X219: 0 | Y219: 0
B220: =IFERROR(IF(SUM(C220:L220)=0," ",COUNT($B$70:B219)+1),"") ->  | I220: =IF(J220="","",VLOOKUP(J220,'Anexo 1. Registro de C.U'!$B$23:$D$46,3,FALSE)) ->  | M220: =IFERROR(IF(J220="","",(VLOOKUP(J220,'Anexo 1. Registro de C.U'!$B$23:$P$51,7,FALSE))),"") ->  | Q220: 0 | X220: 0 | Y220: 0
B221: =IFERROR(IF(SUM(C221:L221)=0," ",COUNT($B$70:B220)+1),"") ->  | I221: =IF(J221="","",VLOOKUP(J221,'Anexo 1. Registro de C.U'!$B$23:$D$46,3,FALSE)) ->  | M221: =IFERROR(IF(J221="","",(VLOOKUP(J221,'Anexo 1. Registro de C.U'!$B$23:$P$51,7,FALSE))),"") ->  | Q221: 0 | X221: 0 | Y221: 0
B222: =IFERROR(IF(SUM(C222:L222)=0," ",COUNT($B$70:B221)+1),"") ->  | I222: =IF(J222="","",VLOOKUP(J222,'Anexo 1. Registro de C.U'!$B$23:$D$46,3,FALSE)) ->  | M222: =IFERROR(IF(J222="","",(VLOOKUP(J222,'Anexo 1. Registro de C.U'!$B$23:$P$51,7,FALSE))),"") ->  | Q222: 0 | X222: 0 | Y222: 0
B223: =IFERROR(IF(SUM(C223:L223)=0," ",COUNT($B$70:B222)+1),"") ->  | I223: =IF(J223="","",VLOOKUP(J223,'Anexo 1. Registro de C.U'!$B$23:$D$46,3,FALSE)) ->  | M223: =IFERROR(IF(J223="","",(VLOOKUP(J223,'Anexo 1. Registro de C.U'!$B$23:$P$51,7,FALSE))),"") ->  | O223: =IFERROR(IF(J223="","",ROUND(H223*M223*N223,2)),"") ->  | Q223: 0 | T223: =IF(J223="","",IF(OR((J223="Espacios de circulación interior (escalera)"),(J223="Espacios de circulación interior (rampa)")),E223&"Espacios de circulación interior",IF(OR((J223="SS.HH. y/o Vestidores (SS.HH.)"),(J223="SS.HH. y/o Vestidores (vestidores)")),E223&"SS.HH. y/o Vestidores",IF(OR((J223="Laboratorios y/o Talleres (Taller liviano)"),(J223="Laboratorios y/o Talleres (Laboratorio y/o taller pesado)")),E223&"Laboratorios y/o Talleres",E223&J223)))) ->  | V223: =IFERROR(Q223-O223,"") ->  | X223: 0 | Y223: =+Q223 -> 0
B224: =IFERROR(IF(SUM(C224:L224)=0," ",COUNT($B$70:B223)+1),"") ->  | I224: =IF(J224="","",VLOOKUP(J224,'Anexo 1. Registro de C.U'!$B$23:$D$46,3,FALSE)) ->  | M224: =IFERROR(IF(J224="","",(VLOOKUP(J224,'Anexo 1. Registro de C.U'!$B$23:$P$51,7,FALSE))),"") ->  | Q224: 0 | X224: 0 | Y224: 0
B225: =IFERROR(IF(SUM(C225:L225)=0," ",COUNT($B$70:B224)+1),"") ->  | I225: =IF(J225="","",VLOOKUP(J225,'Anexo 1. Registro de C.U'!$B$23:$D$46,3,FALSE)) ->  | M225: =IFERROR(IF(J225="","",(VLOOKUP(J225,'Anexo 1. Registro de C.U'!$B$23:$P$51,7,FALSE))),"") ->  | Q225: 0 | X225: 0 | Y225: 0
B226: =IFERROR(IF(SUM(C226:L226)=0," ",COUNT($B$70:B225)+1),"") ->  | I226: =IF(J226="","",VLOOKUP(J226,'Anexo 1. Registro de C.U'!$B$23:$D$46,3,FALSE)) ->  | M226: =IFERROR(IF(J226="","",(VLOOKUP(J226,'Anexo 1. Registro de C.U'!$B$23:$P$51,7,FALSE))),"") ->  | Q226: 0 | X226: 0 | Y226: 0
B227: =IFERROR(IF(SUM(C227:L227)=0," ",COUNT($B$70:B226)+1),"") ->  | I227: =IF(J227="","",VLOOKUP(J227,'Anexo 1. Registro de C.U'!$B$23:$D$46,3,FALSE)) ->  | M227: =IFERROR(IF(J227="","",(VLOOKUP(J227,'Anexo 1. Registro de C.U'!$B$23:$P$51,7,FALSE))),"") ->  | Q227: 0 | X227: 0 | Y227: 0
B228: =IFERROR(IF(SUM(C228:L228)=0," ",COUNT($B$70:B227)+1),"") ->  | I228: =IF(J228="","",VLOOKUP(J228,'Anexo 1. Registro de C.U'!$B$23:$D$46,3,FALSE)) ->  | M228: =IFERROR(IF(J228="","",(VLOOKUP(J228,'Anexo 1. Registro de C.U'!$B$23:$P$51,7,FALSE))),"") ->  | Q228: 0 | X228: 0 | Y228: 0
B229: =IFERROR(IF(SUM(C229:L229)=0," ",COUNT($B$70:B228)+1),"") ->  | I229: =IF(J229="","",VLOOKUP(J229,'Anexo 1. Registro de C.U'!$B$23:$D$46,3,FALSE)) ->  | M229: =IFERROR(IF(J229="","",(VLOOKUP(J229,'Anexo 1. Registro de C.U'!$B$23:$P$51,7,FALSE))),"") ->  | Q229: 0 | X229: 0 | Y229: 0
B230: =IFERROR(IF(SUM(C230:L230)=0," ",COUNT($B$70:B229)+1),"") ->  | I230: =IF(J230="","",VLOOKUP(J230,'Anexo 1. Registro de C.U'!$B$23:$D$46,3,FALSE)) ->  | M230: =IFERROR(IF(J230="","",(VLOOKUP(J230,'Anexo 1. Registro de C.U'!$B$23:$P$51,7,FALSE))),"") ->  | Q230: 0 | X230: 0 | Y230: 0
B231: =IFERROR(IF(SUM(C231:L231)=0," ",COUNT($B$70:B230)+1),"") ->  | I231: =IF(J231="","",VLOOKUP(J231,'Anexo 1. Registro de C.U'!$B$23:$D$46,3,FALSE)) ->  | M231: =IFERROR(IF(J231="","",(VLOOKUP(J231,'Anexo 1. Registro de C.U'!$B$23:$P$51,7,FALSE))),"") ->  | Q231: 0 | X231: 0 | Y231: 0
B232: =IFERROR(IF(SUM(C232:L232)=0," ",COUNT($B$70:B231)+1),"") ->  | I232: =IF(J232="","",VLOOKUP(J232,'Anexo 1. Registro de C.U'!$B$23:$D$46,3,FALSE)) ->  | M232: =IFERROR(IF(J232="","",(VLOOKUP(J232,'Anexo 1. Registro de C.U'!$B$23:$P$51,7,FALSE))),"") ->  | Q232: 0 | X232: 0 | Y232: 0
B233: =IFERROR(IF(SUM(C233:L233)=0," ",COUNT($B$70:B232)+1),"") ->  | I233: =IF(J233="","",VLOOKUP(J233,'Anexo 1. Registro de C.U'!$B$23:$D$46,3,FALSE)) ->  | M233: =IFERROR(IF(J233="","",(VLOOKUP(J233,'Anexo 1. Registro de C.U'!$B$23:$P$51,7,FALSE))),"") ->  | Q233: 0 | X233: 0 | Y233: 0
... 481 more rows

Sheet Anexo 3. Presup de MOB y EQUIP
B1: =+FICHA!B2 -> FICHA TÉCNICA ESTÁNDAR PARA EL MEJORAMIENTO, AMPLIACIÓN Y/O RECUPERACIÓN DE LOS SERVICIOS DE EDUCACIÓN INICIAL, PRIMARIA Y SECUNDARIA DEL SECTOR EDUCACIÓN ( Es válido también como Ficha Técnica Simplificada.)
B3: =+FICHA!B4 -> Aplica a montos menor o igual a 15,000 UIT - La información registrada en esta ficha tiene carácter de Declaración Jurada - DS. N° 284-2018-EF
B5: ANEXO 03: PROPUESTA TÉCNICA DE MOBILIARIO Y EQUIPAMIENTO
B8: Parte A: Resumen para Registro de Activos de Mobiliario y Equipos
B10: Acción sobre los activos | F10: Tipo de Factor Productivo | G10: Unidad Física | I10: Precio Unitario (Soles/UM) | J10: Costo Directo Total (Sin IGV puesto en obra)
B12: Acción | D12: Activo que define capacidad (activo estratégico) | G12: Unidad de Medida | H12: Cantidad
B13: =IF(OR(D13="",D13=0),"","Adquisición") -> Adquisición | D13: Mobiliario de Aula de Educación Inicial | F13: =IF(OR($D13="",$D13=0),"","Mobiliario") -> Mobiliario | G13: =IF(OR($D13="",$D13=0),"","Nro. Mobiliario") -> Nro. Mobiliario | H13: =SUMIF($Q$86:$Q$1335,D13,$J$86:$J$1335) -> 0 | I13: =IFERROR(ROUND(J13/H13,2),"") ->  | J13: =SUMIF($Q$86:$Q$1335,D13,$L$86:$L$1335) -> 0 | R13: Aula de Inicial
B14: Adquisición | D14: Mobiliario de Aula de Educación Primaria | F14: Mobiliario | G14: Nro. Mobiliario | H14: 0 | J14: 0 | R14: Aula de Primaria
B15: Adquisición | D15: Mobiliario de Aula de Educación Secundaria | F15: Mobiliario | G15: Nro. Mobiliario | H15: 0 | J15: 0 | R15: Aula de Secundaria
B16: Adquisición | D16: Mobiliario de Sala de psicomotricidad | F16: Mobiliario | G16: Nro. Mobiliario | H16: 0 | J16: 0 | R16: Psicomotricidad
B17: Adquisición | D17: Mobiliario de Aula de Innovación Pedagógica | F17: Mobiliario | G17: Nro. Mobiliario | H17: 0 | J17: 0 | R17: AIP
B18: Adquisición | D18: Mobiliario de Laboratorios y/o Talleres | F18: Mobiliario | G18: Nro. Mobiliario | H18: 0 | J18: 0 | R18: Laboratorios y/o Talleres
B19: Adquisición | D19: Mobiliario de Ambientes Complementarios | F19: Mobiliario | G19: Nro. Mobiliario | H19: 0 | J19: 0 | R19: Amb. Complementarios
B20: Adquisición | D20: Equipo de Aula de Educación Inicial | F20: Equipo | G20: =IF(OR($D20="",$D20=0),"","Nro. Equipo") -> Nro. Equipo | H20: 0 | J20: 0
B21: Adquisición | D21: Equipo de Aula de Educación Primaria | F21: Equipo | G21: =IF(OR($D21="",$D21=0),"","Nro. Equipo") -> Nro. Equipo | H21: 0 | J21: 0
B22: Adquisición | D22: Equipo de Aula de Educación Secundaria | F22: Equipo | G22: Nro. Equipo | H22: 0 | J22: 0
B23: Adquisición | D23: Equipo de Sala de psicomotricidad | F23: Equipo | G23: Nro. Equipo | H23: 0 | J23: 0
B24: Adquisición | D24: Equipo de Aula de Innovación Pedagógica | F24: Equipo | G24: Nro. Equipo | H24: 0 | J24: 0
B25: Adquisición | D25: Equipo de Laboratorios y/o Talleres | F25: Equipo | G25: Nro. Equipo | H25: 0 | J25: 0
B26: Adquisición | D26: Equipo de Ambientes Complementarios | F26: Equipo | G26: Nro. Equipo | H26: 0 | J26: 0
B29: (Activos no Estratégicos) | D29: Otras Acciones de Mobiliario | F29: Mobiliario | G29: Kit de Mobiliario | H29: =+I53 -> 0 | J29: =+G53 -> 0
D30: Otros Acciones de Equipamiento | F30: Equipamiento | G30: Kit de Equipamiento | H30: =+I72 -> 0 | J30: =+G72 -> 0
G32: Cantidad Total | H32: =SUBTOTAL(9,H13:H30) -> 0 | I32: Total de Costos | J32: =SUBTOTAL(9,J13:J30) -> 0 | K32: =+K77-J32 -> 0 | L32: =IF(K32=0,"Ok","revisar") -> Ok
B35: Parte B: Resumen de Kits de Mobiliario y Kits de Equipamiento (Activos no estratégicos)
D37: RESUMEN DE KIT DE MOBILIARIO | F37: Nro. de Elementos | G37: Costo Total a precio de mercado | H37: PU promedio (Soles/UM) | I37: Ingresar la cantidad de KIT (según número de ambientes) | J37: OBS
D40: Kit de Mobiliario de Aula de Educación Inicial | F40: =SUMIF($Q$86:$Q$1335,D40,$J$86:$J$1335) -> 0 | G40: =SUMIF($Q$86:$Q$1335,D40,$L$86:$L$1335) -> 0 | H40: =IFERROR(ROUND(G40/F40,2),"") -> 
D41: Kit de Mobiliario de Aula de Educación Primaria | F41: 0 | G41: 0
D42: Kit de Mobiliario de Aula de Educación Secundaria | F42: 0 | G42: 0
D43: Kit de Mobiliario de Sala de psicomotricidad | F43: 0 | G43: 0
D44: Kit de Mobiliario de Aula de Innovación Pedagógica | F44: 0 | G44: 0
D45: Kit de Mobiliario de Laboratorio | F45: 0 | G45: 0
D46: Kit de Mobiliario de Taller creativo | F46: 0 | G46: 0
D47: Kit de Mobiliario de Taller de arte | F47: 0 | G47: 0
D48: Kit de Mobiliario de Taller de EPT | F48: 0 | G48: 0
D49: Kit de Mobiliario de Cocina | F49: 0 | G49: 0
D50: Kit de Mobiliario de Tópico | F50: 0 | G50: 0
D51: Kit de Mobiliario de Espacios deportivos | F51: 0 | G51: 0
D52: Kit de Mobiliario de Otros Espacios | F52: 0 | G52: 0
D53: Total de Otras Acciones de Mobiliario | F53: =SUM(F40:F52) -> 0 | G53: =SUM(G40:G52) -> 0 | I53: =SUM(I40:I52) -> 0 | J53: kit de Mobiliario
D56: RESUMEN DE KIT DE EQUIPAMIENTO | F56: Nro. de Elementos | G56: Costo Total a precio de mercado | H56: Precio Unitario (Soles/UM) | I56: Ingresar la cantidad de KIT (según número de ambientes) | J56: OBS
D59: Kit de Equipamiento de Aula de Educación Inicial | F59: =SUMIF($Q$86:$Q$1335,D59,$J$86:$J$1335) -> 0 | G59: =SUMIF($Q$86:$Q$1335,D59,$L$86:$L$1335) -> 0 | H59: =IFERROR(ROUND(G59/F59,2),"") -> 
D60: Kit de Equipamiento de Aula de Educación Primaria | F60: 0 | G60: 0
D61: Kit de Equipamiento de Aula de Educación Secundaria | F61: 0 | G61: 0
D62: Kit de Equipamiento de Sala de psicomotricidad | F62: 0 | G62: 0
D63: Kit de Equipamiento de Aula de Innovación Pedagógica | F63: 0 | G63: 0
D64: Kit de Equipamiento de Laboratorio | F64: 0 | G64: 0
D65: Kit de Equipamiento de Taller creativo | F65: 0 | G65: 0
D66: Kit de Equipamiento de Taller de arte | F66: 0 | G66: 0
D67: Kit de Equipamiento de Taller de EPT | F67: 0 | G67: 0
D68: Kit de Equipamiento de Cocina | F68: 0 | G68: 0
D69: Kit de Equipamiento de Tópico | F69: 0 | G69: 0
D70: Kit de Equipamiento de Espacios deportivos | F70: 0 | G70: 0
D71: Kit de Equipamiento de Otros Espacios | F71: 0 | G71: 0
D72: Total de Otras Acciones de Equipamiento | F72: =SUM(F59:F71) -> 0 | G72: =SUM(G59:G71) -> 0 | H72: =IFERROR(ROUND(G72/F72,2),"") ->  | I72: =SUM(I59:I71) -> 0 | J72: kit de equipamiento
B76: Parte C: Detalle de Mobiliario y Equipamiento por tipo de Ambientes
J77: COSTO DIRECTO TOTAL | K77: =ROUND(SUM(L86:L1335),2) -> 0
B78: a) Indicar el Porcentaje (%) que se incrementa por concepto de Transporte y Embalaje : | F78: 0.03 | G78: (i)
B80: b) Indicar el detalle del Mobiliario y Equipamiento por ambientes:
B81: Inicialmente se debe escribir de manera detallada por filas, los bienes asociados a los Activos Estratégicos de Mobiliario y Equipamiento, con los cuales se va a implementar cada uno de los “Tipos de ambientes (Elegir)”. Por lo que se debe escribir en la columna de “Nombre del Mobiliario o equipamiento”, de acuerdo al equipamiento indicado en la normatividad vigente (como las NT de Diseño de Locales Escolares de la EBR, etc.), y elegir de la lista desplegable la opción “Si” en la pregunta “¿Activo Estratégico? (Si/No)”; Por ejemplo: • En el “Tipo de ambiente (Elegir)” se seleccionó de la lista desplegable “Aula de Educación Secundaria”, donde se proyecta se cuente con “Mesas” y “Sillas” para alumnos de secundaria, los cuales se consideran como activos estratégicos, y son del tipo de factor productivo “Mobiliario”, por lo que se selecciona de la lista desplegable “M”. • En el “Tipo de ambiente (Elegir)” se seleccionó de la lista desplegable “Aula de Innovación Pedagógica”, donde se proyecta se cuente con “Mesas de cómputo” y “Sillas”, los cuales se consideran como activos estratégicos de “Mobiliario” por lo que se selecciona de la lista desplegable “M” y con referencia a las “Computadoras (PC)”, son activos estratégicos de “Equipos” por lo que se selecciona de la lista desplegable “E”. Posteriormente, se debe escribir de manera detallada por filas, los bienes asociados a los Activos No Estratégicos (de acuerdo a la NT-SEBR-04), con los cuales se va a implementar cada ambientes o espacios con kit de mobiliario y los kit de equipamiento (referidos a recursos educativos que por sí solos y de forma aislada no tienen un valor estratégico, forman parte de los módulos de materiales concretos, son necesarios como recursos pedagógicos para diferentes situaciones y propósitos educativos, como el desarrollo del pensamiento lógico matemático, la expresión oral, escrita y artística, la animación a la lectura y escritura, actividades motrices y físico – deportivas); Por ejemplo: • En espacios deportivos, se requiere Activo no estratégicos, en el “Tipo de ambiente (Elegir)” se selecciona de la lista desplegable “espacios deportivos”, donde se proyecta se cuente con kit de equipamientos deportivos, por lo que se detalla en cada fila los bienes como: jabalinas, disco de lanzamiento, kit para salto alto (incluye paralelas, varilla y colchoneta), taburete de madera barra de equilibrio, pelotas, etc. • En el ambiente de taller de arte, se requiere Activos no estratégicos, en el “Tipo de ambiente (Elegir)” se selecciona de la lista desplegable “taller de arte”, donde se proyecta se cuente con kit de equipamiento de instrumentos musicales, por lo que se detalla en cada fila los bienes como: Trompeta, trombón de vara, tuba acrílica, clarinete, flauta traversa, pandereta, juego de batería, guitarra, órgano electrónico, etc. • En el ambiente de cocina, se requiere Activos no estratégicos, en el “Tipo de ambiente (Elegir)” se selecciona de la lista desplegable “Cocina”, donde se proyecta se cuente con kit de equipamiento de cocina, por lo que se detalla en cada fila los bienes como: ollas, menaje de cocina, etc.
A84: Orden | B84: Tipo de ambiente (Elegir) | C84: Activos asociado | D84: Nombre del Mobiliario o equipamiento (Escribir) | E84: ¿Activo Estratégico? (Si/No) | F84: Tipo | G84: Nro. de ambientes | H84: Unidad de Medida | I84: Cantidad en cada ambiente | J84: Cantidad Total (ii) | K84: Precio Unitario de mercado (inc. IGV / sin transporte) (iii) | L84: Costo Directo (sin IGV - puesto en obra) (i)*(ii)*(iii)/ IGV
F85: Mobiliario (M) / Equipamiento (E)
A86: 2 | C86: =IF(OR(B86="Laboratorio",B86="Taller creativo",B86="Taller de arte",B86="Taller de EPT"),"Laboratorios y/o Talleres",IF(OR(B86="Cocina",B86="Tópico",B86="Espacios deportivos",B86="Otros espacios"),"Ambientes Complementarios",B86)) -> 0 | H86: =IF(AND(E86="No",F86="E"),("Nro. de elementos"),IF(AND(E86="No",F86="M"),("Nro. de elementos"),IF(AND(E86="Si",F86="E"),("Nro. de Equipos"),IF(AND(E86="Si",F86="M"),("Nro. de Mobiliario"),"")))) ->  | J86: =IF(OR(G86="",I86=""),"",G86*I86) ->  | L86: =IFERROR(ROUND(J86*K86*(1+$F$78)/1.18,2),"") ->  | Q86: =IF(AND(E86="No",F86="E"),("Kit de Equipamiento de "&B86),IF(AND(E86="No",F86="M"),("Kit de Mobiliario de "&B86),IF(AND(E86="Si",F86="E"),("Equipo de "&C86),IF(AND(E86="Si",F86="M"),("Mobiliario de "&C86),"")))) -> 
A87: 3 | C87: 0 | H87: =IF(AND(E87="No",F87="E"),("Nro. de elementos"),IF(AND(E87="No",F87="M"),("Nro. de elementos"),IF(AND(E87="Si",F87="E"),("Nro. de Equipos"),IF(AND(E87="Si",F87="M"),("Nro. de Mobiliario"),"")))) ->  | J87: =IF(OR(G87="",I87=""),"",G87*I87) ->  | L87: =IFERROR(ROUND(J87*K87*(1+$F$78)/1.18,2),"") -> 
A88: 4 | C88: 0
A89: 5 | C89: 0
A90: 6 | C90: 0
A91: 7 | C91: 0
A92: 8 | C92: 0
A93: 9 | C93: 0
A94: 10 | C94: 0
A95: 11 | C95: 0
A96: 12 | C96: 0
A97: 13 | C97: 0
A98: 14 | C98: 0
A99: 15 | C99: 0
A100: 16 | C100: 0
A101: 17 | C101: 0
A102: 18 | C102: 0
A103: 19 | C103: 0
A104: 20 | C104: 0
A105: 21 | C105: 0
A106: 22 | C106: 0
A107: 23 | C107: 0
A108: 24 | C108: 0
A109: 25 | C109: 0
A110: 26 | C110: 0
A111: 27 | C111: 0
A112: 28 | C112: 0
A113: 29 | C113: 0
A114: 30 | C114: 0
A115: 31 | C115: 0
A116: 32 | C116: 0
A117: 33 | C117: 0
A118: 34 | C118: 0
A119: 35 | C119: 0
A120: 36 | C120: 0
A121: 37 | C121: 0
A122: 38 | C122: 0
A123: 39 | C123: 0
A124: 40 | C124: 0
A125: 41 | C125: 0
A126: 42 | C126: 0
A127: 43 | C127: 0
A128: 44 | C128: 0
A129: 45 | C129: 0
A130: 46 | C130: 0
A131: 47 | C131: 0
A132: 48 | C132: 0
A133: 49 | C133: 0
A134: 50 | C134: 0
A135: 51 | C135: 0
A136: 52 | C136: 0
A137: 53 | C137: 0
A138: 54 | C138: 0
A139: 55 | C139: 0
A140: 56 | C140: 0
A141: 57 | C141: 0
A142: 58 | C142: 0
A143: 59 | C143: 0
A144: 60 | C144: 0
A145: 61 | C145: 0
A146: 62 | C146: 0
A147: 63 | C147: 0
A148: 64 | C148: 0
A149: 65 | C149: 0
A150: 66 | C150: =IF(OR(B150="Laboratorio",B150="Taller creativo",B150="Taller de arte",B150="Taller de EPT"),"Laboratorios y/o Talleres",IF(OR(B150="Cocina",B150="Tópico",B150="Espacios deportivos",B150="Otros espacios"),"Ambientes Complementarios",B150)) -> 0 | Q150: =IF(AND(E150="No",F150="E"),("Kit de Equipamiento de "&B150),IF(AND(E150="No",F150="M"),("Kit de Mobiliario de "&B150),IF(AND(E150="Si",F150="E"),("Equipo de "&C150),IF(AND(E150="Si",F150="M"),("Mobiliario de "&C150),"")))) -> 
A151: 67 | C151: 0 | H151: =IF(AND(E151="No",F151="E"),("Nro. de elementos"),IF(AND(E151="No",F151="M"),("Nro. de elementos"),IF(AND(E151="Si",F151="E"),("Nro. de Equipos"),IF(AND(E151="Si",F151="M"),("Nro. de Mobiliario"),"")))) ->  | J151: =IF(OR(G151="",I151=""),"",G151*I151) ->  | L151: =IFERROR(ROUND(J151*K151*(1+$F$78)/1.18,2),"") -> 
A152: 68 | C152: 0
A153: 69 | C153: 0
A154: 70 | C154: 0
A155: 71 | C155: 0
A156: 72 | C156: 0
A157: 73 | C157: 0
A158: 74 | C158: 0
A159: 75 | C159: 0
A160: 76 | C160: 0
A161: 77 | C161: 0
A162: 78 | C162: 0
A163: 79 | C163: 0
A164: 80 | C164: 0
A165: 81 | C165: 0
A166: 82 | C166: 0
A167: 83 | C167: 0
A168: 84 | C168: 0
A169: 85 | C169: 0
A170: 86 | C170: 0
A171: 87 | C171: 0
A172: 88 | C172: 0
A173: 89 | C173: 0
A174: 90 | C174: 0
A175: 91 | C175: 0
A176: 92 | C176: 0
A177: 93 | C177: 0
A178: 94 | C178: 0
A179: 95 | C179: 0
A180: 96 | C180: 0
A181: 97 | C181: 0
A182: 98 | C182: 0
A183: 99 | C183: 0
A184: 100 | C184: 0
A185: 101 | C185: 0
A186: 102 | C186: 0
A187: 103 | C187: 0
A188: 104 | C188: 0
A189: 105 | C189: 0
A190: 106 | C190: 0
A191: 107 | C191: 0
A192: 108 | C192: 0
A193: 109 | C193: 0
A194: 110 | C194: 0
A195: 111 | C195: 0
A196: 112 | C196: 0
A197: 113 | C197: 0
A198: 114 | C198: 0
A199: 115 | C199: 0
A200: 116 | C200: 0
A201: 117 | C201: 0
A202: 118 | C202: 0
A203: 119 | C203: 0
A204: 120 | C204: 0
A205: 121 | C205: 0
A206: 122 | C206: 0
A207: 123 | C207: 0
A208: 124 | C208: 0
A209: 125 | C209: 0
A210: 126 | C210: 0
A211: 127 | C211: 0
A212: 128 | C212: 0
A213: 129 | C213: 0
A214: 130 | C214: =IF(OR(B214="Laboratorio",B214="Taller creativo",B214="Taller de arte",B214="Taller de EPT"),"Laboratorios y/o Talleres",IF(OR(B214="Cocina",B214="Tópico",B214="Espacios deportivos",B214="Otros espacios"),"Ambientes Complementarios",B214)) -> 0 | Q214: =IF(AND(E214="No",F214="E"),("Kit de Equipamiento de "&B214),IF(AND(E214="No",F214="M"),("Kit de Mobiliario de "&B214),IF(AND(E214="Si",F214="E"),("Equipo de "&C214),IF(AND(E214="Si",F214="M"),("Mobiliario de "&C214),"")))) -> 
A215: 131 | C215: 0 | H215: =IF(AND(E215="No",F215="E"),("Nro. de elementos"),IF(AND(E215="No",F215="M"),("Nro. de elementos"),IF(AND(E215="Si",F215="E"),("Nro. de Equipos"),IF(AND(E215="Si",F215="M"),("Nro. de Mobiliario"),"")))) ->  | J215: =IF(OR(G215="",I215=""),"",G215*I215) ->  | L215: =IFERROR(ROUND(J215*K215*(1+$F$78)/1.18,2),"") -> 
A216: 132 | C216: 0
A217: 133 | C217: 0
A218: 134 | C218: 0
A219: 135 | C219: 0
A220: 136 | C220: 0
A221: 144 | C221: 0
A222: 145 | C222: 0
A223: 146 | C223: 0
A224: 147 | C224: 0
... 1111 more rows

Sheet Anexo 4. ACTUALIZAR
A1: =+FICHA!B2 -> FICHA TÉCNICA ESTÁNDAR PARA EL MEJORAMIENTO, AMPLIACIÓN Y/O RECUPERACIÓN DE LOS SERVICIOS DE EDUCACIÓN INICIAL, PRIMARIA Y SECUNDARIA DEL SECTOR EDUCACIÓN ( Es válido también como Ficha Técnica Simplificada.)
A2: =+'Anexo 1. Registro de C.U'!A3:I3 -> Aplica a montos menor o igual a 15,000 UIT - La información registrada en esta ficha tiene carácter de Declaración Jurada - DS. N° 284-2018-EF
A4: ANEXO 04: HACER CLIC EN EL BOTON ACTUALIZAR
G12: Se direcciona al Anexo 02: Presupuesto de Infraestructura
F16: OBRAS CIVILES
B18: N° de edificación (Especificar) | C18: Nombre de Edificación (Especificar) | D18: N° de pisos | E18: Nivel | F18: PRESUPUESTO INFRAESTRUCTURA | G18: Metrado (cantidad) | I18: Unidad de medida | J18: Costo por m2
B20: =IF('Anexo 2. Presup. Infraestruct.'!L23="","",'Anexo 2. Presup. Infraestruct.'!L23) -> 1 | C20: =IF('Anexo 2. Presup. Infraestruct.'!O23="","",'Anexo 2. Presup. Infraestruct.'!O23) ->  | D20: =IF('Anexo 2. Presup. Infraestruct.'!M23="","",'Anexo 2. Presup. Infraestruct.'!M23) ->  | E20: =IF('Anexo 2. Presup. Infraestruct.'!N23="","",'Anexo 2. Presup. Infraestruct.'!N23) ->  | F20: =SUMIF('Anexo 2. Presup. Infraestruct.'!$C$70:$C$604,B20,'Anexo 2. Presup. Infraestruct.'!$Q$70:$Q$604) -> 0 | G20: =SUMIF('Anexo 2. Presup. Infraestruct.'!$C$70:$C$572,B20,'Anexo 2. Presup. Infraestruct.'!$H$70:$H$604) -> 0 | I20: =IF(B20="","",IF(B20="CP","ml",IF(OR(B20="oe",B20="O"),"glb",IF(B20>=1,"m2","")))) -> m2 | J20: =IF(AND(F20=0,G20=0),"",F20/G20) -> 
B21: =IF('Anexo 2. Presup. Infraestruct.'!L24="","",'Anexo 2. Presup. Infraestruct.'!L24) ->  | C21: =IF('Anexo 2. Presup. Infraestruct.'!O24="","",'Anexo 2. Presup. Infraestruct.'!O24) ->  | D21: =IF('Anexo 2. Presup. Infraestruct.'!M24="","",'Anexo 2. Presup. Infraestruct.'!M24) ->  | E21: =IF('Anexo 2. Presup. Infraestruct.'!N24="","",'Anexo 2. Presup. Infraestruct.'!N24) ->  | F21: =SUMIF('Anexo 2. Presup. Infraestruct.'!$C$70:$C$604,B21,'Anexo 2. Presup. Infraestruct.'!$Q$70:$Q$604) -> 0 | G21: =SUMIF('Anexo 2. Presup. Infraestruct.'!$C$70:$C$572,B21,'Anexo 2. Presup. Infraestruct.'!$H$70:$H$604) -> 0 | J21: =IF(AND(F21=0,G21=0),"",F21/G21) -> 
B22: =IF('Anexo 2. Presup. Infraestruct.'!L25="","",'Anexo 2. Presup. Infraestruct.'!L25) ->  | C22: =IF('Anexo 2. Presup. Infraestruct.'!O25="","",'Anexo 2. Presup. Infraestruct.'!O25) ->  | D22: =IF('Anexo 2. Presup. Infraestruct.'!M25="","",'Anexo 2. Presup. Infraestruct.'!M25) ->  | E22: =IF('Anexo 2. Presup. Infraestruct.'!N25="","",'Anexo 2. Presup. Infraestruct.'!N25) ->  | F22: =SUMIF('Anexo 2. Presup. Infraestruct.'!$C$70:$C$604,B22,'Anexo 2. Presup. Infraestruct.'!$Q$70:$Q$604) -> 0 | G22: =SUMIF('Anexo 2. Presup. Infraestruct.'!$C$70:$C$572,B22,'Anexo 2. Presup. Infraestruct.'!$H$70:$H$604) -> 0
B23: =IF('Anexo 2. Presup. Infraestruct.'!L26="","",'Anexo 2. Presup. Infraestruct.'!L26) ->  | C23: =IF('Anexo 2. Presup. Infraestruct.'!O26="","",'Anexo 2. Presup. Infraestruct.'!O26) ->  | D23: =IF('Anexo 2. Presup. Infraestruct.'!M26="","",'Anexo 2. Presup. Infraestruct.'!M26) ->  | E23: =IF('Anexo 2. Presup. Infraestruct.'!N26="","",'Anexo 2. Presup. Infraestruct.'!N26) ->  | F23: =SUMIF('Anexo 2. Presup. Infraestruct.'!$C$70:$C$604,B23,'Anexo 2. Presup. Infraestruct.'!$Q$70:$Q$604) -> 0 | G23: =SUMIF('Anexo 2. Presup. Infraestruct.'!$C$70:$C$572,B23,'Anexo 2. Presup. Infraestruct.'!$H$70:$H$604) -> 0
B24: =IF('Anexo 2. Presup. Infraestruct.'!L27="","",'Anexo 2. Presup. Infraestruct.'!L27) ->  | C24: =IF('Anexo 2. Presup. Infraestruct.'!O27="","",'Anexo 2. Presup. Infraestruct.'!O27) ->  | D24: =IF('Anexo 2. Presup. Infraestruct.'!M27="","",'Anexo 2. Presup. Infraestruct.'!M27) ->  | E24: =IF('Anexo 2. Presup. Infraestruct.'!N27="","",'Anexo 2. Presup. Infraestruct.'!N27) ->  | F24: =SUMIF('Anexo 2. Presup. Infraestruct.'!$C$70:$C$604,B24,'Anexo 2. Presup. Infraestruct.'!$Q$70:$Q$604) -> 0 | G24: =SUMIF('Anexo 2. Presup. Infraestruct.'!$C$70:$C$572,B24,'Anexo 2. Presup. Infraestruct.'!$H$70:$H$604) -> 0
B25: =IF('Anexo 2. Presup. Infraestruct.'!L28="","",'Anexo 2. Presup. Infraestruct.'!L28) ->  | C25: =IF('Anexo 2. Presup. Infraestruct.'!O28="","",'Anexo 2. Presup. Infraestruct.'!O28) ->  | D25: =IF('Anexo 2. Presup. Infraestruct.'!M28="","",'Anexo 2. Presup. Infraestruct.'!M28) ->  | E25: =IF('Anexo 2. Presup. Infraestruct.'!N28="","",'Anexo 2. Presup. Infraestruct.'!N28) ->  | F25: =SUMIF('Anexo 2. Presup. Infraestruct.'!$C$70:$C$604,B25,'Anexo 2. Presup. Infraestruct.'!$Q$70:$Q$604) -> 0 | G25: =SUMIF('Anexo 2. Presup. Infraestruct.'!$C$70:$C$572,B25,'Anexo 2. Presup. Infraestruct.'!$H$70:$H$604) -> 0
B26: =IF('Anexo 2. Presup. Infraestruct.'!L29="","",'Anexo 2. Presup. Infraestruct.'!L29) ->  | C26: =IF('Anexo 2. Presup. Infraestruct.'!O29="","",'Anexo 2. Presup. Infraestruct.'!O29) ->  | D26: =IF('Anexo 2. Presup. Infraestruct.'!M29="","",'Anexo 2. Presup. Infraestruct.'!M29) ->  | E26: =IF('Anexo 2. Presup. Infraestruct.'!N29="","",'Anexo 2. Presup. Infraestruct.'!N29) ->  | F26: =SUMIF('Anexo 2. Presup. Infraestruct.'!$C$70:$C$604,B26,'Anexo 2. Presup. Infraestruct.'!$Q$70:$Q$604) -> 0 | G26: =SUMIF('Anexo 2. Presup. Infraestruct.'!$C$70:$C$572,B26,'Anexo 2. Presup. Infraestruct.'!$H$70:$H$604) -> 0
B27: =IF('Anexo 2. Presup. Infraestruct.'!L30="","",'Anexo 2. Presup. Infraestruct.'!L30) ->  | C27: =IF('Anexo 2. Presup. Infraestruct.'!O30="","",'Anexo 2. Presup. Infraestruct.'!O30) ->  | D27: =IF('Anexo 2. Presup. Infraestruct.'!M30="","",'Anexo 2. Presup. Infraestruct.'!M30) ->  | E27: =IF('Anexo 2. Presup. Infraestruct.'!N30="","",'Anexo 2. Presup. Infraestruct.'!N30) ->  | F27: =SUMIF('Anexo 2. Presup. Infraestruct.'!$C$70:$C$604,B27,'Anexo 2. Presup. Infraestruct.'!$Q$70:$Q$604) -> 0 | G27: =SUMIF('Anexo 2. Presup. Infraestruct.'!$C$70:$C$572,B27,'Anexo 2. Presup. Infraestruct.'!$H$70:$H$604) -> 0
B28: =IF('Anexo 2. Presup. Infraestruct.'!L31="","",'Anexo 2. Presup. Infraestruct.'!L31) ->  | C28: =IF('Anexo 2. Presup. Infraestruct.'!O31="","",'Anexo 2. Presup. Infraestruct.'!O31) ->  | D28: =IF('Anexo 2. Presup. Infraestruct.'!M31="","",'Anexo 2. Presup. Infraestruct.'!M31) ->  | E28: =IF('Anexo 2. Presup. Infraestruct.'!N31="","",'Anexo 2. Presup. Infraestruct.'!N31) ->  | F28: =SUMIF('Anexo 2. Presup. Infraestruct.'!$C$70:$C$604,B28,'Anexo 2. Presup. Infraestruct.'!$Q$70:$Q$604) -> 0 | G28: =SUMIF('Anexo 2. Presup. Infraestruct.'!$C$70:$C$572,B28,'Anexo 2. Presup. Infraestruct.'!$H$70:$H$604) -> 0
B29: =IF('Anexo 2. Presup. Infraestruct.'!L32="","",'Anexo 2. Presup. Infraestruct.'!L32) ->  | C29: =IF('Anexo 2. Presup. Infraestruct.'!O32="","",'Anexo 2. Presup. Infraestruct.'!O32) ->  | D29: =IF('Anexo 2. Presup. Infraestruct.'!M32="","",'Anexo 2. Presup. Infraestruct.'!M32) ->  | E29: =IF('Anexo 2. Presup. Infraestruct.'!N32="","",'Anexo 2. Presup. Infraestruct.'!N32) ->  | F29: =SUMIF('Anexo 2. Presup. Infraestruct.'!$C$70:$C$604,B29,'Anexo 2. Presup. Infraestruct.'!$Q$70:$Q$604) -> 0 | G29: =SUMIF('Anexo 2. Presup. Infraestruct.'!$C$70:$C$572,B29,'Anexo 2. Presup. Infraestruct.'!$H$70:$H$604) -> 0
B30: =IF('Anexo 2. Presup. Infraestruct.'!L33="","",'Anexo 2. Presup. Infraestruct.'!L33) ->  | C30: =IF('Anexo 2. Presup. Infraestruct.'!O33="","",'Anexo 2. Presup. Infraestruct.'!O33) ->  | D30: =IF('Anexo 2. Presup. Infraestruct.'!M33="","",'Anexo 2. Presup. Infraestruct.'!M33) ->  | E30: =IF('Anexo 2. Presup. Infraestruct.'!N33="","",'Anexo 2. Presup. Infraestruct.'!N33) ->  | F30: =SUMIF('Anexo 2. Presup. Infraestruct.'!$C$70:$C$604,B30,'Anexo 2. Presup. Infraestruct.'!$Q$70:$Q$604) -> 0 | G30: =SUMIF('Anexo 2. Presup. Infraestruct.'!$C$70:$C$572,B30,'Anexo 2. Presup. Infraestruct.'!$H$70:$H$604) -> 0
B31: =IF('Anexo 2. Presup. Infraestruct.'!L34="","",'Anexo 2. Presup. Infraestruct.'!L34) ->  | C31: =IF('Anexo 2. Presup. Infraestruct.'!O34="","",'Anexo 2. Presup. Infraestruct.'!O34) ->  | D31: =IF('Anexo 2. Presup. Infraestruct.'!M34="","",'Anexo 2. Presup. Infraestruct.'!M34) ->  | E31: =IF('Anexo 2. Presup. Infraestruct.'!N34="","",'Anexo 2. Presup. Infraestruct.'!N34) ->  | F31: =SUMIF('Anexo 2. Presup. Infraestruct.'!$C$70:$C$604,B31,'Anexo 2. Presup. Infraestruct.'!$Q$70:$Q$604) -> 0 | G31: =SUMIF('Anexo 2. Presup. Infraestruct.'!$C$70:$C$572,B31,'Anexo 2. Presup. Infraestruct.'!$H$70:$H$604) -> 0
B32: =IF('Anexo 2. Presup. Infraestruct.'!L35="","",'Anexo 2. Presup. Infraestruct.'!L35) ->  | C32: =IF('Anexo 2. Presup. Infraestruct.'!O35="","",'Anexo 2. Presup. Infraestruct.'!O35) ->  | D32: =IF('Anexo 2. Presup. Infraestruct.'!M35="","",'Anexo 2. Presup. Infraestruct.'!M35) ->  | E32: =IF('Anexo 2. Presup. Infraestruct.'!N35="","",'Anexo 2. Presup. Infraestruct.'!N35) ->  | F32: =SUMIF('Anexo 2. Presup. Infraestruct.'!$C$70:$C$604,B32,'Anexo 2. Presup. Infraestruct.'!$Q$70:$Q$604) -> 0 | G32: =SUMIF('Anexo 2. Presup. Infraestruct.'!$C$70:$C$572,B32,'Anexo 2. Presup. Infraestruct.'!$H$70:$H$604) -> 0
B33: =IF('Anexo 2. Presup. Infraestruct.'!L36="","",'Anexo 2. Presup. Infraestruct.'!L36) ->  | C33: =IF('Anexo 2. Presup. Infraestruct.'!O36="","",'Anexo 2. Presup. Infraestruct.'!O36) ->  | D33: =IF('Anexo 2. Presup. Infraestruct.'!M36="","",'Anexo 2. Presup. Infraestruct.'!M36) ->  | E33: =IF('Anexo 2. Presup. Infraestruct.'!N36="","",'Anexo 2. Presup. Infraestruct.'!N36) ->  | F33: =SUMIF('Anexo 2. Presup. Infraestruct.'!$C$70:$C$604,B33,'Anexo 2. Presup. Infraestruct.'!$Q$70:$Q$604) -> 0 | G33: =SUMIF('Anexo 2. Presup. Infraestruct.'!$C$70:$C$572,B33,'Anexo 2. Presup. Infraestruct.'!$H$70:$H$604) -> 0
B34: =IF('Anexo 2. Presup. Infraestruct.'!L37="","",'Anexo 2. Presup. Infraestruct.'!L37) ->  | C34: =IF('Anexo 2. Presup. Infraestruct.'!O37="","",'Anexo 2. Presup. Infraestruct.'!O37) ->  | D34: =IF('Anexo 2. Presup. Infraestruct.'!M37="","",'Anexo 2. Presup. Infraestruct.'!M37) ->  | E34: =IF('Anexo 2. Presup. Infraestruct.'!N37="","",'Anexo 2. Presup. Infraestruct.'!N37) ->  | F34: =SUMIF('Anexo 2. Presup. Infraestruct.'!$C$70:$C$604,B34,'Anexo 2. Presup. Infraestruct.'!$Q$70:$Q$604) -> 0 | G34: =SUMIF('Anexo 2. Presup. Infraestruct.'!$C$70:$C$572,B34,'Anexo 2. Presup. Infraestruct.'!$H$70:$H$604) -> 0
B35: =IF('Anexo 2. Presup. Infraestruct.'!L38="","",'Anexo 2. Presup. Infraestruct.'!L38) ->  | C35: =IF('Anexo 2. Presup. Infraestruct.'!O38="","",'Anexo 2. Presup. Infraestruct.'!O38) ->  | D35: =IF('Anexo 2. Presup. Infraestruct.'!M38="","",'Anexo 2. Presup. Infraestruct.'!M38) ->  | E35: =IF('Anexo 2. Presup. Infraestruct.'!N38="","",'Anexo 2. Presup. Infraestruct.'!N38) ->  | F35: =SUMIF('Anexo 2. Presup. Infraestruct.'!$C$70:$C$604,B35,'Anexo 2. Presup. Infraestruct.'!$Q$70:$Q$604) -> 0 | G35: =SUMIF('Anexo 2. Presup. Infraestruct.'!$C$70:$C$572,B35,'Anexo 2. Presup. Infraestruct.'!$H$70:$H$604) -> 0
B36: =IF('Anexo 2. Presup. Infraestruct.'!L39="","",'Anexo 2. Presup. Infraestruct.'!L39) ->  | C36: =IF('Anexo 2. Presup. Infraestruct.'!O39="","",'Anexo 2. Presup. Infraestruct.'!O39) ->  | D36: =IF('Anexo 2. Presup. Infraestruct.'!M39="","",'Anexo 2. Presup. Infraestruct.'!M39) ->  | E36: =IF('Anexo 2. Presup. Infraestruct.'!N39="","",'Anexo 2. Presup. Infraestruct.'!N39) ->  | F36: =SUMIF('Anexo 2. Presup. Infraestruct.'!$C$70:$C$604,B36,'Anexo 2. Presup. Infraestruct.'!$Q$70:$Q$604) -> 0 | G36: =SUMIF('Anexo 2. Presup. Infraestruct.'!$C$70:$C$572,B36,'Anexo 2. Presup. Infraestruct.'!$H$70:$H$604) -> 0
B37: =IF('Anexo 2. Presup. Infraestruct.'!L40="","",'Anexo 2. Presup. Infraestruct.'!L40) ->  | C37: =IF('Anexo 2. Presup. Infraestruct.'!O40="","",'Anexo 2. Presup. Infraestruct.'!O40) ->  | D37: =IF('Anexo 2. Presup. Infraestruct.'!M40="","",'Anexo 2. Presup. Infraestruct.'!M40) ->  | E37: =IF('Anexo 2. Presup. Infraestruct.'!N40="","",'Anexo 2. Presup. Infraestruct.'!N40) ->  | F37: =SUMIF('Anexo 2. Presup. Infraestruct.'!$C$70:$C$604,B37,'Anexo 2. Presup. Infraestruct.'!$Q$70:$Q$604) -> 0 | G37: =SUMIF('Anexo 2. Presup. Infraestruct.'!$C$70:$C$572,B37,'Anexo 2. Presup. Infraestruct.'!$H$70:$H$604) -> 0
B38: =IF('Anexo 2. Presup. Infraestruct.'!L41="","",'Anexo 2. Presup. Infraestruct.'!L41) ->  | C38: =IF('Anexo 2. Presup. Infraestruct.'!O41="","",'Anexo 2. Presup. Infraestruct.'!O41) ->  | D38: =IF('Anexo 2. Presup. Infraestruct.'!M41="","",'Anexo 2. Presup. Infraestruct.'!M41) ->  | E38: =IF('Anexo 2. Presup. Infraestruct.'!N41="","",'Anexo 2. Presup. Infraestruct.'!N41) ->  | F38: =SUMIF('Anexo 2. Presup. Infraestruct.'!$C$70:$C$604,B38,'Anexo 2. Presup. Infraestruct.'!$Q$70:$Q$604) -> 0 | G38: =SUMIF('Anexo 2. Presup. Infraestruct.'!$C$70:$C$572,B38,'Anexo 2. Presup. Infraestruct.'!$H$70:$H$604) -> 0
B39: =IF('Anexo 2. Presup. Infraestruct.'!L42="","",'Anexo 2. Presup. Infraestruct.'!L42) ->  | C39: =IF('Anexo 2. Presup. Infraestruct.'!O42="","",'Anexo 2. Presup. Infraestruct.'!O42) ->  | D39: =IF('Anexo 2. Presup. Infraestruct.'!M42="","",'Anexo 2. Presup. Infraestruct.'!M42) ->  | E39: =IF('Anexo 2. Presup. Infraestruct.'!N42="","",'Anexo 2. Presup. Infraestruct.'!N42) ->  | F39: =SUMIF('Anexo 2. Presup. Infraestruct.'!$C$70:$C$604,B39,'Anexo 2. Presup. Infraestruct.'!$Q$70:$Q$604) -> 0 | G39: =SUMIF('Anexo 2. Presup. Infraestruct.'!$C$70:$C$572,B39,'Anexo 2. Presup. Infraestruct.'!$H$70:$H$604) -> 0
B40: =SUMIF('Anexo 2. Presup. Infraestruct.'!$C$70:$C$604,#REF!,'Anexo 2. Presup. Infraestruct.'!$Q$70:$Q$604) -> 0
B41: =IF('Anexo 2. Presup. Infraestruct.'!L44="","",'Anexo 2. Presup. Infraestruct.'!L44) -> OE | C41: =IF('Anexo 2. Presup. Infraestruct.'!M44="","",'Anexo 2. Presup. Infraestruct.'!M44) -> Obras Exteriores (Cerco perimétrico y Muros de contención, Espacios Deportivos con/sin cobertura, Espacios Exteriores y Instalaciones Exteriores de Servicios Básicos) | F41: =SUMIF('Anexo 2. Presup. Infraestruct.'!$C$70:$C$604,B41,'Anexo 2. Presup. Infraestruct.'!$Q$70:$Q$604) -> 0
F42: =ROUND(SUM(F20:F41),2) -> 0 | G42: =SUM(G20:H41) -> 0
F43: =IF(F42-('Anexo 2. Presup. Infraestruct.'!R741=0),"Validación = OK", "Error") -> Error | G43: =IF(G42='Anexo 2. Presup. Infraestruct.'!H573,"Validación = OK", "Error") -> Validación = OK
C46: Tipo | D46: Presupuesto de Infraestructura | F46: =+G18 -> Metrado (cantidad) | G46: Costo por m2 (promedio por todos las Edificaciones o bloques)
C47: EDIFICACIONES | D47: =SUM(F20:F40) -> 0 | F47: =SUM(G20:H39) -> 0 | G47: =IFERROR(D47/F47,"") -> 
C48: OBRAS COMPLEMENTARIAS | D48: =SUM(F41:F41) -> 0
C49: TOTAL DE OBRAS CIVILES | D49: =SUM(D47:E48) -> 0
F51: MOBILIARIO Y EQUIPAMIENTO
C53: Tipo | D53: Presupuesto Mobiliario y Equipamiento | F53: =+F46 -> Metrado (cantidad) | G53: Costo promedio
C54: MOBILIARIO | D54: =SUM(K120:K127) -> 0 | F54: =SUM(H120:H127) -> 0 | G54: =IFERROR(D54/F54,"") -> 
C55: EQUIPAMIENTO | D55: =SUM(K129:K137) -> 0 | F55: =SUM(H129:H136) -> 0 | G55: =IFERROR(D55/F55,"") -> 
D56: =SUM(D54:E55) -> 0
C58: COSTO DE METAS FISICAS | D58: =ROUND(D49+D56,2) -> 0 | F58: =IF(D58=K239,"Validación = OK", "Error") -> Validación = OK
C59: (Incluye Infraestructura, Equipamiento y Mobiliario)
B61: D) Acciones
B63: Acción sobre los activos | F63: Tipo de Factor Productivo | G63: Unidad Física | I63: Dimensión Física | K63: Costo a precio de mercado
B65: Acción | C65: Activo Estratégico | G65: Unidad de medida | H65: Cantidad | I65: Unidad de medida | J65: Cantidad | T65: Etiquetas de fila | U65: resumen de activos | W65: Tipo de Factor Productivo | X65: Unidad de medida | Y65: Cantidad | Z65: Unidad de medida | AA65: Cantidad | AB65: Costo a precio de mercado
U66: =+T66 -> 0
B67: =IF(C67="","",IF(S67="1","Construcción",IF(S67="2","Reforzamiento",IF(S67="3","Remodelación",IF(OR(S67="4",S67="5"),"Rehabilitación",""))))) ->  | C67: =IF(OR(T67="",T67=0,T67="Total General",T67="(en blanco)"),"",MID(T67,2,80)) ->  | F67: =IF(C67="","","Infraestructura") ->  | G67: =IF(C67="","",VLOOKUP(C67,'Anexo 1. Registro de C.U'!$B$23:$P$54,2,FALSE)) ->  | H67: =IF(T67="","",COUNTIF('Anexo 2. Presup. Infraestruct.'!$T$70:$T$604,T67)) -> 0 | I67: =IF(C67="","",VLOOKUP(C67,'Anexo 1. Registro de C.U'!$B$23:$P$54,3,FALSE)) ->  | J67: =IF(T67="","",SUMIF('Anexo 2. Presup. Infraestruct.'!$T$70:$T$701,T67,'Anexo 2. Presup. Infraestruct.'!$X$70:$X$604)) -> 0 | K67: =IF(T67="","",SUMIF('Anexo 2. Presup. Infraestruct.'!$T$70:$T$701,T67,'Anexo 2. Presup. Infraestruct.'!$Y$70:$Y$604)) -> 0 | M67: =+B67 ->  | S67: =MID(T67,1,1) -> ( | T67: (en blanco) | U67: =IFERROR(VLOOKUP(C67,'Anexo 1. Registro de C.U'!$B$23:$T$53,19,FALSE)&T67,"") ->  | V67: =+K67 -> 0 | W67: =+F67 ->  | Y67: 0 | AA67: 0 | AB67: 0
B68: =IF(C68="","",IF(S68="1","Construcción",IF(S68="2","Reforzamiento",IF(S68="3","Remodelación",IF(OR(S68="4",S68="5"),"Rehabilitación",""))))) ->  | C68: =IF(OR(T68="",T68=0,T68="Total General",T68="(en blanco)"),"",MID(T68,2,80)) ->  | G68: =IF(C68="","",VLOOKUP(C68,'Anexo 1. Registro de C.U'!$B$23:$P$54,2,FALSE)) ->  | H68: =IF(T68="","",COUNTIF('Anexo 2. Presup. Infraestruct.'!$T$70:$T$604,T68)) -> 0 | I68: =IF(C68="","",VLOOKUP(C68,'Anexo 1. Registro de C.U'!$B$23:$P$54,3,FALSE)) ->  | J68: =IF(T68="","",SUMIF('Anexo 2. Presup. Infraestruct.'!$T$70:$T$701,T68,'Anexo 2. Presup. Infraestruct.'!$X$70:$X$604)) -> 0 | K68: =IF(T68="","",SUMIF('Anexo 2. Presup. Infraestruct.'!$T$70:$T$701,T68,'Anexo 2. Presup. Infraestruct.'!$Y$70:$Y$604)) -> 0 | M68: =+B68 ->  | S68: =MID(T68,1,1) -> T | T68: Total general | U68: =IFERROR(VLOOKUP(C68,'Anexo 1. Registro de C.U'!$B$23:$T$53,19,FALSE)&T68,"") ->  | V68: =+K68 -> 0 | W68: =+F68 ->  | X68: =+G68 ->  | Y68: =+H68 -> 0 | Z68: =+I68 ->  | AA68: =+J68 -> 0 | AB68: =+K68 -> 0
G69: =IF(C69="","",VLOOKUP(C69,'Anexo 1. Registro de C.U'!$B$23:$P$54,2,FALSE)) ->  | H69: =IF(T69="","",COUNTIF('Anexo 2. Presup. Infraestruct.'!$T$70:$T$604,T69)) ->  | I69: =IF(C69="","",VLOOKUP(C69,'Anexo 1. Registro de C.U'!$B$23:$P$54,3,FALSE)) ->  | J69: =IF(T69="","",SUMIF('Anexo 2. Presup. Infraestruct.'!$T$70:$T$701,T69,'Anexo 2. Presup. Infraestruct.'!$X$70:$X$604)) ->  | K69: =IF(T69="","",SUMIF('Anexo 2. Presup. Infraestruct.'!$T$70:$T$701,T69,'Anexo 2. Presup. Infraestruct.'!$Y$70:$Y$604)) ->  | U69: =IFERROR(VLOOKUP(C69,'Anexo 1. Registro de C.U'!$B$23:$T$53,19,FALSE)&T69,"") -> 
G70: =IF(C70="","",VLOOKUP(C70,'Anexo 1. Registro de C.U'!$B$23:$P$54,2,FALSE)) ->  | H70: =IF(T70="","",COUNTIF('Anexo 2. Presup. Infraestruct.'!$T$70:$T$604,T70)) ->  | I70: =IF(C70="","",VLOOKUP(C70,'Anexo 1. Registro de C.U'!$B$23:$P$54,3,FALSE)) ->  | J70: =IF(T70="","",SUMIF('Anexo 2. Presup. Infraestruct.'!$T$70:$T$701,T70,'Anexo 2. Presup. Infraestruct.'!$X$70:$X$604)) ->  | K70: =IF(T70="","",SUMIF('Anexo 2. Presup. Infraestruct.'!$T$70:$T$701,T70,'Anexo 2. Presup. Infraestruct.'!$Y$70:$Y$604)) ->  | U70: =IFERROR(VLOOKUP(C70,'Anexo 1. Registro de C.U'!$B$23:$T$53,19,FALSE)&T70,"") -> 
G71: =IF(C71="","",VLOOKUP(C71,'Anexo 1. Registro de C.U'!$B$23:$P$54,2,FALSE)) ->  | H71: =IF(T71="","",COUNTIF('Anexo 2. Presup. Infraestruct.'!$T$70:$T$604,T71)) ->  | I71: =IF(C71="","",VLOOKUP(C71,'Anexo 1. Registro de C.U'!$B$23:$P$54,3,FALSE)) ->  | J71: =IF(T71="","",SUMIF('Anexo 2. Presup. Infraestruct.'!$T$70:$T$701,T71,'Anexo 2. Presup. Infraestruct.'!$X$70:$X$604)) ->  | K71: =IF(T71="","",SUMIF('Anexo 2. Presup. Infraestruct.'!$T$70:$T$701,T71,'Anexo 2. Presup. Infraestruct.'!$Y$70:$Y$604)) ->  | U71: =IFERROR(VLOOKUP(C71,'Anexo 1. Registro de C.U'!$B$23:$T$53,19,FALSE)&T71,"") -> 
G72: =IF(C72="","",VLOOKUP(C72,'Anexo 1. Registro de C.U'!$B$23:$P$54,2,FALSE)) ->  | H72: =IF(T72="","",COUNTIF('Anexo 2. Presup. Infraestruct.'!$T$70:$T$604,T72)) ->  | I72: =IF(C72="","",VLOOKUP(C72,'Anexo 1. Registro de C.U'!$B$23:$P$54,3,FALSE)) ->  | J72: =IF(T72="","",SUMIF('Anexo 2. Presup. Infraestruct.'!$T$70:$T$701,T72,'Anexo 2. Presup. Infraestruct.'!$X$70:$X$604)) ->  | K72: =IF(T72="","",SUMIF('Anexo 2. Presup. Infraestruct.'!$T$70:$T$701,T72,'Anexo 2. Presup. Infraestruct.'!$Y$70:$Y$604)) ->  | U72: =IFERROR(VLOOKUP(C72,'Anexo 1. Registro de C.U'!$B$23:$T$53,19,FALSE)&T72,"") -> 
G73: =IF(C73="","",VLOOKUP(C73,'Anexo 1. Registro de C.U'!$B$23:$P$54,2,FALSE)) ->  | H73: =IF(T73="","",COUNTIF('Anexo 2. Presup. Infraestruct.'!$T$70:$T$604,T73)) ->  | I73: =IF(C73="","",VLOOKUP(C73,'Anexo 1. Registro de C.U'!$B$23:$P$54,3,FALSE)) ->  | J73: =IF(T73="","",SUMIF('Anexo 2. Presup. Infraestruct.'!$T$70:$T$701,T73,'Anexo 2. Presup. Infraestruct.'!$X$70:$X$604)) ->  | K73: =IF(T73="","",SUMIF('Anexo 2. Presup. Infraestruct.'!$T$70:$T$701,T73,'Anexo 2. Presup. Infraestruct.'!$Y$70:$Y$604)) ->  | U73: =IFERROR(VLOOKUP(C73,'Anexo 1. Registro de C.U'!$B$23:$T$53,19,FALSE)&T73,"") -> 
G74: =IF(C74="","",VLOOKUP(C74,'Anexo 1. Registro de C.U'!$B$23:$P$54,2,FALSE)) ->  | H74: =IF(T74="","",COUNTIF('Anexo 2. Presup. Infraestruct.'!$T$70:$T$604,T74)) ->  | I74: =IF(C74="","",VLOOKUP(C74,'Anexo 1. Registro de C.U'!$B$23:$P$54,3,FALSE)) ->  | J74: =IF(T74="","",SUMIF('Anexo 2. Presup. Infraestruct.'!$T$70:$T$701,T74,'Anexo 2. Presup. Infraestruct.'!$X$70:$X$604)) ->  | K74: =IF(T74="","",SUMIF('Anexo 2. Presup. Infraestruct.'!$T$70:$T$701,T74,'Anexo 2. Presup. Infraestruct.'!$Y$70:$Y$604)) ->  | U74: =IFERROR(VLOOKUP(C74,'Anexo 1. Registro de C.U'!$B$23:$T$53,19,FALSE)&T74,"") -> 
G75: =IF(C75="","",VLOOKUP(C75,'Anexo 1. Registro de C.U'!$B$23:$P$54,2,FALSE)) ->  | H75: =IF(T75="","",COUNTIF('Anexo 2. Presup. Infraestruct.'!$T$70:$T$604,T75)) ->  | I75: =IF(C75="","",VLOOKUP(C75,'Anexo 1. Registro de C.U'!$B$23:$P$54,3,FALSE)) ->  | J75: =IF(T75="","",SUMIF('Anexo 2. Presup. Infraestruct.'!$T$70:$T$701,T75,'Anexo 2. Presup. Infraestruct.'!$X$70:$X$604)) ->  | K75: =IF(T75="","",SUMIF('Anexo 2. Presup. Infraestruct.'!$T$70:$T$701,T75,'Anexo 2. Presup. Infraestruct.'!$Y$70:$Y$604)) ->  | U75: =IFERROR(VLOOKUP(C75,'Anexo 1. Registro de C.U'!$B$23:$T$53,19,FALSE)&T75,"") -> 
G76: =IF(C76="","",VLOOKUP(C76,'Anexo 1. Registro de C.U'!$B$23:$P$54,2,FALSE)) ->  | H76: =IF(T76="","",COUNTIF('Anexo 2. Presup. Infraestruct.'!$T$70:$T$604,T76)) ->  | I76: =IF(C76="","",VLOOKUP(C76,'Anexo 1. Registro de C.U'!$B$23:$P$54,3,FALSE)) ->  | J76: =IF(T76="","",SUMIF('Anexo 2. Presup. Infraestruct.'!$T$70:$T$701,T76,'Anexo 2. Presup. Infraestruct.'!$X$70:$X$604)) ->  | K76: =IF(T76="","",SUMIF('Anexo 2. Presup. Infraestruct.'!$T$70:$T$701,T76,'Anexo 2. Presup. Infraestruct.'!$Y$70:$Y$604)) ->  | U76: =IFERROR(VLOOKUP(C76,'Anexo 1. Registro de C.U'!$B$23:$T$53,19,FALSE)&T76,"") -> 
G77: =IF(C77="","",VLOOKUP(C77,'Anexo 1. Registro de C.U'!$B$23:$P$54,2,FALSE)) ->  | H77: =IF(T77="","",COUNTIF('Anexo 2. Presup. Infraestruct.'!$T$70:$T$604,T77)) ->  | I77: =IF(C77="","",VLOOKUP(C77,'Anexo 1. Registro de C.U'!$B$23:$P$54,3,FALSE)) ->  | J77: =IF(T77="","",SUMIF('Anexo 2. Presup. Infraestruct.'!$T$70:$T$701,T77,'Anexo 2. Presup. Infraestruct.'!$X$70:$X$604)) ->  | K77: =IF(T77="","",SUMIF('Anexo 2. Presup. Infraestruct.'!$T$70:$T$701,T77,'Anexo 2. Presup. Infraestruct.'!$Y$70:$Y$604)) ->  | U77: =IFERROR(VLOOKUP(C77,'Anexo 1. Registro de C.U'!$B$23:$T$53,19,FALSE)&T77,"") -> 
G78: =IF(C78="","",VLOOKUP(C78,'Anexo 1. Registro de C.U'!$B$23:$P$54,2,FALSE)) ->  | H78: =IF(T78="","",COUNTIF('Anexo 2. Presup. Infraestruct.'!$T$70:$T$604,T78)) ->  | I78: =IF(C78="","",VLOOKUP(C78,'Anexo 1. Registro de C.U'!$B$23:$P$54,3,FALSE)) ->  | J78: =IF(T78="","",SUMIF('Anexo 2. Presup. Infraestruct.'!$T$70:$T$701,T78,'Anexo 2. Presup. Infraestruct.'!$X$70:$X$604)) ->  | K78: =IF(T78="","",SUMIF('Anexo 2. Presup. Infraestruct.'!$T$70:$T$701,T78,'Anexo 2. Presup. Infraestruct.'!$Y$70:$Y$604)) ->  | U78: =IFERROR(VLOOKUP(C78,'Anexo 1. Registro de C.U'!$B$23:$T$53,19,FALSE)&T78,"") -> 
G79: =IF(C79="","",VLOOKUP(C79,'Anexo 1. Registro de C.U'!$B$23:$P$54,2,FALSE)) ->  | H79: =IF(T79="","",COUNTIF('Anexo 2. Presup. Infraestruct.'!$T$70:$T$604,T79)) ->  | I79: =IF(C79="","",VLOOKUP(C79,'Anexo 1. Registro de C.U'!$B$23:$P$54,3,FALSE)) ->  | J79: =IF(T79="","",SUMIF('Anexo 2. Presup. Infraestruct.'!$T$70:$T$701,T79,'Anexo 2. Presup. Infraestruct.'!$X$70:$X$604)) ->  | K79: =IF(T79="","",SUMIF('Anexo 2. Presup. Infraestruct.'!$T$70:$T$701,T79,'Anexo 2. Presup. Infraestruct.'!$Y$70:$Y$604)) ->  | U79: =IFERROR(VLOOKUP(C79,'Anexo 1. Registro de C.U'!$B$23:$T$53,19,FALSE)&T79,"") -> 
G80: =IF(C80="","",VLOOKUP(C80,'Anexo 1. Registro de C.U'!$B$23:$P$54,2,FALSE)) ->  | H80: =IF(T80="","",COUNTIF('Anexo 2. Presup. Infraestruct.'!$T$70:$T$604,T80)) ->  | I80: =IF(C80="","",VLOOKUP(C80,'Anexo 1. Registro de C.U'!$B$23:$P$54,3,FALSE)) ->  | J80: =IF(T80="","",SUMIF('Anexo 2. Presup. Infraestruct.'!$T$70:$T$701,T80,'Anexo 2. Presup. Infraestruct.'!$X$70:$X$604)) ->  | K80: =IF(T80="","",SUMIF('Anexo 2. Presup. Infraestruct.'!$T$70:$T$701,T80,'Anexo 2. Presup. Infraestruct.'!$Y$70:$Y$604)) ->  | U80: =IFERROR(VLOOKUP(C80,'Anexo 1. Registro de C.U'!$B$23:$T$53,19,FALSE)&T80,"") -> 
G81: =IF(C81="","",VLOOKUP(C81,'Anexo 1. Registro de C.U'!$B$23:$P$54,2,FALSE)) ->  | H81: =IF(T81="","",COUNTIF('Anexo 2. Presup. Infraestruct.'!$T$70:$T$604,T81)) ->  | I81: =IF(C81="","",VLOOKUP(C81,'Anexo 1. Registro de C.U'!$B$23:$P$54,3,FALSE)) ->  | J81: =IF(T81="","",SUMIF('Anexo 2. Presup. Infraestruct.'!$T$70:$T$701,T81,'Anexo 2. Presup. Infraestruct.'!$X$70:$X$604)) ->  | K81: =IF(T81="","",SUMIF('Anexo 2. Presup. Infraestruct.'!$T$70:$T$701,T81,'Anexo 2. Presup. Infraestruct.'!$Y$70:$Y$604)) ->  | U81: =IFERROR(VLOOKUP(C81,'Anexo 1. Registro de C.U'!$B$23:$T$53,19,FALSE)&T81,"") -> 
G82: =IF(C82="","",VLOOKUP(C82,'Anexo 1. Registro de C.U'!$B$23:$P$54,2,FALSE)) ->  | H82: =IF(T82="","",COUNTIF('Anexo 2. Presup. Infraestruct.'!$T$70:$T$604,T82)) ->  | I82: =IF(C82="","",VLOOKUP(C82,'Anexo 1. Registro de C.U'!$B$23:$P$54,3,FALSE)) ->  | J82: =IF(T82="","",SUMIF('Anexo 2. Presup. Infraestruct.'!$T$70:$T$701,T82,'Anexo 2. Presup. Infraestruct.'!$X$70:$X$604)) ->  | K82: =IF(T82="","",SUMIF('Anexo 2. Presup. Infraestruct.'!$T$70:$T$701,T82,'Anexo 2. Presup. Infraestruct.'!$Y$70:$Y$604)) ->  | U82: =IFERROR(VLOOKUP(C82,'Anexo 1. Registro de C.U'!$B$23:$T$53,19,FALSE)&T82,"") -> 
G83: =IF(C83="","",VLOOKUP(C83,'Anexo 1. Registro de C.U'!$B$23:$P$54,2,FALSE)) ->  | H83: =IF(T83="","",COUNTIF('Anexo 2. Presup. Infraestruct.'!$T$70:$T$604,T83)) ->  | I83: =IF(C83="","",VLOOKUP(C83,'Anexo 1. Registro de C.U'!$B$23:$P$54,3,FALSE)) ->  | J83: =IF(T83="","",SUMIF('Anexo 2. Presup. Infraestruct.'!$T$70:$T$701,T83,'Anexo 2. Presup. Infraestruct.'!$X$70:$X$604)) ->  | K83: =IF(T83="","",SUMIF('Anexo 2. Presup. Infraestruct.'!$T$70:$T$701,T83,'Anexo 2. Presup. Infraestruct.'!$Y$70:$Y$604)) ->  | U83: =IFERROR(VLOOKUP(C83,'Anexo 1. Registro de C.U'!$B$23:$T$53,19,FALSE)&T83,"") -> 
G84: =IF(C84="","",VLOOKUP(C84,'Anexo 1. Registro de C.U'!$B$23:$P$54,2,FALSE)) ->  | H84: =IF(T84="","",COUNTIF('Anexo 2. Presup. Infraestruct.'!$T$70:$T$604,T84)) ->  | I84: =IF(C84="","",VLOOKUP(C84,'Anexo 1. Registro de C.U'!$B$23:$P$54,3,FALSE)) ->  | J84: =IF(T84="","",SUMIF('Anexo 2. Presup. Infraestruct.'!$T$70:$T$701,T84,'Anexo 2. Presup. Infraestruct.'!$X$70:$X$604)) ->  | K84: =IF(T84="","",SUMIF('Anexo 2. Presup. Infraestruct.'!$T$70:$T$701,T84,'Anexo 2. Presup. Infraestruct.'!$Y$70:$Y$604)) ->  | U84: =IFERROR(VLOOKUP(C84,'Anexo 1. Registro de C.U'!$B$23:$T$53,19,FALSE)&T84,"") -> 
G85: =IF(C85="","",VLOOKUP(C85,'Anexo 1. Registro de C.U'!$B$23:$P$54,2,FALSE)) ->  | H85: =IF(T85="","",COUNTIF('Anexo 2. Presup. Infraestruct.'!$T$70:$T$604,T85)) ->  | I85: =IF(C85="","",VLOOKUP(C85,'Anexo 1. Registro de C.U'!$B$23:$P$54,3,FALSE)) ->  | J85: =IF(T85="","",SUMIF('Anexo 2. Presup. Infraestruct.'!$T$70:$T$701,T85,'Anexo 2. Presup. Infraestruct.'!$X$70:$X$604)) ->  | K85: =IF(T85="","",SUMIF('Anexo 2. Presup. Infraestruct.'!$T$70:$T$701,T85,'Anexo 2. Presup. Infraestruct.'!$Y$70:$Y$604)) ->  | U85: =IFERROR(VLOOKUP(C85,'Anexo 1. Registro de C.U'!$B$23:$T$53,19,FALSE)&T85,"") -> 
G86: =IF(C86="","",VLOOKUP(C86,'Anexo 1. Registro de C.U'!$B$23:$P$54,2,FALSE)) ->  | H86: =IF(T86="","",COUNTIF('Anexo 2. Presup. Infraestruct.'!$T$70:$T$604,T86)) ->  | I86: =IF(C86="","",VLOOKUP(C86,'Anexo 1. Registro de C.U'!$B$23:$P$54,3,FALSE)) ->  | J86: =IF(T86="","",SUMIF('Anexo 2. Presup. Infraestruct.'!$T$70:$T$701,T86,'Anexo 2. Presup. Infraestruct.'!$X$70:$X$604)) ->  | K86: =IF(T86="","",SUMIF('Anexo 2. Presup. Infraestruct.'!$T$70:$T$701,T86,'Anexo 2. Presup. Infraestruct.'!$Y$70:$Y$604)) ->  | U86: =IFERROR(VLOOKUP(C86,'Anexo 1. Registro de C.U'!$B$23:$T$53,19,FALSE)&T86,"") -> 
G87: =IF(C87="","",VLOOKUP(C87,'Anexo 1. Registro de C.U'!$B$23:$P$54,2,FALSE)) ->  | H87: =IF(T87="","",COUNTIF('Anexo 2. Presup. Infraestruct.'!$T$70:$T$604,T87)) ->  | I87: =IF(C87="","",VLOOKUP(C87,'Anexo 1. Registro de C.U'!$B$23:$P$54,3,FALSE)) ->  | J87: =IF(T87="","",SUMIF('Anexo 2. Presup. Infraestruct.'!$T$70:$T$701,T87,'Anexo 2. Presup. Infraestruct.'!$X$70:$X$604)) ->  | K87: =IF(T87="","",SUMIF('Anexo 2. Presup. Infraestruct.'!$T$70:$T$701,T87,'Anexo 2. Presup. Infraestruct.'!$Y$70:$Y$604)) ->  | U87: =IFERROR(VLOOKUP(C87,'Anexo 1. Registro de C.U'!$B$23:$T$53,19,FALSE)&T87,"") -> 
G88: =IF(C88="","",VLOOKUP(C88,'Anexo 1. Registro de C.U'!$B$23:$P$54,2,FALSE)) ->  | H88: =IF(T88="","",COUNTIF('Anexo 2. Presup. Infraestruct.'!$T$70:$T$604,T88)) ->  | I88: =IF(C88="","",VLOOKUP(C88,'Anexo 1. Registro de C.U'!$B$23:$P$54,3,FALSE)) ->  | J88: =IF(T88="","",SUMIF('Anexo 2. Presup. Infraestruct.'!$T$70:$T$701,T88,'Anexo 2. Presup. Infraestruct.'!$X$70:$X$604)) ->  | K88: =IF(T88="","",SUMIF('Anexo 2. Presup. Infraestruct.'!$T$70:$T$701,T88,'Anexo 2. Presup. Infraestruct.'!$Y$70:$Y$604)) ->  | U88: =IFERROR(VLOOKUP(C88,'Anexo 1. Registro de C.U'!$B$23:$T$53,19,FALSE)&T88,"") -> 
G89: =IF(C89="","",VLOOKUP(C89,'Anexo 1. Registro de C.U'!$B$23:$P$54,2,FALSE)) ->  | H89: =IF(T89="","",COUNTIF('Anexo 2. Presup. Infraestruct.'!$T$70:$T$604,T89)) ->  | I89: =IF(C89="","",VLOOKUP(C89,'Anexo 1. Registro de C.U'!$B$23:$P$54,3,FALSE)) ->  | J89: =IF(T89="","",SUMIF('Anexo 2. Presup. Infraestruct.'!$T$70:$T$701,T89,'Anexo 2. Presup. Infraestruct.'!$X$70:$X$604)) ->  | K89: =IF(T89="","",SUMIF('Anexo 2. Presup. Infraestruct.'!$T$70:$T$701,T89,'Anexo 2. Presup. Infraestruct.'!$Y$70:$Y$604)) ->  | U89: =IFERROR(VLOOKUP(C89,'Anexo 1. Registro de C.U'!$B$23:$T$53,19,FALSE)&T89,"") ->  | W89: =+F89 ->  | X89: =+G89 ->  | Y89: =+H89 ->  | Z89: =+I89 ->  | AA89: =+J89 ->  | AB89: =+K89 -> 
G90: =IF(C90="","",VLOOKUP(C90,'Anexo 1. Registro de C.U'!$B$23:$P$54,2,FALSE)) ->  | H90: =IF(T90="","",COUNTIF('Anexo 2. Presup. Infraestruct.'!$T$70:$T$604,T90)) ->  | I90: =IF(C90="","",VLOOKUP(C90,'Anexo 1. Registro de C.U'!$B$23:$P$54,3,FALSE)) ->  | J90: =IF(T90="","",SUMIF('Anexo 2. Presup. Infraestruct.'!$T$70:$T$701,T90,'Anexo 2. Presup. Infraestruct.'!$X$70:$X$604)) ->  | K90: =IF(T90="","",SUMIF('Anexo 2. Presup. Infraestruct.'!$T$70:$T$701,T90,'Anexo 2. Presup. Infraestruct.'!$Y$70:$Y$604)) ->  | U90: =IFERROR(VLOOKUP(C90,'Anexo 1. Registro de C.U'!$B$23:$T$53,19,FALSE)&T90,"") -> 
G91: =IF(C91="","",VLOOKUP(C91,'Anexo 1. Registro de C.U'!$B$23:$P$54,2,FALSE)) ->  | H91: =IF(T91="","",COUNTIF('Anexo 2. Presup. Infraestruct.'!$T$70:$T$604,T91)) ->  | I91: =IF(C91="","",VLOOKUP(C91,'Anexo 1. Registro de C.U'!$B$23:$P$54,3,FALSE)) ->  | J91: =IF(T91="","",SUMIF('Anexo 2. Presup. Infraestruct.'!$T$70:$T$701,T91,'Anexo 2. Presup. Infraestruct.'!$X$70:$X$604)) ->  | K91: =IF(T91="","",SUMIF('Anexo 2. Presup. Infraestruct.'!$T$70:$T$701,T91,'Anexo 2. Presup. Infraestruct.'!$Y$70:$Y$604)) ->  | U91: =IFERROR(VLOOKUP(C91,'Anexo 1. Registro de C.U'!$B$23:$T$53,19,FALSE)&T91,"") -> 
G92: =IF(C92="","",VLOOKUP(C92,'Anexo 1. Registro de C.U'!$B$23:$P$54,2,FALSE)) ->  | H92: =IF(T92="","",COUNTIF('Anexo 2. Presup. Infraestruct.'!$T$70:$T$604,T92)) ->  | I92: =IF(C92="","",VLOOKUP(C92,'Anexo 1. Registro de C.U'!$B$23:$P$54,3,FALSE)) ->  | J92: =IF(T92="","",SUMIF('Anexo 2. Presup. Infraestruct.'!$T$70:$T$701,T92,'Anexo 2. Presup. Infraestruct.'!$X$70:$X$604)) ->  | K92: =IF(T92="","",SUMIF('Anexo 2. Presup. Infraestruct.'!$T$70:$T$701,T92,'Anexo 2. Presup. Infraestruct.'!$Y$70:$Y$604)) ->  | U92: =IFERROR(VLOOKUP(C92,'Anexo 1. Registro de C.U'!$B$23:$T$53,19,FALSE)&T92,"") -> 
G93: =IF(C93="","",VLOOKUP(C93,'Anexo 1. Registro de C.U'!$B$23:$P$54,2,FALSE)) ->  | H93: =IF(T93="","",COUNTIF('Anexo 2. Presup. Infraestruct.'!$T$70:$T$604,T93)) ->  | I93: =IF(C93="","",VLOOKUP(C93,'Anexo 1. Registro de C.U'!$B$23:$P$54,3,FALSE)) ->  | J93: =IF(T93="","",SUMIF('Anexo 2. Presup. Infraestruct.'!$T$70:$T$701,T93,'Anexo 2. Presup. Infraestruct.'!$X$70:$X$604)) ->  | K93: =IF(T93="","",SUMIF('Anexo 2. Presup. Infraestruct.'!$T$70:$T$701,T93,'Anexo 2. Presup. Infraestruct.'!$Y$70:$Y$604)) ->  | U93: =IFERROR(VLOOKUP(C93,'Anexo 1. Registro de C.U'!$B$23:$T$53,19,FALSE)&T93,"") -> 
G94: =IF(C94="","",VLOOKUP(C94,'Anexo 1. Registro de C.U'!$B$23:$P$54,2,FALSE)) ->  | H94: =IF(T94="","",COUNTIF('Anexo 2. Presup. Infraestruct.'!$T$70:$T$604,T94)) ->  | I94: =IF(C94="","",VLOOKUP(C94,'Anexo 1. Registro de C.U'!$B$23:$P$54,3,FALSE)) ->  | J94: =IF(T94="","",SUMIF('Anexo 2. Presup. Infraestruct.'!$T$70:$T$701,T94,'Anexo 2. Presup. Infraestruct.'!$X$70:$X$604)) ->  | K94: =IF(T94="","",SUMIF('Anexo 2. Presup. Infraestruct.'!$T$70:$T$701,T94,'Anexo 2. Presup. Infraestruct.'!$Y$70:$Y$604)) ->  | U94: =IFERROR(VLOOKUP(C94,'Anexo 1. Registro de C.U'!$B$23:$T$53,19,FALSE)&T94,"") -> 
G95: =IF(C95="","",VLOOKUP(C95,'Anexo 1. Registro de C.U'!$B$23:$P$54,2,FALSE)) ->  | H95: =IF(T95="","",COUNTIF('Anexo 2. Presup. Infraestruct.'!$T$70:$T$604,T95)) ->  | I95: =IF(C95="","",VLOOKUP(C95,'Anexo 1. Registro de C.U'!$B$23:$P$54,3,FALSE)) ->  | J95: =IF(T95="","",SUMIF('Anexo 2. Presup. Infraestruct.'!$T$70:$T$701,T95,'Anexo 2. Presup. Infraestruct.'!$X$70:$X$604)) ->  | K95: =IF(T95="","",SUMIF('Anexo 2. Presup. Infraestruct.'!$T$70:$T$701,T95,'Anexo 2. Presup. Infraestruct.'!$Y$70:$Y$604)) ->  | U95: =IFERROR(VLOOKUP(C95,'Anexo 1. Registro de C.U'!$B$23:$T$53,19,FALSE)&T95,"") -> 
G96: =IF(C96="","",VLOOKUP(C96,'Anexo 1. Registro de C.U'!$B$23:$P$54,2,FALSE)) ->  | H96: =IF(T96="","",COUNTIF('Anexo 2. Presup. Infraestruct.'!$T$70:$T$604,T96)) ->  | I96: =IF(C96="","",VLOOKUP(C96,'Anexo 1. Registro de C.U'!$B$23:$P$54,3,FALSE)) ->  | J96: =IF(T96="","",SUMIF('Anexo 2. Presup. Infraestruct.'!$T$70:$T$701,T96,'Anexo 2. Presup. Infraestruct.'!$X$70:$X$604)) ->  | K96: =IF(T96="","",SUMIF('Anexo 2. Presup. Infraestruct.'!$T$70:$T$701,T96,'Anexo 2. Presup. Infraestruct.'!$Y$70:$Y$604)) ->  | U96: =IFERROR(VLOOKUP(C96,'Anexo 1. Registro de C.U'!$B$23:$T$53,19,FALSE)&T96,"") -> 
G97: =IF(C97="","",VLOOKUP(C97,'Anexo 1. Registro de C.U'!$B$23:$P$54,2,FALSE)) ->  | H97: =IF(T97="","",COUNTIF('Anexo 2. Presup. Infraestruct.'!$T$70:$T$604,T97)) ->  | I97: =IF(C97="","",VLOOKUP(C97,'Anexo 1. Registro de C.U'!$B$23:$P$54,3,FALSE)) ->  | J97: =IF(T97="","",SUMIF('Anexo 2. Presup. Infraestruct.'!$T$70:$T$701,T97,'Anexo 2. Presup. Infraestruct.'!$X$70:$X$604)) ->  | K97: =IF(T97="","",SUMIF('Anexo 2. Presup. Infraestruct.'!$T$70:$T$701,T97,'Anexo 2. Presup. Infraestruct.'!$Y$70:$Y$604)) ->  | U97: =IFERROR(VLOOKUP(C97,'Anexo 1. Registro de C.U'!$B$23:$T$53,19,FALSE)&T97,"") -> 
G98: =IF(C98="","",VLOOKUP(C98,'Anexo 1. Registro de C.U'!$B$23:$P$54,2,FALSE)) ->  | H98: =IF(T98="","",COUNTIF('Anexo 2. Presup. Infraestruct.'!$T$70:$T$604,T98)) ->  | I98: =IF(C98="","",VLOOKUP(C98,'Anexo 1. Registro de C.U'!$B$23:$P$54,3,FALSE)) ->  | J98: =IF(T98="","",SUMIF('Anexo 2. Presup. Infraestruct.'!$T$70:$T$701,T98,'Anexo 2. Presup. Infraestruct.'!$X$70:$X$604)) ->  | K98: =IF(T98="","",SUMIF('Anexo 2. Presup. Infraestruct.'!$T$70:$T$701,T98,'Anexo 2. Presup. Infraestruct.'!$Y$70:$Y$604)) ->  | U98: =IFERROR(VLOOKUP(C98,'Anexo 1. Registro de C.U'!$B$23:$T$53,19,FALSE)&T98,"") -> 
F99: =IF(C99="","","Infraestructura") ->  | G99: =IF(C99="","",VLOOKUP(C99,'Anexo 1. Registro de C.U'!$B$23:$P$54,2,FALSE)) ->  | H99: =IF(T99="","",COUNTIF('Anexo 2. Presup. Infraestruct.'!$T$70:$T$604,T99)) ->  | I99: =IF(C99="","",VLOOKUP(C99,'Anexo 1. Registro de C.U'!$B$23:$P$54,3,FALSE)) ->  | J99: =IF(T99="","",SUMIF('Anexo 2. Presup. Infraestruct.'!$T$70:$T$701,T99,'Anexo 2. Presup. Infraestruct.'!$X$70:$X$604)) ->  | K99: =IF(T99="","",SUMIF('Anexo 2. Presup. Infraestruct.'!$T$70:$T$701,T99,'Anexo 2. Presup. Infraestruct.'!$Y$70:$Y$604)) ->  | U99: =IFERROR(VLOOKUP(C99,'Anexo 1. Registro de C.U'!$B$23:$T$53,19,FALSE)&T99,"") -> 
G100: =IF(C100="","",VLOOKUP(C100,'Anexo 1. Registro de C.U'!$B$23:$P$54,2,FALSE)) ->  | H100: =IF(T100="","",COUNTIF('Anexo 2. Presup. Infraestruct.'!$T$70:$T$604,T100)) ->  | I100: =IF(C100="","",VLOOKUP(C100,'Anexo 1. Registro de C.U'!$B$23:$P$54,3,FALSE)) ->  | J100: =IF(T100="","",SUMIF('Anexo 2. Presup. Infraestruct.'!$T$70:$T$701,T100,'Anexo 2. Presup. Infraestruct.'!$X$70:$X$604)) ->  | K100: =IF(T100="","",SUMIF('Anexo 2. Presup. Infraestruct.'!$T$70:$T$701,T100,'Anexo 2. Presup. Infraestruct.'!$Y$70:$Y$604)) ->  | U100: =IFERROR(VLOOKUP(C100,'Anexo 1. Registro de C.U'!$B$23:$T$53,19,FALSE)&T100,"") -> 
G101: =IF(C101="","",VLOOKUP(C101,'Anexo 1. Registro de C.U'!$B$23:$P$54,2,FALSE)) ->  | H101: =IF(T101="","",COUNTIF('Anexo 2. Presup. Infraestruct.'!$T$70:$T$604,T101)) ->  | I101: =IF(C101="","",VLOOKUP(C101,'Anexo 1. Registro de C.U'!$B$23:$P$54,3,FALSE)) ->  | J101: =IF(T101="","",SUMIF('Anexo 2. Presup. Infraestruct.'!$T$70:$T$701,T101,'Anexo 2. Presup. Infraestruct.'!$X$70:$X$604)) ->  | K101: =IF(T101="","",SUMIF('Anexo 2. Presup. Infraestruct.'!$T$70:$T$701,T101,'Anexo 2. Presup. Infraestruct.'!$Y$70:$Y$604)) ->  | U101: =IFERROR(VLOOKUP(C101,'Anexo 1. Registro de C.U'!$B$23:$T$53,19,FALSE)&T101,"") -> 
G102: =IF(C102="","",VLOOKUP(C102,'Anexo 1. Registro de C.U'!$B$23:$P$54,2,FALSE)) ->  | H102: =IF(T102="","",COUNTIF('Anexo 2. Presup. Infraestruct.'!$T$70:$T$604,T102)) ->  | I102: =IF(C102="","",VLOOKUP(C102,'Anexo 1. Registro de C.U'!$B$23:$P$54,3,FALSE)) ->  | J102: =IF(T102="","",SUMIF('Anexo 2. Presup. Infraestruct.'!$T$70:$T$701,T102,'Anexo 2. Presup. Infraestruct.'!$X$70:$X$604)) ->  | K102: =IF(T102="","",SUMIF('Anexo 2. Presup. Infraestruct.'!$T$70:$T$701,T102,'Anexo 2. Presup. Infraestruct.'!$Y$70:$Y$604)) ->  | U102: =IFERROR(VLOOKUP(C102,'Anexo 1. Registro de C.U'!$B$23:$T$53,19,FALSE)&T102,"") -> 
G103: =IF(C103="","",VLOOKUP(C103,'Anexo 1. Registro de C.U'!$B$23:$P$54,2,FALSE)) ->  | H103: =IF(T103="","",COUNTIF('Anexo 2. Presup. Infraestruct.'!$T$70:$T$604,T103)) ->  | I103: =IF(C103="","",VLOOKUP(C103,'Anexo 1. Registro de C.U'!$B$23:$P$54,3,FALSE)) ->  | J103: =IF(T103="","",SUMIF('Anexo 2. Presup. Infraestruct.'!$T$70:$T$701,T103,'Anexo 2. Presup. Infraestruct.'!$X$70:$X$604)) ->  | K103: =IF(T103="","",SUMIF('Anexo 2. Presup. Infraestruct.'!$T$70:$T$701,T103,'Anexo 2. Presup. Infraestruct.'!$Y$70:$Y$604)) ->  | U103: =IFERROR(VLOOKUP(C103,'Anexo 1. Registro de C.U'!$B$23:$T$53,19,FALSE)&T103,"") -> 
G104: =IF(C104="","",VLOOKUP(C104,'Anexo 1. Registro de C.U'!$B$23:$P$54,2,FALSE)) ->  | H104: =IF(T104="","",COUNTIF('Anexo 2. Presup. Infraestruct.'!$T$70:$T$604,T104)) ->  | I104: =IF(C104="","",VLOOKUP(C104,'Anexo 1. Registro de C.U'!$B$23:$P$54,3,FALSE)) ->  | J104: =IF(T104="","",SUMIF('Anexo 2. Presup. Infraestruct.'!$T$70:$T$701,T104,'Anexo 2. Presup. Infraestruct.'!$X$70:$X$604)) ->  | K104: =IF(T104="","",SUMIF('Anexo 2. Presup. Infraestruct.'!$T$70:$T$701,T104,'Anexo 2. Presup. Infraestruct.'!$Y$70:$Y$604)) ->  | U104: =IFERROR(VLOOKUP(C104,'Anexo 1. Registro de C.U'!$B$23:$T$53,19,FALSE)&T104,"") -> 
G105: =IF(C105="","",VLOOKUP(C105,'Anexo 1. Registro de C.U'!$B$23:$P$54,2,FALSE)) ->  | H105: =IF(T105="","",COUNTIF('Anexo 2. Presup. Infraestruct.'!$T$70:$T$604,T105)) ->  | I105: =IF(C105="","",VLOOKUP(C105,'Anexo 1. Registro de C.U'!$B$23:$P$54,3,FALSE)) ->  | J105: =IF(T105="","",SUMIF('Anexo 2. Presup. Infraestruct.'!$T$70:$T$701,T105,'Anexo 2. Presup. Infraestruct.'!$X$70:$X$604)) ->  | K105: =IF(T105="","",SUMIF('Anexo 2. Presup. Infraestruct.'!$T$70:$T$701,T105,'Anexo 2. Presup. Infraestruct.'!$Y$70:$Y$604)) ->  | U105: =IFERROR(VLOOKUP(C105,'Anexo 1. Registro de C.U'!$B$23:$T$53,19,FALSE)&T105,"") -> 
G106: =IF(C106="","",VLOOKUP(C106,'Anexo 1. Registro de C.U'!$B$23:$P$54,2,FALSE)) ->  | H106: =IF(T106="","",COUNTIF('Anexo 2. Presup. Infraestruct.'!$T$70:$T$604,T106)) ->  | I106: =IF(C106="","",VLOOKUP(C106,'Anexo 1. Registro de C.U'!$B$23:$P$54,3,FALSE)) ->  | J106: =IF(T106="","",SUMIF('Anexo 2. Presup. Infraestruct.'!$T$70:$T$701,T106,'Anexo 2. Presup. Infraestruct.'!$X$70:$X$604)) ->  | K106: =IF(T106="","",SUMIF('Anexo 2. Presup. Infraestruct.'!$T$70:$T$701,T106,'Anexo 2. Presup. Infraestruct.'!$Y$70:$Y$604)) ->  | U106: =IFERROR(VLOOKUP(C106,'Anexo 1. Registro de C.U'!$B$23:$T$53,19,FALSE)&T106,"") -> 
G107: =IF(C107="","",VLOOKUP(C107,'Anexo 1. Registro de C.U'!$B$23:$P$54,2,FALSE)) ->  | H107: =IF(T107="","",COUNTIF('Anexo 2. Presup. Infraestruct.'!$T$70:$T$604,T107)) ->  | I107: =IF(C107="","",VLOOKUP(C107,'Anexo 1. Registro de C.U'!$B$23:$P$54,3,FALSE)) ->  | J107: =IF(T107="","",SUMIF('Anexo 2. Presup. Infraestruct.'!$T$70:$T$701,T107,'Anexo 2. Presup. Infraestruct.'!$X$70:$X$604)) ->  | K107: =IF(T107="","",SUMIF('Anexo 2. Presup. Infraestruct.'!$T$70:$T$701,T107,'Anexo 2. Presup. Infraestruct.'!$Y$70:$Y$604)) ->  | U107: =IFERROR(VLOOKUP(C107,'Anexo 1. Registro de C.U'!$B$23:$T$53,19,FALSE)&T107,"") -> 
G108: =IF(C108="","",VLOOKUP(C108,'Anexo 1. Registro de C.U'!$B$23:$P$54,2,FALSE)) ->  | H108: =IF(T108="","",COUNTIF('Anexo 2. Presup. Infraestruct.'!$T$70:$T$604,T108)) ->  | I108: =IF(C108="","",VLOOKUP(C108,'Anexo 1. Registro de C.U'!$B$23:$P$54,3,FALSE)) ->  | J108: =IF(T108="","",SUMIF('Anexo 2. Presup. Infraestruct.'!$T$70:$T$701,T108,'Anexo 2. Presup. Infraestruct.'!$X$70:$X$604)) ->  | K108: =IF(T108="","",SUMIF('Anexo 2. Presup. Infraestruct.'!$T$70:$T$701,T108,'Anexo 2. Presup. Infraestruct.'!$Y$70:$Y$604)) ->  | U108: =IFERROR(VLOOKUP(C108,'Anexo 1. Registro de C.U'!$B$23:$T$53,19,FALSE)&T108,"") -> 
G109: =IF(C109="","",VLOOKUP(C109,'Anexo 1. Registro de C.U'!$B$23:$P$54,2,FALSE)) ->  | H109: =IF(T109="","",COUNTIF('Anexo 2. Presup. Infraestruct.'!$T$70:$T$604,T109)) ->  | I109: =IF(C109="","",VLOOKUP(C109,'Anexo 1. Registro de C.U'!$B$23:$P$54,3,FALSE)) ->  | J109: =IF(T109="","",SUMIF('Anexo 2. Presup. Infraestruct.'!$T$70:$T$701,T109,'Anexo 2. Presup. Infraestruct.'!$X$70:$X$604)) ->  | K109: =IF(T109="","",SUMIF('Anexo 2. Presup. Infraestruct.'!$T$70:$T$701,T109,'Anexo 2. Presup. Infraestruct.'!$Y$70:$Y$604)) ->  | U109: =IFERROR(VLOOKUP(C109,'Anexo 1. Registro de C.U'!$B$23:$T$53,19,FALSE)&T109,"") -> 
G110: =IF(C110="","",VLOOKUP(C110,'Anexo 1. Registro de C.U'!$B$23:$P$54,2,FALSE)) ->  | H110: =IF(T110="","",COUNTIF('Anexo 2. Presup. Infraestruct.'!$T$70:$T$604,T110)) ->  | I110: =IF(C110="","",VLOOKUP(C110,'Anexo 1. Registro de C.U'!$B$23:$P$54,3,FALSE)) ->  | J110: =IF(T110="","",SUMIF('Anexo 2. Presup. Infraestruct.'!$T$70:$T$701,T110,'Anexo 2. Presup. Infraestruct.'!$X$70:$X$604)) ->  | K110: =IF(T110="","",SUMIF('Anexo 2. Presup. Infraestruct.'!$T$70:$T$701,T110,'Anexo 2. Presup. Infraestruct.'!$Y$70:$Y$604)) ->  | U110: =IFERROR(VLOOKUP(C110,'Anexo 1. Registro de C.U'!$B$23:$T$53,19,FALSE)&T110,"") -> 
G111: =IF(C111="","",VLOOKUP(C111,'Anexo 1. Registro de C.U'!$B$23:$P$54,2,FALSE)) ->  | H111: =IF(T111="","",COUNTIF('Anexo 2. Presup. Infraestruct.'!$T$70:$T$604,T111)) ->  | I111: =IF(C111="","",VLOOKUP(C111,'Anexo 1. Registro de C.U'!$B$23:$P$54,3,FALSE)) ->  | J111: =IF(T111="","",SUMIF('Anexo 2. Presup. Infraestruct.'!$T$70:$T$701,T111,'Anexo 2. Presup. Infraestruct.'!$X$70:$X$604)) ->  | K111: =IF(T111="","",SUMIF('Anexo 2. Presup. Infraestruct.'!$T$70:$T$701,T111,'Anexo 2. Presup. Infraestruct.'!$Y$70:$Y$604)) ->  | U111: =IFERROR(VLOOKUP(C111,'Anexo 1. Registro de C.U'!$B$23:$T$53,19,FALSE)&T111,"") -> 
G112: =IF(C112="","",VLOOKUP(C112,'Anexo 1. Registro de C.U'!$B$23:$P$54,2,FALSE)) ->  | H112: =IF(T112="","",COUNTIF('Anexo 2. Presup. Infraestruct.'!$T$70:$T$604,T112)) ->  | I112: =IF(C112="","",VLOOKUP(C112,'Anexo 1. Registro de C.U'!$B$23:$P$54,3,FALSE)) ->  | J112: =IF(T112="","",SUMIF('Anexo 2. Presup. Infraestruct.'!$T$70:$T$701,T112,'Anexo 2. Presup. Infraestruct.'!$X$70:$X$604)) ->  | K112: =IF(T112="","",SUMIF('Anexo 2. Presup. Infraestruct.'!$T$70:$T$701,T112,'Anexo 2. Presup. Infraestruct.'!$Y$70:$Y$604)) ->  | U112: =IFERROR(VLOOKUP(C112,'Anexo 1. Registro de C.U'!$B$23:$T$53,19,FALSE)&T112,"") -> 
G113: =IF(C113="","",VLOOKUP(C113,'Anexo 1. Registro de C.U'!$B$23:$P$54,2,FALSE)) ->  | H113: =IF(T113="","",COUNTIF('Anexo 2. Presup. Infraestruct.'!$T$70:$T$604,T113)) ->  | I113: =IF(C113="","",VLOOKUP(C113,'Anexo 1. Registro de C.U'!$B$23:$P$54,3,FALSE)) ->  | J113: =IF(T113="","",SUMIF('Anexo 2. Presup. Infraestruct.'!$T$70:$T$701,T113,'Anexo 2. Presup. Infraestruct.'!$X$70:$X$604)) ->  | K113: =IF(T113="","",SUMIF('Anexo 2. Presup. Infraestruct.'!$T$70:$T$701,T113,'Anexo 2. Presup. Infraestruct.'!$Y$70:$Y$604)) ->  | U113: =IFERROR(VLOOKUP(C113,'Anexo 1. Registro de C.U'!$B$23:$T$53,19,FALSE)&T113,"") -> 
G114: =IF(C114="","",VLOOKUP(C114,'Anexo 1. Registro de C.U'!$B$23:$P$54,2,FALSE)) ->  | H114: =IF(T114="","",COUNTIF('Anexo 2. Presup. Infraestruct.'!$T$70:$T$604,T114)) ->  | I114: =IF(C114="","",VLOOKUP(C114,'Anexo 1. Registro de C.U'!$B$23:$P$54,3,FALSE)) ->  | J114: =IF(T114="","",SUMIF('Anexo 2. Presup. Infraestruct.'!$T$70:$T$701,T114,'Anexo 2. Presup. Infraestruct.'!$X$70:$X$604)) ->  | K114: =IF(T114="","",SUMIF('Anexo 2. Presup. Infraestruct.'!$T$70:$T$701,T114,'Anexo 2. Presup. Infraestruct.'!$Y$70:$Y$604)) ->  | U114: =IFERROR(VLOOKUP(C114,'Anexo 1. Registro de C.U'!$B$23:$T$53,19,FALSE)&T114,"") -> 
G115: =IF(C115="","",VLOOKUP(C115,'Anexo 1. Registro de C.U'!$B$23:$P$54,2,FALSE)) ->  | H115: =IF(T115="","",COUNTIF('Anexo 2. Presup. Infraestruct.'!$T$70:$T$604,T115)) ->  | I115: =IF(C115="","",VLOOKUP(C115,'Anexo 1. Registro de C.U'!$B$23:$P$54,3,FALSE)) ->  | J115: =IF(T115="","",SUMIF('Anexo 2. Presup. Infraestruct.'!$T$70:$T$701,T115,'Anexo 2. Presup. Infraestruct.'!$X$70:$X$604)) ->  | K115: =IF(T115="","",SUMIF('Anexo 2. Presup. Infraestruct.'!$T$70:$T$701,T115,'Anexo 2. Presup. Infraestruct.'!$Y$70:$Y$604)) ->  | U115: =IFERROR(VLOOKUP(C115,'Anexo 1. Registro de C.U'!$B$23:$T$53,19,FALSE)&T115,"") -> 
G116: =IF(C116="","",VLOOKUP(C116,'Anexo 1. Registro de C.U'!$B$23:$P$54,2,FALSE)) ->  | H116: =IF(T116="","",COUNTIF('Anexo 2. Presup. Infraestruct.'!$T$70:$T$604,T116)) ->  | I116: =IF(C116="","",VLOOKUP(C116,'Anexo 1. Registro de C.U'!$B$23:$P$54,3,FALSE)) ->  | J116: =IF(T116="","",SUMIF('Anexo 2. Presup. Infraestruct.'!$T$70:$T$701,T116,'Anexo 2. Presup. Infraestruct.'!$X$70:$X$604)) ->  | K116: =IF(T116="","",SUMIF('Anexo 2. Presup. Infraestruct.'!$T$70:$T$701,T116,'Anexo 2. Presup. Infraestruct.'!$Y$70:$Y$604)) ->  | U116: =IFERROR(VLOOKUP(C116,'Anexo 1. Registro de C.U'!$B$23:$T$53,19,FALSE)&T116,"") -> 
G117: =IF(C117="","",VLOOKUP(C117,'Anexo 1. Registro de C.U'!$B$23:$P$54,2,FALSE)) ->  | H117: =IF(T117="","",COUNTIF('Anexo 2. Presup. Infraestruct.'!$T$70:$T$604,T117)) ->  | I117: =IF(C117="","",VLOOKUP(C117,'Anexo 1. Registro de C.U'!$B$23:$P$54,3,FALSE)) ->  | J117: =IF(T117="","",SUMIF('Anexo 2. Presup. Infraestruct.'!$T$70:$T$701,T117,'Anexo 2. Presup. Infraestruct.'!$X$70:$X$604)) ->  | K117: =IF(T117="","",SUMIF('Anexo 2. Presup. Infraestruct.'!$T$70:$T$701,T117,'Anexo 2. Presup. Infraestruct.'!$Y$70:$Y$604)) ->  | U117: =IFERROR(VLOOKUP(C117,'Anexo 1. Registro de C.U'!$B$23:$T$53,19,FALSE)&T117,"") -> 
H118: =SUM(H67:H117) -> 0 | J118: =SUM(J67:J117) -> 0 | K118: =SUM(K67:K117) -> 0 | L118: =+K118-F42 -> 0 | M118: 0 | U118: =IFERROR(VLOOKUP(C118,'Anexo 1. Registro de C.U'!$B$23:$T$53,19,FALSE)&T118,"") ->  | V118: 0 | W118: 0 | X118: 0 | Y118: 0 | Z118: 0 | AA118: 0 | AB118: 0
M119: 0 | U119: =IFERROR((VLOOKUP(C119,'Anexo 1. Registro de C.U'!$V$23:$X$41,3,FALSE))&"_"&C119,"") ->  | V119: 0 | W119: 0 | X119: 0 | Y119: 0 | Z119: 0 | AA119: 0 | AB119: 0
B120: =IF(C120="","","Adquisición") ->  | C120: =IF(OR(H120="",H120=0),"",'Anexo 3. Presup de MOB y EQUIP'!D13) ->  | F120: =IF(OR(H120="",H120=0),"",'Anexo 3. Presup de MOB y EQUIP'!F13) ->  | G120: =IF(OR(H120="",H120=0),"",'Anexo 3. Presup de MOB y EQUIP'!G13) ->  | H120: =+'Anexo 3. Presup de MOB y EQUIP'!H13 -> 0 | K120: =+'Anexo 3. Presup de MOB y EQUIP'!J13 -> 0 | U120: =IFERROR((VLOOKUP(C120,'Anexo 1. Registro de C.U'!$V$23:$X$41,3,FALSE))&"_"&C120,"") ->  | V120: 0 | Y120: 0 | Z120: 0 | AA120: 0 | AB120: 0
C121: =IF(OR(H121="",H121=0),"",'Anexo 3. Presup de MOB y EQUIP'!D14) ->  | F121: =IF(OR(H121="",H121=0),"",'Anexo 3. Presup de MOB y EQUIP'!F14) ->  | G121: =IF(OR(H121="",H121=0),"",'Anexo 3. Presup de MOB y EQUIP'!G14) ->  | H121: =+'Anexo 3. Presup de MOB y EQUIP'!H14 -> 0 | K121: =+'Anexo 3. Presup de MOB y EQUIP'!J14 -> 0 | U121: =IFERROR((VLOOKUP(C121,'Anexo 1. Registro de C.U'!$V$23:$X$41,3,FALSE))&"_"&C121,"") ->  | V121: 0 | Y121: 0 | Z121: 0 | AA121: 0 | AB121: 0
C122: =IF(OR(H122="",H122=0),"",'Anexo 3. Presup de MOB y EQUIP'!D15) ->  | F122: =IF(OR(H122="",H122=0),"",'Anexo 3. Presup de MOB y EQUIP'!F15) ->  | G122: =IF(OR(H122="",H122=0),"",'Anexo 3. Presup de MOB y EQUIP'!G15) ->  | H122: =+'Anexo 3. Presup de MOB y EQUIP'!H15 -> 0 | K122: =+'Anexo 3. Presup de MOB y EQUIP'!J15 -> 0 | U122: =IFERROR((VLOOKUP(C122,'Anexo 1. Registro de C.U'!$V$23:$X$41,3,FALSE))&"_"&C122,"") ->  | V122: 0 | Y122: 0 | Z122: 0 | AA122: 0 | AB122: 0
C123: =IF(OR(H123="",H123=0),"",'Anexo 3. Presup de MOB y EQUIP'!D16) ->  | F123: =IF(OR(H123="",H123=0),"",'Anexo 3. Presup de MOB y EQUIP'!F16) ->  | G123: =IF(OR(H123="",H123=0),"",'Anexo 3. Presup de MOB y EQUIP'!G16) ->  | H123: =+'Anexo 3. Presup de MOB y EQUIP'!H16 -> 0 | K123: =+'Anexo 3. Presup de MOB y EQUIP'!J16 -> 0 | U123: =IFERROR((VLOOKUP(C123,'Anexo 1. Registro de C.U'!$V$23:$X$41,3,FALSE))&"_"&C123,"") ->  | V123: 0 | Y123: 0 | Z123: 0 | AA123: 0 | AB123: 0
C124: =IF(OR(H124="",H124=0),"",'Anexo 3. Presup de MOB y EQUIP'!D17) ->  | F124: =IF(OR(H124="",H124=0),"",'Anexo 3. Presup de MOB y EQUIP'!F17) ->  | G124: =IF(OR(H124="",H124=0),"",'Anexo 3. Presup de MOB y EQUIP'!G17) ->  | H124: =+'Anexo 3. Presup de MOB y EQUIP'!H17 -> 0 | K124: =+'Anexo 3. Presup de MOB y EQUIP'!J17 -> 0 | U124: =IFERROR((VLOOKUP(C124,'Anexo 1. Registro de C.U'!$V$23:$X$41,3,FALSE))&"_"&C124,"") ->  | V124: 0 | Y124: 0 | Z124: 0 | AA124: 0 | AB124: 0
C125: =IF(OR(H125="",H125=0),"",'Anexo 3. Presup de MOB y EQUIP'!D18) ->  | F125: =IF(OR(H125="",H125=0),"",'Anexo 3. Presup de MOB y EQUIP'!F18) ->  | G125: =IF(OR(H125="",H125=0),"",'Anexo 3. Presup de MOB y EQUIP'!G18) ->  | H125: =+'Anexo 3. Presup de MOB y EQUIP'!H18 -> 0 | K125: =+'Anexo 3. Presup de MOB y EQUIP'!J18 -> 0 | U125: =IFERROR((VLOOKUP(C125,'Anexo 1. Registro de C.U'!$V$23:$X$41,3,FALSE))&"_"&C125,"") ->  | V125: 0 | Y125: 0 | Z125: 0 | AA125: 0 | AB125: 0
C126: =IF(OR(H126="",H126=0),"",'Anexo 3. Presup de MOB y EQUIP'!D19) ->  | F126: =IF(OR(H126="",H126=0),"",'Anexo 3. Presup de MOB y EQUIP'!F19) ->  | G126: =IF(OR(H126="",H126=0),"",'Anexo 3. Presup de MOB y EQUIP'!G19) ->  | H126: =+'Anexo 3. Presup de MOB y EQUIP'!H19 -> 0 | K126: =+'Anexo 3. Presup de MOB y EQUIP'!J19 -> 0 | U126: =IFERROR((VLOOKUP(C126,'Anexo 1. Registro de C.U'!$V$23:$X$41,3,FALSE))&"_"&C126,"") ->  | V126: 0 | Y126: 0 | Z126: 0 | AA126: 0 | AB126: 0
M127: 0 | U127: =IFERROR((VLOOKUP(C127,'Anexo 1. Registro de C.U'!$V$23:$X$41,3,FALSE))&"_"&C127,"") ->  | V127: 0 | W127: 0 | X127: 0 | Y127: 0 | Z127: 0 | AA127: 0 | AB127: 0
U128: =IFERROR((VLOOKUP(C128,'Anexo 1. Registro de C.U'!$V$23:$X$41,3,FALSE))&"_"&C128,"") ->  | V128: 0 | W128: 0 | X128: 0 | Y128: 0 | Z128: 0 | AA128: 0 | AB128: 0
C129: =IF(OR(H129="",H129=0),"",'Anexo 3. Presup de MOB y EQUIP'!D20) ->  | F129: =IF(OR(H129="",H129=0),"",'Anexo 3. Presup de MOB y EQUIP'!F20) ->  | G129: =IF(OR(H129="",H129=0),"",'Anexo 3. Presup de MOB y EQUIP'!G20) ->  | H129: =+'Anexo 3. Presup de MOB y EQUIP'!H20 -> 0 | K129: =+'Anexo 3. Presup de MOB y EQUIP'!J20 -> 0 | U129: =IFERROR((VLOOKUP(C129,'Anexo 1. Registro de C.U'!$V$23:$X$41,3,FALSE))&"_"&C129,"") ->  | V129: 0 | Y129: 0 | Z129: 0 | AA129: 0 | AB129: 0
C130: =IF(OR(H130="",H130=0),"",'Anexo 3. Presup de MOB y EQUIP'!D21) ->  | F130: =IF(OR(H130="",H130=0),"",'Anexo 3. Presup de MOB y EQUIP'!F21) ->  | G130: =IF(OR(H130="",H130=0),"",'Anexo 3. Presup de MOB y EQUIP'!G21) ->  | H130: =+'Anexo 3. Presup de MOB y EQUIP'!H21 -> 0 | K130: =+'Anexo 3. Presup de MOB y EQUIP'!J21 -> 0 | U130: =IFERROR((VLOOKUP(C130,'Anexo 1. Registro de C.U'!$V$23:$X$41,3,FALSE))&"_"&C130,"") ->  | V130: 0 | Y130: 0 | Z130: 0 | AA130: 0 | AB130: 0
C131: =IF(OR(H131="",H131=0),"",'Anexo 3. Presup de MOB y EQUIP'!D22) ->  | F131: =IF(OR(H131="",H131=0),"",'Anexo 3. Presup de MOB y EQUIP'!F22) ->  | G131: =IF(OR(H131="",H131=0),"",'Anexo 3. Presup de MOB y EQUIP'!G22) ->  | H131: =+'Anexo 3. Presup de MOB y EQUIP'!H22 -> 0 | K131: =+'Anexo 3. Presup de MOB y EQUIP'!J22 -> 0 | U131: =IFERROR((VLOOKUP(C131,'Anexo 1. Registro de C.U'!$V$23:$X$41,3,FALSE))&"_"&C131,"") ->  | V131: 0 | Y131: 0 | Z131: 0 | AA131: 0 | AB131: 0
C132: =IF(OR(H132="",H132=0),"",'Anexo 3. Presup de MOB y EQUIP'!D23) ->  | F132: =IF(OR(H132="",H132=0),"",'Anexo 3. Presup de MOB y EQUIP'!F23) ->  | G132: =IF(OR(H132="",H132=0),"",'Anexo 3. Presup de MOB y EQUIP'!G23) ->  | H132: =+'Anexo 3. Presup de MOB y EQUIP'!H23 -> 0 | K132: =+'Anexo 3. Presup de MOB y EQUIP'!J23 -> 0 | M132: =+B132 ->  | U132: =IFERROR((VLOOKUP(C132,'Anexo 1. Registro de C.U'!$V$23:$X$41,3,FALSE))&"_"&C132,"") ->  | V132: =+K132 -> 0 | Y132: 0 | Z132: 0 | AA132: 0 | AB132: 0
C133: =IF(OR(H133="",H133=0),"",'Anexo 3. Presup de MOB y EQUIP'!D24) ->  | F133: =IF(OR(H133="",H133=0),"",'Anexo 3. Presup de MOB y EQUIP'!F24) ->  | G133: =IF(OR(H133="",H133=0),"",'Anexo 3. Presup de MOB y EQUIP'!G24) ->  | H133: =+'Anexo 3. Presup de MOB y EQUIP'!H24 -> 0 | K133: =+'Anexo 3. Presup de MOB y EQUIP'!J24 -> 0 | U133: =IFERROR((VLOOKUP(C133,'Anexo 1. Registro de C.U'!$V$23:$X$41,3,FALSE))&"_"&C133,"") ->  | V133: 0 | Y133: 0 | Z133: 0 | AA133: 0 | AB133: 0
C134: =IF(OR(H134="",H134=0),"",'Anexo 3. Presup de MOB y EQUIP'!D25) ->  | F134: =IF(OR(H134="",H134=0),"",'Anexo 3. Presup de MOB y EQUIP'!F25) ->  | G134: =IF(OR(H134="",H134=0),"",'Anexo 3. Presup de MOB y EQUIP'!G25) ->  | H134: =+'Anexo 3. Presup de MOB y EQUIP'!H25 -> 0 | K134: =+'Anexo 3. Presup de MOB y EQUIP'!J25 -> 0 | U134: =IFERROR((VLOOKUP(C134,'Anexo 1. Registro de C.U'!$V$23:$X$41,3,FALSE))&"_"&C134,"") ->  | V134: 0 | Y134: 0 | Z134: 0 | AA134: 0 | AB134: 0
C135: =IF(OR(H135="",H135=0),"",'Anexo 3. Presup de MOB y EQUIP'!D26) ->  | F135: =IF(OR(H135="",H135=0),"",'Anexo 3. Presup de MOB y EQUIP'!F26) ->  | G135: =IF(OR(H135="",H135=0),"",'Anexo 3. Presup de MOB y EQUIP'!G26) ->  | H135: =+'Anexo 3. Presup de MOB y EQUIP'!H26 -> 0 | K135: =+'Anexo 3. Presup de MOB y EQUIP'!J26 -> 0 | U135: =IFERROR((VLOOKUP(C135,'Anexo 1. Registro de C.U'!$V$23:$X$41,3,FALSE))&"_"&C135,"") ->  | V135: 0 | Y135: 0 | Z135: 0 | AA135: 0 | AB135: 0
C136: =IF(OR(H136="",H136=0),"",'Anexo 3. Presup de MOB y EQUIP'!D27) ->  | F136: =IF(OR(H136="",H136=0),"",'Anexo 3. Presup de MOB y EQUIP'!F27) ->  | G136: =IF(OR(H136="",H136=0),"",'Anexo 3. Presup de MOB y EQUIP'!G27) ->  | H136: =+'Anexo 3. Presup de MOB y EQUIP'!H27 -> 0 | K136: =+'Anexo 3. Presup de MOB y EQUIP'!J27 -> 0 | U136: =IFERROR((VLOOKUP(C136,'Anexo 1. Registro de C.U'!$V$23:$X$41,3,FALSE))&"_"&C136,"") ->  | V136: 0 | Y136: 0 | Z136: 0 | AA136: 0 | AB136: 0
V137: 0 | W137: 0 | X137: 0 | Y137: 0 | Z137: 0 | AA137: 0 | AB137: 0
H138: =SUM(H120:H137) -> 0 | K138: =SUM(K120:K137) -> 0 | M138: 0 | U138: =IFERROR((VLOOKUP(C138,'Anexo 1. Registro de C.U'!$V$23:$X$41,3,FALSE))&"_"&C138,"") ->  | W138: 0 | X138: 0 | Y138: 0 | Z138: 0 | AA138: 0 | AB138: 0
U139: =IFERROR((VLOOKUP(C139,'Anexo 1. Registro de C.U'!$V$23:$X$41,3,FALSE))&"_"&C139,"") -> 
B141: E) Consolidado de Acciones en el Banco de Inversiones
B145: Acción | C145: Activo Estratégico | F145: Tipo de Factor Productivo | G145: Unidad de medida | H145: Cantidad | I145: Unidad de medida | J145: Cantidad | K145: Costo a precio de mercado
B146: =IF(C146="","",IF(S146="1","Construcción",IF(S146="2","Reforzamiento",IF(S146="3","Remodelación",IF(S146="4","Rehabilitación",IF(S146="5","Rehabilitación","Adquisición")))))) ->  | U146: Etiquetas de fila
C147: =IF(OR(U147="",U147=0,U147="Total General",U147="(en blanco)"),"",MID(U147,4,80)) ->  | G147: =VLOOKUP($C147,$C$66:$N$137,5,FALSE) ->  | H147: =VLOOKUP($C147,$C$66:$N$137,6,FALSE) -> 0 | I147: =VLOOKUP($C147,$C$66:$N$137,7,FALSE) ->  | J147: =VLOOKUP($C147,$C$66:$N$137,8,FALSE) -> 0 | K147: =IF(OR(U147="Total general",U147="(en blanco)"),"",VLOOKUP($U147,$U$65:$V$136,2,FALSE)) -> 0 | S147: =MID(U147,1,1) -> 0 | U147: 0
C148: =IF(OR(U148="",U148=0,U148="Total General",U148="(en blanco)"),"",MID(U148,4,80)) ->  | F148: =VLOOKUP($C148,$C$66:$N$137,4,FALSE) ->  | G148: =VLOOKUP($C148,$C$66:$N$137,5,FALSE) ->  | H148: =VLOOKUP($C148,$C$66:$N$137,6,FALSE) -> 0 | I148: =VLOOKUP($C148,$C$66:$N$137,7,FALSE) ->  | J148: =VLOOKUP($C148,$C$66:$N$137,8,FALSE) -> 0 | K148: =IF(OR(U148="Total general",U148="(en blanco)"),"",VLOOKUP($U148,$U$65:$V$136,2,FALSE)) -> 0 | S148: =MID(U148,1,1) -> 
B149: =IF(C149="","",IF(S149="1","Construcción",IF(S149="2","Reforzamiento",IF(S149="3","Remodelación",IF(S149="4","Rehabilitación",IF(S149="5","Rehabilitación","Adquisición")))))) ->  | C149: =IF(OR(U149="",U149=0,U149="Total General",U149="(en blanco)"),"",MID(U149,4,80)) ->  | F149: =IFERROR(VLOOKUP($U149,$U$66:$AB$137,3,FALSE),0) -> 0 | G149: =IFERROR(VLOOKUP($U149,$U$66:$AB$137,4,FALSE),0) -> 0 | H149: =IFERROR(VLOOKUP($U149,$U$66:$AB$137,5,FALSE),0) -> 0 | I149: =IFERROR(VLOOKUP($U149,$U$66:$AB$137,6,FALSE),0) -> 0 | J149: =IFERROR(VLOOKUP($U149,$U$66:$AB$137,7,FALSE),0) -> 0 | K149: =IFERROR(VLOOKUP($U149,$U$66:$AB$137,8,FALSE),0) -> 0 | S149: =MID(U149,3,1) -> n | U149: (en blanco)
B150: =IF(C150="","",IF(S150="1","Construcción",IF(S150="2","Reforzamiento",IF(S150="3","Remodelación",IF(S150="4","Rehabilitación",IF(S150="5","Rehabilitación","Adquisición")))))) ->  | C150: =IF(OR(U150="",U150=0,U150="Total General",U150="(en blanco)"),"",MID(U150,4,80)) ->  | F150: =IFERROR(VLOOKUP($U150,$U$66:$AB$137,3,FALSE),0) -> 0 | G150: =IFERROR(VLOOKUP($U150,$U$66:$AB$137,4,FALSE),0) -> 0 | H150: =IFERROR(VLOOKUP($U150,$U$66:$AB$137,5,FALSE),0) -> 0 | I150: =IFERROR(VLOOKUP($U150,$U$66:$AB$137,6,FALSE),0) -> 0 | J150: =IFERROR(VLOOKUP($U150,$U$66:$AB$137,7,FALSE),0) -> 0 | K150: =IFERROR(VLOOKUP($U150,$U$66:$AB$137,8,FALSE),0) -> 0 | S150: =MID(U150,3,1) -> t | U150: Total general
F151: 0 | G151: 0 | H151: 0 | I151: 0 | J151: 0 | K151: 0 | S151: =MID(U151,3,1) -> 
F152: 0 | G152: 0 | H152: 0 | I152: 0 | J152: 0 | K152: 0
F153: 0 | G153: 0 | H153: 0 | I153: 0 | J153: 0 | K153: 0
F154: 0 | G154: 0 | H154: 0 | I154: 0 | J154: 0 | K154: 0
F155: 0 | G155: 0 | H155: 0 | I155: 0 | J155: 0 | K155: 0
F156: 0 | G156: 0 | H156: 0 | I156: 0 | J156: 0 | K156: 0
F157: 0 | G157: 0 | H157: 0 | I157: 0 | J157: 0 | K157: 0
F158: 0 | G158: 0 | H158: 0 | I158: 0 | J158: 0 | K158: 0
F159: 0 | G159: 0 | H159: 0 | I159: 0 | J159: 0 | K159: 0
F160: 0 | G160: 0 | H160: 0 | I160: 0 | J160: 0 | K160: 0
F161: 0 | G161: 0 | H161: 0 | I161: 0 | J161: 0 | K161: 0
F162: 0 | G162: 0 | H162: 0 | I162: 0 | J162: 0 | K162: 0
F163: 0 | G163: 0 | H163: 0 | I163: 0 | J163: 0 | K163: 0
F164: 0 | G164: 0 | H164: 0 | I164: 0 | J164: 0 | K164: 0
F165: 0 | G165: 0 | H165: 0 | I165: 0 | J165: 0 | K165: 0
F166: 0 | G166: 0 | H166: 0 | I166: 0 | J166: 0 | K166: 0
F167: 0 | G167: 0 | H167: 0 | I167: 0 | J167: 0 | K167: 0
F168: 0 | G168: 0 | H168: 0 | I168: 0 | J168: 0 | K168: 0
F169: 0 | G169: 0 | H169: 0 | I169: 0 | J169: 0 | K169: 0
F170: 0 | G170: 0 | H170: 0 | I170: 0 | J170: 0 | K170: 0
F171: 0 | G171: 0 | H171: 0 | I171: 0 | J171: 0 | K171: 0
F172: 0 | G172: 0 | H172: 0 | I172: 0 | J172: 0 | K172: 0
F173: 0 | G173: 0 | H173: 0 | I173: 0 | J173: 0 | K173: 0
F174: 0 | G174: 0 | H174: 0 | I174: 0 | J174: 0 | K174: 0
F175: 0 | G175: 0 | H175: 0 | I175: 0 | J175: 0 | K175: 0
F176: 0 | G176: 0 | H176: 0 | I176: 0 | J176: 0 | K176: 0
F177: 0 | G177: 0 | H177: 0 | I177: 0 | J177: 0 | K177: 0
F178: 0 | G178: 0 | H178: 0 | I178: 0 | J178: 0 | K178: 0
F179: 0 | G179: 0 | H179: 0 | I179: 0 | J179: 0 | K179: 0 | T179: =MID(U179,1,1) -> 
F180: 0 | G180: 0 | H180: 0 | I180: 0 | J180: 0 | K180: 0
F181: 0 | G181: 0 | H181: 0 | I181: 0 | J181: 0 | K181: 0
F182: 0 | G182: 0 | H182: 0 | I182: 0 | J182: 0 | K182: 0
F183: 0 | G183: 0 | H183: 0 | I183: 0 | J183: 0 | K183: 0
F184: 0 | G184: 0 | H184: 0 | I184: 0 | J184: 0 | K184: 0
F185: 0 | G185: 0 | H185: 0 | I185: 0 | J185: 0 | K185: 0
F186: 0 | G186: 0 | H186: 0 | I186: 0 | J186: 0 | K186: 0
F187: 0 | G187: 0 | H187: 0 | I187: 0 | J187: 0 | K187: 0
F188: 0 | G188: 0 | H188: 0 | I188: 0 | J188: 0 | K188: 0
F189: 0 | G189: 0 | H189: 0 | I189: 0 | J189: 0 | K189: 0
F190: 0 | G190: 0 | H190: 0 | I190: 0 | J190: 0 | K190: 0
F191: 0 | G191: 0 | H191: 0 | I191: 0 | J191: 0 | K191: 0
F192: 0 | G192: 0 | H192: 0 | I192: 0 | J192: 0 | K192: 0
F193: 0 | G193: 0 | H193: 0 | I193: 0 | J193: 0 | K193: 0
F194: 0 | G194: 0 | H194: 0 | I194: 0 | J194: 0 | K194: 0
F195: 0 | G195: 0 | H195: 0 | I195: 0 | J195: 0 | K195: 0
F196: 0 | G196: 0 | H196: 0 | I196: 0 | J196: 0 | K196: 0
F197: 0 | G197: 0 | H197: 0 | I197: 0 | J197: 0 | K197: 0
F198: 0 | G198: 0 | H198: 0 | I198: 0 | J198: 0 | K198: 0
F199: 0 | G199: 0 | H199: 0 | I199: 0 | J199: 0 | K199: 0
F200: 0 | G200: 0 | H200: 0 | I200: 0 | J200: 0 | K200: 0
F201: 0 | G201: 0 | H201: 0 | I201: 0 | J201: 0 | K201: 0
F202: 0 | G202: 0 | H202: 0 | I202: 0 | J202: 0 | K202: 0
F203: 0 | G203: 0 | H203: 0 | I203: 0 | J203: 0 | K203: 0
F204: 0 | G204: 0 | H204: 0 | I204: 0 | J204: 0 | K204: 0
F205: 0 | G205: 0 | H205: 0 | I205: 0 | J205: 0 | K205: 0
F206: 0 | G206: 0 | H206: 0 | I206: 0 | J206: 0 | K206: 0
F207: 0 | G207: 0 | H207: 0 | I207: 0 | J207: 0 | K207: 0
F208: 0 | G208: 0 | H208: 0 | I208: 0 | J208: 0 | K208: 0
F209: 0 | G209: 0 | H209: 0 | I209: 0 | J209: 0 | K209: 0
F210: 0 | G210: 0 | H210: 0 | I210: 0 | J210: 0 | K210: 0
F211: 0 | G211: 0 | H211: 0 | I211: 0 | J211: 0 | K211: 0
F212: 0 | G212: 0 | H212: 0 | I212: 0 | J212: 0 | K212: 0 | T212: =MID(U212,1,1) -> 
F213: 0 | G213: 0 | H213: 0 | I213: 0 | J213: 0 | K213: 0
B214: =IF(C214="","",IF(S214="1","Construcción",IF(S214="2","Reforzamiento",IF(S214="3","Remodelación",IF(S214="4","Rehabilitación",IF(S214="5","Rehabilitación","Adquisición")))))) ->  | C214: =IF(OR(U214="",U214=0,U214="Total General",U214="(en blanco)"),"",MID(U214,4,80)) ->  | F214: =IFERROR(VLOOKUP($U214,$U$66:$AB$137,3,FALSE),0) -> 0 | G214: =IFERROR(VLOOKUP($U214,$U$66:$AB$137,4,FALSE),0) -> 0 | H214: =IFERROR(VLOOKUP($U214,$U$66:$AB$137,5,FALSE),0) -> 0 | I214: =IFERROR(VLOOKUP($U214,$U$66:$AB$137,6,FALSE),0) -> 0 | J214: =IFERROR(VLOOKUP($U214,$U$66:$AB$137,7,FALSE),0) -> 0 | K214: =IFERROR(VLOOKUP($U214,$U$66:$AB$137,8,FALSE),0) -> 0
F215: 0 | G215: 0 | H215: 0 | I215: 0 | J215: 0 | K215: 0 | S215: =MID(U215,3,1) -> 
F216: 0 | G216: 0 | H216: 0 | I216: 0 | J216: 0 | K216: 0
F217: 0 | G217: 0 | H217: 0 | I217: 0 | J217: 0 | K217: 0
F218: 0 | G218: 0 | H218: 0 | I218: 0 | J218: 0 | K218: 0
F219: 0 | G219: 0 | H219: 0 | I219: 0 | J219: 0 | K219: 0
F220: 0 | G220: 0 | H220: 0 | I220: 0 | J220: 0 | K220: 0
F221: 0 | G221: 0 | H221: 0 | I221: 0 | J221: 0 | K221: 0
F222: 0 | G222: 0 | H222: 0 | I222: 0 | J222: 0 | K222: 0
F223: 0 | G223: 0 | H223: 0 | I223: 0 | J223: 0 | K223: 0
F224: 0 | G224: 0 | H224: 0 | I224: 0 | J224: 0 | K224: 0
F225: 0 | G225: 0 | H225: 0 | I225: 0 | J225: 0 | K225: 0
... 14 more rows
